Workbook

Sheet APROVADO
A1: Incentivo Fiscal Federal
A2: LIVRO ILUSTRADO DE ARTE - VIDA E OBRA DE M PORTINARI
A3: Oficina/Workshop
A4: - Pré-Produção / Preparação
A5: SP - São Paulo
B6: ITEM | C6: DIAS | D6: QTDE | E6: OCOR. | F6: VL. UNITÁRIO | G6: VL. SOLICITADO | H6: JUSTIF. DO PROPONENTE
A7: 13 | B7: Coordenação artistica | C7: 120 | D7: 2 | E7: 4 | F7: 3000 | G7: =D7*E7*F7 -> 24000 | H7: Acompanhamento das ações educativas, atividades e apresentação de resultados intermediando e facilitando a relação entre artista, educadores, curadoria da exposição e participantes das ações educativas
A8: Total da UF | G8: =G7 -> 24000
A9: - Produção / Execução
A10: SP - São Paulo
B11: ITEM | C11: DIAS | D11: QTDE | E11: OCOR. | F11: VL. UNITÁRIO | G11: VL. SOLICITADO | H11: JUSTIF. DO PROPONENTE
A12: 14 | B12: Aluguel de ônibus | C12: 1 | D12: 4 | E12: 1 | F12: 900 | G12: =D12*E12*F12 -> 3600 | H12: Transporte gratuito para beneficiários da formação de plateia e capacitação (medida de ampliação de acesso0 irem à exposição
A13: 15 | B13: Arte educador | C13: 120 | D13: 8 | E13: 4 | F13: 2400 | G13: =D13*E13*F13 -> 76800 | H13: Mediar comunicação entre educadores, equipe técnica e artista, e multiplicar técnicas do artista a comunidades através de ações educativas, tendo como referencial as obras da exposição. Item acessório do produto principal como medida de contrapartida social, conforme Instrução Normativa.
A14: 16 | B14: Impressão | C14: 120 | D14: 2000 | E14: 1 | F14: 4.5 | G14: 9000 | H14: Relatório ilustrado, editado ao fim do projeto com textos informativos e imagens, como registro da medida de ampliação de acesso/formação de plateia. Não será comercializada e será distribuída a parceiros, às instituições onde as oficinas são realizadas, patrocinadores, MinC, e/ou entidades que atendam pessoas com deficiência intelectual.
A15: 17 | B15: Material de apoio pedagógico | C15: 120 | D15: 1 | E15: 3 | F15: 4000 | G15: 12000 | H15: Material pedagógico (artes) necessário e indispensável para aplicação das ações educativas, medida de democratização e ampliação do acesso e contrapartida social, conforme Instrução Normativa.
A16: Total da UF | G16: =SUM(G12:G15) -> 101400
B17: LIVRO
A18: - Pré-Produção / Preparação
A19: SP - São Paulo
B20: ITEM | C20: DIAS | D20: QTDE | E20: OCOR. | F20: VL. UNITÁRIO | G20: VL. SOLICITADO | H20: JUSTIF. DO PROPONENTE
A21: 1 | B21: Produção de Texto | C21: 90 | D21: 1 | E21: 4 | F21: 5000 | G21: =D21*E21*F21 -> 20000 | H21: Contrução do texto para o livro
A22: Total da UF | G22: =G21 -> 20000
A23: Total da Etapa | G23: =G22 -> 20000
A24: - Produção / Execução
A25: SP - São Paulo
B26: ITEM | C26: DIAS | D26: QTDE | E26: OCOR. | F26: VL. UNITÁRIO | G26: VL. SOLICITADO | H26: JUSTIF. DO PROPONENTE
A27: 2 | B27: Coordenação Gráfica | C27: 120 | D27: 1 | E27: 2 | F27: 2610 | G27: =D27*E27*F27 -> 5220 | H27: Acompanhamento da produção gráfica zelando pela qualidade do produto final.
A28: 3 | B28: Custo distribuição para bibliotecas | C28: 120 | D28: 1 | E28: 1 | F28: 2000 | G28: =D28*E28*F28 -> 2000 | H28: Distribuição a bibliotecas, espaços culturais e ONGs.
A29: 4 | B29: Designer | C29: 120 | D29: 1 | E29: 3 | F29: 4000 | G29: 12000 | H29: Produção, diagramação, concepção gráfica
A30: 5 | B30: Ficha Catalográfica e ISBN | C30: 120 | D30: 1 | E30: 1 | F30: 150 | G30: 150 | H30: Registro obrigatório.
A31: 6 | B31: Fotografia Artística (Fotógrafo, Tratamento, Revelação, etc.) | C31: 120 | D31: 1 | E31: 1 | F31: 20000 | G31: 20000 | H31: Fotografia das obras e imagens que estarão no livro. Saõ as fotos/imagens que estarão impressas no livro.
A32: 7 | B32: Gravação de vozes | C32: 120 | D32: 1 | E32: 1 | F32: 6000 | G32: 6000 | H32: Gravação de vozes para audiodescrição como medida de acessibilidade
A33: 8 | B33: Impressão | C33: 120 | D33: 3000 | E33: 1 | F33: 46 | G33: 138000 | H33: O valor de impressão unitário foi calculado com base na descrição técnica do produto. Ver no plano de trabalho.
A34: 9 | B34: Revisão de Texto | C34: 120 | D34: 90 | E34: 1 | F34: 36 | G34: 3240 | H34: Revisão para conclusão da produção de textos para o livro.
A35: 10 | B35: Tradução | C35: 120 | D35: 1 | E35: 1 | F35: 4000 | G35: 4000 | H35: Tradução dos textos do livro. O conteúdo do texto do livro estará em duas línguas.
A36: Total da UF | G36: =SUM(G27:G35) -> 190610
A37: - Assessoria Contábil e Juridica
A38: SP - São Paulo
B39: ITEM | C39: DIAS | D39: QTDE | E39: OCOR. | F39: VL. UNITÁRIO | G39: VL. SOLICITADO | H39: JUSTIF. DO PROPONENTE
A40: 11 | B40: Advogado | C40: 270 | D40: 1 | E40: 9 | F40: 1000 | G40: =D40*E40*F40 -> 9000 | H40: Serviços em atendimento à Instrução Normativa. Contratos, termos de cessão de direitos e etc.
A41: 12 | B41: Contador | C41: 270 | D41: 1 | E41: 9 | F41: 954 | G41: =D41*E41*F41 -> 8586 | H41: Acompanhamento financeiro e contábil, prestação de contas.
A42: Total da UF | G42: =SUM(G40:G41) -> 17586
A43: Exposição de Artes
A44: - Pré-Produção / Preparação
A45: SP - São Paulo
B46: ITEM | C46: DIAS | D46: QTDE | E46: OCOR. | F46: VL. UNITÁRIO | G46: VL. SOLICITADO | H46: JUSTIF. DO PROPONENTE
A47: 17 | B47: Curador | C47: 90 | D47: 1 | E47: 1 | F47: 15000 | G47: =D47*E47*F47 -> 15000 | H47: Responsável pela organização, montagem da exposição, seleção de obras, definição do escopo da ação paralela educativa (capacitação de educadores e oficinas de artes).
A48: Total da UF | G48: =G47 -> 15000
A49: Total da Etapa | G49: =G48 -> 15000
A50: - Produção / Execução
A51: SP - São Paulo
B52: ITEM | C52: DIAS | D52: QTDE | E52: OCOR. | F52: VL. UNITÁRIO | G52: VL. SOLICITADO | H52: JUSTIF. DO PROPONENTE
A53: 18 | B53: Adesivos | C53: 120 | D53: 1 | E53: 1 | F53: 2200 | G53: =D53*E53*F53 -> 2200 | H53: Serviço necessário e indispensável para produção da exposição - comunicação visual, sinalização
A54: 19 | B54: Cenografia/material/confecção | C54: 120 | D54: 1 | E54: 1 | F54: 4500 | G54: =D54*E54*F54 -> 4500 | H54: Serviço necessário e indispensável para produção da exposição - materiais para construção conceitual da exposição.
A55: 20 | B55: Coordenação geral | C55: 270 | D55: 1 | E55: 9 | F55: 5750 | G55: 51750 | H55: Acompanhamento geral do projeto em todas as suas fases, articulando e mediando as ações entre curador, artista, fornecedores, arte-educadores, coordenação educativa, editor, redator; prestação de contas.
A56: 21 | B56: Embalagem e acondicionamento para a exposição | C56: 120 | D56: 1 | E56: 2 | F56: 1100 | G56: 2200 | H56: Serviço necessário e indispensável para produção da exposição - manuseio das obras para transporte
A57: 22 | B57: Impressão em braile | C57: 120 | D57: 1 | E57: 1 | F57: 9000 | G57: 9000 | H57: Serviço necessário e indispensável para produção da exposição - medida de acessibilidade - etiquetas e textos explicativos das obras com versões fixados de forma a poderem ser lidos também por cadeirantes e pessoas de baixa estatura
A58: 23 | B58: Intérprete de libras | C58: 120 | D58: 2 | E58: 1 | F58: 1600 | G58: 3200 | H58: Serviço necessário e indispensável para produção da exposição - medida de acessibilidade.
A59: 24 | B59: Locação de Equipamento de projeção | C59: 120 | D59: 1 | E59: 1 | F59: 3000 | G59: 3000 | H59: Serviço necessário e indispensável para produção da exposição - parte integrante da cenografia
A60: 25 | B60: Locação de Espaço para Exposição | C60: 120 | D60: 1 | E60: 1 | F60: 5000 | G60: 5000 | H60: Serviço necessário e indispensável para produção da exposição . Locação terá como critérios: acessibilidade, mobilidade (valor médio)
A61: 26 | B61: Locação de Mobiliário | C61: 120 | D61: 1 | E61: 1 | F61: 2500 | G61: 2500 | H61: Serviço necessário e indispensável para produção da exposição - cenografia
A62: 27 | B62: Montagem e desmontagem | C62: 120 | D62: 1 | E62: 1 | F62: 2500 | G62: 2500 | H62: Serviço necessário e indispensável para produção e finalização da exposição
A63: 28 | B63: Projeto cenográfico | C63: 120 | D63: 1 | E63: 1 | F63: 6000 | G63: 6000 | H63: Serviço necessário e indispensável para produção da exposição - peças visuais da exposição, iluminação, sonorização e distribuição das peças a serem expostas.
A64: 29 | B64: Transporte de material | C64: 120 | D64: 1 | E64: 2 | F64: 1200 | G64: 2400 | H64: Serviço necessário e indispensável para produção da exposição - transporte das obras e materiais montagem de desmontagem
A65: Total da UF | G65: =SUM(G53:G64) -> 94250
A67: Administração do Projeto
A68: - Captação de Recursos
A69: SP - São Paulo
B70: ITEM | C70: DIAS | D70: QTDE | E70: OCOR. | F70: VL. UNITÁRIO | G70: VL. SOLICITADO | H70: JUSTIF. DO PROPONENTE
A71: 30 | B71: Remuneração para captação de recursos | C71: 1 | D71: 1 | E71: 1 | F71: 60110.1 | G71: =D71*E71*F71 -> 60110.1
A72: Total da UF | G72: =G71 -> 60110.1
A73: Total da Etapa
A74: - Custos Vinculados
A75: SP - São Paulo
B76: ITEM | C76: DIAS | D76: QTDE | E76: OCOR. | F76: VL. UNITÁRIO | G76: VL. SOLICITADO | H76: JUSTIF. DO PROPONENTE
A77: 31 | B77: Custos de Administração | C77: 1 | D77: 1 | E77: 1 | F77: 66789 | G77: =D77*E77*F77 -> 66789
A78: 32 | B78: Custos de Divulgação | C78: 1 | D78: 1 | E78: 1 | F78: 89052 | G78: =D78*E78*F78 -> 89052
A79: Total da UF | G79: =G77+G78 -> 155841
A80: Custo Total (Custo do Projeto + Valores de Outras Leis + Valores de Outras Fontes) | G80: 678797.1

Sheet ANEXO II
F2: PARCIAL ( )
C3: RELATÓRIO DE EXECUÇÃO DA RECEITA E DESPESA
C4: ANEXO II | F4: FINAL ( X )
A7: NOME DO PROJETO: MARYSIA PORTINARI - UNIVER SO PRÉ-EXISTENTE | F7: N.º PRONAC: 182445
A8: PROPONENTE: INSTITUTO OLGA KOS DE INCLUSÃO CULTURAL
A9: RECEITA | C9: VALOR | D9: ITEM ORÇAMENTARIO | F9: VALOR TOTAL DAS DESPESAS NO ITEM
A10: Banco Toyota do Brasil AS | C10: 678797.1 | D10: =CONCATENATE('itens projetos'!A5,".",'itens projetos'!B5) -> 13.Coordenação artistica | F10: =+'itens projetos'!J5 -> 24000
A11: RENDIMENTOS | C11: =+'itens projetos'!E48 -> 52.77 | D11: =CONCATENATE('itens projetos'!A6,".",'itens projetos'!B6) -> 14.Aluguel de ônibus | F11: =+'itens projetos'!J6 -> 1800
D12: =CONCATENATE('itens projetos'!A7,".",'itens projetos'!B7) -> 15.Arte educador | F12: =+'itens projetos'!J7 -> 76800
D13: =CONCATENATE('itens projetos'!A8,".",'itens projetos'!B8) -> 16.Impressão | F13: =+'itens projetos'!J8 -> 9000
D14: =CONCATENATE('itens projetos'!A9,".",'itens projetos'!B9) -> 17.Material de apoio pedagógico | F14: =+'itens projetos'!J9 -> 12000.23
D15: =CONCATENATE('itens projetos'!A10,".",'itens projetos'!B10) -> 1.Produção de Texto | F15: =+'itens projetos'!J10 -> 20000
D16: =CONCATENATE('itens projetos'!A11,".",'itens projetos'!B11) -> 2.Coordenação Gráfica | F16: =+'itens projetos'!J11 -> 5220
D17: =CONCATENATE('itens projetos'!A12,".",'itens projetos'!B12) -> 3.Custo distribuição para bibliotecas | F17: =+'itens projetos'!J12 -> 1721.8
D18: =CONCATENATE('itens projetos'!A13,".",'itens projetos'!B13) -> 4.Designer | F18: =+'itens projetos'!J13 -> 12000
D19: =CONCATENATE('itens projetos'!A14,".",'itens projetos'!B14) -> 5.Ficha Catalográfica e ISBN | F19: =+'itens projetos'!J14 -> 0
D20: =CONCATENATE('itens projetos'!A15,".",'itens projetos'!B15) -> 6.Fotografia Artística (Fotógrafo, Tratamento, Revelação, etc.) | F20: =+'itens projetos'!J15 -> 20000
D21: =CONCATENATE('itens projetos'!A16,".",'itens projetos'!B16) -> 7.Gravação de vozes | F21: =+'itens projetos'!J16 -> 5000
D22: =CONCATENATE('itens projetos'!A17,".",'itens projetos'!B17) -> 8.Impressão | F22: =+'itens projetos'!J17 -> 138000
D23: =CONCATENATE('itens projetos'!A18,".",'itens projetos'!B18) -> 9.Revisão de Texto | F23: =+'itens projetos'!J18 -> 3240
D24: =CONCATENATE('itens projetos'!A19,".",'itens projetos'!B19) -> 10.Tradução | F24: =+'itens projetos'!J19 -> 4000
D25: =CONCATENATE('itens projetos'!A20,".",'itens projetos'!B20) -> 11.Advogado | F25: =+'itens projetos'!J20 -> 9000
D26: =CONCATENATE('itens projetos'!A21,".",'itens projetos'!B21) -> 12.Contador | F26: =+'itens projetos'!J21 -> 8586
D27: =CONCATENATE('itens projetos'!A22,".",'itens projetos'!B22) -> 17.Curador | F27: =+'itens projetos'!J22 -> 15000
D28: =CONCATENATE('itens projetos'!A23,".",'itens projetos'!B23) -> 18.Adesivos | F28: =+'itens projetos'!J23 -> 2200
D29: =CONCATENATE('itens projetos'!A24,".",'itens projetos'!B24) -> 19.Cenografia/material/confecção | F29: =+'itens projetos'!J24 -> 4512.5
D30: =CONCATENATE('itens projetos'!A25,".",'itens projetos'!B25) -> 20.Coordenação geral | F30: =+'itens projetos'!J25 -> 51750
D31: =CONCATENATE('itens projetos'!A26,".",'itens projetos'!B26) -> 21.Embalagem e acondicionamento para a exposição | F31: =+'itens projetos'!J26 -> 2200
D32: =CONCATENATE('itens projetos'!A27,".",'itens projetos'!B27) -> 22.Impressão em braile | F32: =+'itens projetos'!J27 -> 9000
D33: =CONCATENATE('itens projetos'!A28,".",'itens projetos'!B28) -> 23.Intérprete de libras | F33: =+'itens projetos'!J28 -> 3200
D34: =CONCATENATE('itens projetos'!A29,".",'itens projetos'!B29) -> 24.Locação de Equipamento de projeção | F34: =+'itens projetos'!J29 -> 3000
D35: =CONCATENATE('itens projetos'!A30,".",'itens projetos'!B30) -> 25.Locação de Espaço para Exposição | F35: =+'itens projetos'!J30 -> 7500
D36: =CONCATENATE('itens projetos'!A31,".",'itens projetos'!B31) -> 26.Locação de Mobiliário | F36: =+'itens projetos'!J31 -> 2500
D37: =CONCATENATE('itens projetos'!A32,".",'itens projetos'!B32) -> 27.Montagem e desmontagem | F37: =+'itens projetos'!J32 -> 2500
D38: =CONCATENATE('itens projetos'!A33,".",'itens projetos'!B33) -> 28.Projeto cenográfico | F38: =+'itens projetos'!J33 -> 6000
D39: =CONCATENATE('itens projetos'!A34,".",'itens projetos'!B34) -> 29.Transporte de material | F39: =+'itens projetos'!J34 -> 2400
D40: =CONCATENATE('itens projetos'!A35,".",'itens projetos'!B35) -> 30.Remuneração para captação de recursos | F40: =+'itens projetos'!J35 -> 60110.1
D41: =CONCATENATE('itens projetos'!A36,".",'itens projetos'!B36) -> 31.Custos de Administração | F41: =+'itens projetos'!J36 -> 66789
D42: =CONCATENATE('itens projetos'!A37,".",'itens projetos'!B37) -> 32.Custos de Divulgação | F42: =+'itens projetos'!J37 -> 89052
D43: =CONCATENATE('itens projetos'!A38,".",'itens projetos'!B38) -> .
D44: =CONCATENATE('itens projetos'!A39,".",'itens projetos'!B39) -> .
D45: =CONCATENATE('itens projetos'!A40,".",'itens projetos'!B40) -> .
A47: TOTAL DAS RECEITAS | C47: =SUM(C10:C46) -> 678849.87 | D47: TOTAL DAS DESPESAS | F47: =SUM(F10:F46) -> 678081.63
A49: SALDO RECOLHIDO AO FNC | F49: =+C47-F47 -> 768.24
A50: LOCAL - DATA :SÃO PAULO, _________/____________/____________ | D50: - NOME E ASSINATURA DO RESPONSÁVEL: WOLF VEL KOS TRAMBUCH

Sheet ANEXO IV
E3: PARCIAL ( )
C4: RELATÓRIO FISICO
C5: ANEXO IV | E5: FINAL ( X )
A8: NOME DO PROJETO: MARYSIA PORTINARI - UNIVER SO PRÉ-EXISTENTE | E8: N.º PRONAC: 182445
A9: PROPONENTE: INSTITUTO OLGA KOS DE INCLUSÃO CULTURAL
A11: PERÍODO :
A13: ITEM ORÇAMENTARIO | D13: QTDE. PROGRAMADO | E13: QTDE. EXECUTADA
A15: =CONCATENATE('itens projetos'!A5,".",'itens projetos'!B5) -> 13.Coordenação artistica | D15: 8 | E15: 8
A16: =CONCATENATE('itens projetos'!A6,".",'itens projetos'!B6) -> 14.Aluguel de ônibus | D16: 4 | E16: 0
A17: =CONCATENATE('itens projetos'!A7,".",'itens projetos'!B7) -> 15.Arte educador | D17: 32 | E17: 32
A18: =CONCATENATE('itens projetos'!A8,".",'itens projetos'!B8) -> 16.Impressão | D18: 1 | E18: 0
A19: =CONCATENATE('itens projetos'!A9,".",'itens projetos'!B9) -> 17.Material de apoio pedagógico | D19: 3 | E19: 3
A20: =CONCATENATE('itens projetos'!A10,".",'itens projetos'!B10) -> 1.Produção de Texto | D20: 1 | E20: 1
A21: =CONCATENATE('itens projetos'!A11,".",'itens projetos'!B11) -> 2.Coordenação Gráfica | D21: 1 | E21: 1
A22: =CONCATENATE('itens projetos'!A12,".",'itens projetos'!B12) -> 3.Custo distribuição para bibliotecas | D22: 1 | E22: 0
A23: =CONCATENATE('itens projetos'!A13,".",'itens projetos'!B13) -> 4.Designer | D23: 3 | E23: 2
A24: =CONCATENATE('itens projetos'!A14,".",'itens projetos'!B14) -> 5.Ficha Catalográfica e ISBN | D24: 1 | E24: 1
A25: =CONCATENATE('itens projetos'!A15,".",'itens projetos'!B15) -> 6.Fotografia Artística (Fotógrafo, Tratamento, Revelação, etc.) | D25: 1 | E25: 1
A26: =CONCATENATE('itens projetos'!A16,".",'itens projetos'!B16) -> 7.Gravação de vozes | D26: 1 | E26: 0
A27: =CONCATENATE('itens projetos'!A17,".",'itens projetos'!B17) -> 8.Impressão | D27: 1 | E27: 1
A28: =CONCATENATE('itens projetos'!A18,".",'itens projetos'!B18) -> 9.Revisão de Texto | D28: 1 | E28: 1
A29: =CONCATENATE('itens projetos'!A19,".",'itens projetos'!B19) -> 10.Tradução | D29: 1 | E29: 1
A30: =CONCATENATE('itens projetos'!A20,".",'itens projetos'!B20) -> 11.Advogado | D30: 9 | E30: 5
A31: =CONCATENATE('itens projetos'!A21,".",'itens projetos'!B21) -> 12.Contador | D31: 9 | E31: 6
A32: =CONCATENATE('itens projetos'!A22,".",'itens projetos'!B22) -> 17.Curador | D32: 1 | E32: 0
A33: =CONCATENATE('itens projetos'!A23,".",'itens projetos'!B23) -> 18.Adesivos | D33: 1 | E33: 0
A34: =CONCATENATE('itens projetos'!A24,".",'itens projetos'!B24) -> 19.Cenografia/material/confecção | D34: 1 | E34: 1
A35: =CONCATENATE('itens projetos'!A25,".",'itens projetos'!B25) -> 20.Coordenação geral | D35: 9 | E35: 6
A36: =CONCATENATE('itens projetos'!A26,".",'itens projetos'!B26) -> 21.Embalagem e acondicionamento para a exposição | D36: 2 | E36: 0
A37: =CONCATENATE('itens projetos'!A27,".",'itens projetos'!B27) -> 22.Impressão em braile | D37: 1 | E37: 0
A38: =CONCATENATE('itens projetos'!A28,".",'itens projetos'!B28) -> 23.Intérprete de libras | D38: 2 | E38: 0
A39: =CONCATENATE('itens projetos'!A29,".",'itens projetos'!B29) -> 24.Locação de Equipamento de projeção | D39: 1 | E39: 0
A40: =CONCATENATE('itens projetos'!A30,".",'itens projetos'!B30) -> 25.Locação de Espaço para Exposição | D40: 1 | E40: 0
A41: =CONCATENATE('itens projetos'!A31,".",'itens projetos'!B31) -> 26.Locação de Mobiliário | D41: 1 | E41: 0
A42: =CONCATENATE('itens projetos'!A32,".",'itens projetos'!B32) -> 27.Montagem e desmontagem | D42: 1 | E42: 0
A43: =CONCATENATE('itens projetos'!A33,".",'itens projetos'!B33) -> 28.Projeto cenográfico | D43: 1 | E43: 0
A44: =CONCATENATE('itens projetos'!A34,".",'itens projetos'!B34) -> 29.Transporte de material | D44: 2 | E44: 0
A45: =CONCATENATE('itens projetos'!A35,".",'itens projetos'!B35) -> 30.Remuneração para captação de recursos | D45: 1 | E45: 1
A46: =CONCATENATE('itens projetos'!A36,".",'itens projetos'!B36) -> 31.Custos de Administração | D46: 1 | E46: 1
A47: =CONCATENATE('itens projetos'!A37,".",'itens projetos'!B37) -> 32.Custos de Divulgação | D47: 1 | E47: 1
A48: =CONCATENATE('itens projetos'!A38,".",'itens projetos'!B38) -> .
A53: LOCAL - DATA : SÃO PAULO, ________/________/________ | D53: NOME E ASSINATURA DO RESPONSÁVEL: WOLF VEL KOS TRAMBUCH

Sheet ANEXO V
G2: PARCIAL ( )
D3: RELATÓRIO DE BENS DE CAPITAL
D4: ANEXO V | G4: FINAL ( X )
A5: PRONAC - INCENTIVO | D5: (Se não houve aquisição, registrar “Nada Consta”)
A8: 1 – NOME DO PROJETO: MARYSIA PORTINARI - UNIVER SO PRÉ-EXISTENTE | G8: N.º PRONAC: 182445
A9: 3 – PROPONENTE: INSTITUTO OLGA KOS DE INCLUSÃO CULTURAL
A11: TIPO E NUMERO DO DOC FISCAL | B11: DATA | C11: ESPECIFICAÇÃO | E11: QUANTIDADE | F11: VALOR UNITÁRIO | H11: VALOR TOTAL
A29: nada consta | B29: nada consta | C29: nada consta | E29: nada consta | F29: nada consta | H29: nada consta
A54: TOTAL :
A55: LOCAL - DATA : SÃO PAULO, | E55: - NOME E ASSINATURA DO RESPONSÁVEL: WOLF VEL KOS TRAMBUCH

Sheet ANEXO VI
H2: PARCIAL ( )
C4: RELATÓRIO DE BENS IMÓVEIS
C5: ANEXO VI | H5: FINAL ( X )
C6: (Se não houve aquisição, registrar “Nada Consta”)
A8: NOME DO PROJETO: MARYSIA PORTINARI - UNIVER SO PRÉ-EXISTENTE | H8: N.º PRONAC: 182445
A9: PROPONENTE: INSTITUTO OLGA KOS DE INCLUSÃO CULTURAL
F10: CARTÓRIO DE REGISTRO | G10: NÚMERO REGISTRO
A11: ITEM | B11: ESPECIFICAÇÃO | E11: SITUAÇÃO | I11: VALOR R$
A26: NADA CONSTA | B26: NADA CONSTA | E26: NADA CONSTA | F26: NADA CONSTA | G26: NADA CONSTA | I26: NADA CONSTA
A36: TOTAL ............
A38: LOCAL - DATA : SÃO PAULO, | D38: - NOME E ASSINATURA DO RESPONSÁVEL: Wolf Vel Kos Trambuch

Sheet ANEXO VII
C2: CONCILIAÇÃO BANCÁRIA | E2: PARCIAL ( )
C3: ANEXO VII | E3: FINAL ( X )
A5: NOME DO PROJETO: MARYSIA PORTINARI - UNIVER SO PRÉ-EXISTENTE | E5: PRONAC N°: 182445
A6: PROPONENTE: INSTITUTO OLGA KOS DE INCLUSÃO CULTURAL
A7: BANCO: Banco do Brasil | B7: AGÊNCIA: 6998-1 | C7: CONTA CAPTAÇÃO: | D7: CONTA MOVIMENTO:
A9: ITEM | E9: VALOR (R$)
A10: TOTAL CAPTADO | E10: =SUM('ANEXO II '!C10:C34) -> 678849.87
A11: TOTAL DE RENDIMENTOS DE APLICAÇÃO FINANCEIRAS | E11: =+'ANEXO II '!C34 -> 0
A12: TOTAL DE DESPESAS | E12: =+'ANEXO II '!F47 -> 678081.63
A13: TOTAL RECOLHIDO AO FNC | E13: =+E10-E12 -> 768.24
A14: SALDO ATUAL | E14: 0
A16: LOCAL - DATA : SÃO PAULO, 31 de janeiro de 2017 | C16: NOME E ASSINATURA DO RESPONSÁVEL: WOLF VEL KOS TRAMBUCH
A18: Obs.: A este formulario dever ser anexados os extratos bancarios de todos os meses do prazo do projeto de de aplicações financeiras em ordem cronologica

Sheet tarifas
A1: TARIFAS MARYSIA PORTINARI
A2: DATA | B2: TARIFAS | C2: REEMBOLSOS
A3: 2019-02-05 | B3: 62.95
A4: 2019-02-28 | C4: 62.95
A5: 2019-02-01 | B5: 109.98
A6: 2019-02-01 | C6: 109.98
A7: 2019-02-28 | B7: 157.01
A8: 2019-02-28 | C8: 157.01
A9: 2019-09-12 | B9: 63
A10: 2019-09-30 | B10: 4.94
A11: 2019-10-02 | C11: 67.94
A12: 2019-10-01 | B12: 3.46
A13: 2019-10-10 | C13: 3.46
A15: TOTAL | B15: =SUM(B3:B13) -> 401.34 | C15: =SUM(C3:C14) -> 401.34

Sheet APLICAÇÕES
A1: conta bloqueio | E1: conta movimento
A2: composição aplicação conta bloqueio | E2: composição aplicação conta movimento | I2: TARIFAS
A3: data | B3: valor | E3: data | F3: VALOR
A4: dezembro 2017 | B4: 0 | E4: JANEIRO/2019 | F4: 52.77 | H4: 2019-02-05 | I4: 62.95
A5: janeiro 2018 | B5: 0 | E5: FEVEREIRO/2019 | H5: 2019-02-28 | I5: -62.95
E6: MARÇO/2019 | H6: 2019-02-28 | I6: 157.01
E7: ABRIL/2019 | H7: 2019-02-28 | I7: -157.01
E8: MAIO/2019 | H8: 2019-09-12 | I8: 63
E9: JUNHO/2019 | H9: 2019-09-30 | I9: 4.94
E10: JULHO/2019 | H10: 2019-10-02 | I10: -67.94
E11: AGOSTO/2019 | H11: 2019-10-01 | I11: 3.46
E12: SETEMBRO/2019 | F12: 0 | H12: 2019-10-10 | I12: -3.46
E13: OUTUBRO/2019
E14: NOVEMBRO /2019
E15: DEZEMBRO/2019
B19: =SUM(B6:B13) -> 0 | E19: TOTAL: | F19: =SUM(F4:F15) -> 52.77
I20: =SUM(I4:I18) -> 0
B23: =+B21-B19 -> 0
E24: BRUTO
E47: SAIDA INDEVIDA - VALOR RESTITUIDO - CONTRAPARTIDA
E48: SAIDA INDEVIDA - VALOR RESTITUIDO - CONTRAPARTIDA
E49: SAIDA INDEVIDA - VALOR RESTITUIDO - CONTRAPARTIDA
E51: SAIDA INDEVIDA - VALOR RESTITUIDO - CONTRAPARTIDA
E55: SAIDA INDEVIDA - VALOR RESTITUIDO - CONTRAPARTIDA
E61: SAIDA INDEVIDA - VALOR RESTITUIDO - CONTRAPARTIDA
E83: SAIDA INDEVIDA - VALOR RESTITUIDO - CONTRAPARTIDA
H89: 850284
H90: 2014-04-17
E101: SAIDA INDEVIDA - VALOR RESTITUIDO - CONTRAPARTIDA
E102: SAIDA INDEVIDA - VALOR RESTITUIDO - CONTRAPARTIDA

Sheet deposito
B3: DEPOSITO | I3: ESTORNOS OU DEVOLUÇÕES
A5: Data | B5: Histórico | C5: valor | H5: Data | I5: Histórico | J5: valor | L5: CANCELADOS
A6: 2019-02-01 | B6: DEPOSITO | C6: 40000 | H6: 2019-07-05 | I6: ESTONO ISBN | J6: 22 | L6: 850096
A7: 2019-02-05 | B7: DEPOSITO | C7: 1600 | H7: 2019-09-24 | I7: ESTORNO UNIVERSO | J7: 900 | L7: 850104
A8: 2019-02-08 | B8: DEPOSITO | C8: 27500 | L8: 850106
A9: 2019-02-12 | B9: DEPOSITO | C9: 3500 | L9: 850108
A10: 2019-02-15 | B10: DEPOSITO | C10: 500 | L10: 850168
A11: 2019-02-19 | B11: DEPOSITO | C11: 3300 | L11: 850169
A12: 2019-02-28 | B12: DEPOSITO | C12: 500 | L12: 850185
A13: 2019-02-27 | B13: DEPOSITO | C13: 3400 | L13: 850201
A14: 2019-03-07 | B14: DEPOSITO | C14: 4400
A15: 2019-03-11 | B15: DEPOSITO | C15: 1000
A16: 2019-03-12 | B16: DEPOSITO | C16: 1000
A17: 2019-03-18 | B17: DEPOSITO | C17: 1200
A18: 2019-03-19 | B18: DEPOSITO | C18: 36000
A19: 2019-04-04 | B19: DEPOSITO | C19: 800
A20: 2019-04-05 | B20: DEPOSITO | C20: 900
A21: 2019-04-09 | B21: DEPOSITO | C21: 4900
A22: 2019-04-11 | B22: DEPOSITO | C22: 32600
A23: 2019-04-12 | B23: DEPOSITO | C23: 3300
A24: 2019-04-16 | B24: DEPOSITO | C24: 200
A25: 2019-04-17 | B25: DEPOSITO | C25: 2500
A26: 2019-05-03 | B26: DEPOSITO | C26: 1800
A27: 2019-05-07 | B27: DEPOSITO | C27: 3000
A28: 2019-05-08 | B28: DEPOSITO | C28: 1000
A29: 2019-05-13 | B29: DEPOSITO | C29: 32600
A30: 2019-05-15 | B30: DEPOSITO | C30: 1100
A31: 2019-05-20 | B31: DEPOSITO | C31: 2500
A32: 2019-05-21 | B32: DEPOSITO | C32: 7100
A33: 2019-05-30 | B33: DEPOSITO | C33: 24500
A34: 2019-06-04 | B34: DEPOSITO | C34: 500
A35: 2019-06-07 | B35: DEPOSITO | C35: 5000
A36: 2019-06-10 | B36: DEPOSITO | C36: 800
A37: 2019-06-11 | B37: DEPOSITO | C37: 2500
A38: 2019-06-17 | B38: DEPOSITO | C38: 7600
A39: 2019-06-18 | B39: DEPOSITO | C39: 35000
A40: 2019-07-02 | B40: DEPOSITO | C40: 500
A41: 2019-07-04 | B41: DEPOSITO | C41: 3000
A42: 2019-07-05 | B42: DEPOSITO | C42: 7000
A43: 2019-07-12 | B43: DEPOSITO | C43: 3500
A44: 2019-07-16 | B44: DEPOSITO | C44: 9000
A45: 2019-07-17 | B45: DEPOSITO | C45: 2000
A46: 2019-08-05 | B46: DEPOSITO | C46: 2800
A47: 2019-08-08 | B47: DEPOSITO | C47: 7200
A48: 2019-08-15 | B48: DEPOSITO | C48: 200
A49: 2019-08-19 | B49: DEPOSITO | C49: 10000
A50: 2019-08-20 | B50: DEPOSITO | C50: 1000
A51: 2019-09-04 | B51: DEPOSITO | C51: 5000
A52: 2019-09-06 | B52: DEPOSITO | C52: 41000
A53: 2019-09-09 | B53: DEPOSITO | C53: 1200
A54: 2019-09-11 | B54: DEPOSITO | C54: 3000
A55: 2019-09-12 | B55: DEPOSITO | C55: 7500
A56: 2019-09-13 | B56: DEPOSITO | C56: 1000
A57: 2019-09-10 | B57: DEPOSITO | C57: 1000
A58: 2019-09-16 | B58: DEPOSITO | C58: 2400
A59: 2019-09-17 | B59: DEPOSITO | C59: 200
A60: 2019-09-18 | B60: DEPOSITO | C60: 18500
A61: 2019-09-19 | B61: DEPOSITO | C61: 29400
A62: 2019-09-26 | B62: DEPOSITO | C62: 6000
A63: 2019-09-29 | B63: DEPOSITO | C63: 1200
A64: 2019-10-03 | B64: DEPOSITO | C64: 10000
A65: 2019-10-04 | B65: DEPOSITO | C65: 3000
A66: 2019-10-29 | B66: DEPOSITO | C66: 4200
A67: 2019-11-22 | B67: DEPOSITO | C67: 2100
C72: =SUM(C6:C71) -> 477000 | J72: =SUM(J6:J21) -> 922 | L72: =+J72+C72 -> 477922
H99: 850284
H100: 2014-04-17

Sheet projeto
B1: ITEM | C1: DIAS | D1: QTDE | E1: OCOR. | F1: VL. UNITÁRIO | G1: VL. SOLICITADO | H1: JUSTIF. DO PROPONENTE
A2: 13 | B2: Coordenação artistica | C2: 120 | D2: 2 | E2: 4 | F2: 3000 | G2: 24000
A3: 14 | B3: Aluguel de ônibus | C3: 1 | D3: 4 | E3: 1 | F3: 900 | G3: 3600
A4: 15 | B4: Arte educador | C4: 120 | D4: 8 | E4: 4 | F4: 2400 | G4: 76800
A5: 16 | B5: Impressão | C5: 120 | D5: 2000 | E5: 1 | F5: 4.5 | G5: 9000
A6: 17 | B6: Material de apoio pedagógico | C6: 120 | D6: 1 | E6: 3 | F6: 4000 | G6: 12000
A7: 1 | B7: Produção de Texto | C7: 90 | D7: 1 | E7: 4 | F7: 5000 | G7: 20000
A8: 2 | B8: Coordenação Gráfica | C8: 120 | D8: 1 | E8: 2 | F8: 2610 | G8: 5220
A9: 3 | B9: Custo distribuição para bibliotecas | C9: 120 | D9: 1 | E9: 1 | F9: 2000 | G9: 2000
A10: 4 | B10: Designer | C10: 120 | D10: 1 | E10: 3 | F10: 4000 | G10: 12000
A11: 5 | B11: Ficha Catalográfica e ISBN | C11: 120 | D11: 1 | E11: 1 | F11: 150 | G11: 150
A12: 6 | B12: Fotografia Artística (Fotógrafo, Tratamento, Revelação, etc.) | C12: 120 | D12: 1 | E12: 1 | F12: 20000 | G12: 20000
A13: 7 | B13: Gravação de vozes | C13: 120 | D13: 1 | E13: 1 | F13: 6000 | G13: 6000
A14: 8 | B14: Impressão | C14: 120 | D14: 3000 | E14: 1 | F14: 46 | G14: 138000
A15: 9 | B15: Revisão de Texto | C15: 120 | D15: 90 | E15: 1 | F15: 36 | G15: 3240
A16: 10 | B16: Tradução | C16: 120 | D16: 1 | E16: 1 | F16: 4000 | G16: 4000
A17: 11 | B17: Advogado | C17: 270 | D17: 1 | E17: 9 | F17: 1000 | G17: 9000
A18: 12 | B18: Contador | C18: 270 | D18: 1 | E18: 9 | F18: 954 | G18: 8586
A19: 17 | B19: Curador | C19: 90 | D19: 1 | E19: 1 | F19: 15000 | G19: 15000
A20: 18 | B20: Adesivos | C20: 120 | D20: 1 | E20: 1 | F20: 2200 | G20: 2200
A21: 19 | B21: Cenografia/material/confecção | C21: 120 | D21: 1 | E21: 1 | F21: 4500 | G21: 4500
A22: 20 | B22: Coordenação geral | C22: 270 | D22: 1 | E22: 9 | F22: 5750 | G22: 51750
A23: 21 | B23: Embalagem e acondicionamento para a exposição | C23: 120 | D23: 1 | E23: 2 | F23: 1100 | G23: 2200
A24: 22 | B24: Impressão em braile | C24: 120 | D24: 1 | E24: 1 | F24: 9000 | G24: 9000
A25: 23 | B25: Intérprete de libras | C25: 120 | D25: 2 | E25: 1 | F25: 1600 | G25: 3200
A26: 24 | B26: Locação de Equipamento de projeção | C26: 120 | D26: 1 | E26: 1 | F26: 3000 | G26: 3000
A27: 25 | B27: Locação de Espaço para Exposição | C27: 120 | D27: 1 | E27: 1 | F27: 5000 | G27: 5000
A28: 26 | B28: Locação de Mobiliário | C28: 120 | D28: 1 | E28: 1 | F28: 2500 | G28: 2500
A29: 27 | B29: Montagem e desmontagem | C29: 120 | D29: 1 | E29: 1 | F29: 2500 | G29: 2500
A30: 28 | B30: Projeto cenográfico | C30: 120 | D30: 1 | E30: 1 | F30: 6000 | G30: 6000
A31: 29 | B31: Transporte de material | C31: 120 | D31: 1 | E31: 2 | F31: 1200 | G31: 2400
A32: 30 | B32: Remuneração para captação de recursos | C32: 1 | D32: 1 | E32: 1 | F32: 60110.1 | G32: 60110.1
A33: 31 | B33: Custos de Administração | C33: 1 | D33: 1 | E33: 1 | F33: 66789 | G33: 66789
A34: 32 | B34: Custos de Divulgação | C34: 1 | D34: 1 | E34: 1 | F34: 89052 | G34: 89052
A35: Custo Total (Custo do Projeto + Valores de Outras Leis + Valores de Outras Fontes) | G35: =SUM(G2:G34) -> 678797.1

Sheet itens projetos
A1: PLANILHA ORÇAMENTARIA X GASTOS EFETIVADOS
A2: MARYSIA PORTINARI - UNIVERSO PRÉ-EXISTENTE - PRONAC: 182445
B3: conta: 8534-0
A4: ITEM | B4: AÇÃO | C4: contabil | D4: DIAS | E4: UNIDADE | F4: QTD | G4: Duração | H4: VALOR UNITARIO | I4: TOTAL ITEM | J4: EXECUTADO | K4: DISPONIVEL | L4: EXCEDIDOS | M4: ITEM
A5: 13 | B5: Coordenação artistica | C5: 11160 | D5: 120 | E5: Mês | F5: 2 | G5: 4 | H5: 3000 | I5: 24000 | J5: =+'1.1'!B10 -> 24000 | K5: =IF(+I5-J5<0,0,I5-J5) -> 0 | L5: =IF(+I5-J5<0,J5-I5," ") ->  | N5: 13
A6: 14 | B6: Aluguel de ônibus | C6: 11161 | D6: 1 | E6: Mês | F6: 2 | G6: 1 | H6: 900 | I6: 1800 | J6: =+'1.2'!B10 -> 1800 | K6: =IF(+I6-J6<0,0,I6-J6) -> 0 | L6: =IF(+I6-J6<0,J6-I6," ") ->  | N6: 14
A7: 15 | B7: Arte educador | C7: 11162 | D7: 120 | E7: Verba | F7: 8 | G7: 4 | H7: 2400 | I7: 76800 | J7: =+'1.3'!B15 -> 76800 | K7: 0 | L7: =IF(+I7-J7<0,J7-I7," ") ->  | N7: 15
A8: 16 | B8: Impressão | C8: 11163 | D8: 120 | E8: Serviço | F8: 2000 | G8: 1 | H8: 4.5 | I8: 9000 | J8: =+'2.1'!B16 -> 9000 | K8: 0 | N8: 16
A9: 17 | B9: Material de apoio pedagógico | C9: 11164 | D9: 120 | E9: Mês | F9: 1 | G9: 3 | H9: 4000 | I9: 12000 | J9: =+'2.2'!B16 -> 12000.23 | K9: 0 | L9: 0.23 | N9: 17
A10: 1 | B10: Produção de Texto | C10: 11165 | D10: 90 | E10: Serviço | F10: 1 | G10: 4 | H10: 5000 | I10: 20000 | J10: =+'2.3'!B15 -> 20000 | K10: 0 | N10: 1
A11: 2 | B11: Coordenação Gráfica | C11: 11166 | D11: 120 | E11: Serviço | F11: 1 | G11: 2 | H11: 2610 | I11: 5220 | J11: =+'2.4'!B15 -> 5220 | K11: 0 | N11: 2
A12: 3 | B12: Custo distribuição para bibliotecas | C12: 11167 | D12: 120 | E12: Mês | F12: 1 | G12: 1 | H12: 2000 | I12: 2000 | J12: =+'2.5'!B15 -> 1721.8 | K12: 278.2 | N12: 3
A13: 4 | B13: Designer | C13: 11168 | D13: 120 | E13: Serviço | F13: 1 | G13: 3 | H13: 4000 | I13: 12000 | J13: =+'3.1'!B15 -> 12000 | K13: 0 | N13: 4
A14: 5 | B14: Ficha Catalográfica e ISBN | C14: 11169 | D14: 120 | E14: Verba | F14: 1 | G14: 1 | H14: 150 | I14: 150 | J14: =+'3.2'!B7 -> 0 | K14: 150 | N14: 5
A15: 6 | B15: Fotografia Artística (Fotógrafo, Tratamento, Revelação, etc.) | C15: 11170 | D15: 120 | E15: Serviço | F15: 1 | G15: 1 | H15: 20000 | I15: 20000 | J15: =+'3.3'!B8 -> 20000 | K15: 0 | N15: 6
A16: 7 | B16: Gravação de vozes | C16: 11171 | D16: 120 | E16: Serviço | F16: 1 | G16: 1 | H16: 5300 | I16: 5300 | J16: =+'3.4'!B16 -> 5000 | K16: 300 | N16: 7
A17: 8 | B17: Impressão | C17: 11172 | D17: 120 | E17: UNIDADE | F17: 3000 | G17: 1 | H17: 46 | I17: 138000 | J17: =+'3.5'!B8 -> 138000 | K17: 0 | N17: 8
A18: 9 | B18: Revisão de Texto | C18: 11173 | D18: 120 | E18: Serviço | F18: 90 | G18: 1 | H18: 36 | I18: 3240 | J18: =+'3.6'!B7 -> 3240 | K18: 0 | N18: 9
A19: 10 | B19: Tradução | C19: 11174 | D19: 120 | E19: Serviço | F19: 1 | G19: 1 | H19: 4000 | I19: 4000 | J19: =+'3.7'!B7 -> 4000 | K19: 0 | N19: 10
A20: 11 | B20: Advogado | C20: 11175 | D20: 270 | E20: Serviço | F20: 1 | G20: 9 | H20: 1000 | I20: 9000 | J20: =+'3.8'!B14 -> 9000 | K20: 0 | N20: 11
A21: 12 | B21: Contador | C21: 11176 | D21: 270 | E21: Serviço | F21: 1 | G21: 9 | H21: 954 | I21: 8586 | J21: =+'3.9'!B13 -> 8586 | K21: 0 | N21: 12
A22: 17 | B22: Curador | C22: 11177 | D22: 90 | E22: Serviço | F22: 1 | G22: 1 | H22: 15000 | I22: 15000 | J22: =+'3.10'!B7 -> 15000 | K22: 0 | N22: 17
A23: 18 | B23: Adesivos | C23: 11178 | D23: 120 | E23: Serviço | F23: 1 | G23: 1 | H23: 2200 | I23: 2200 | J23: =+'3.11'!B15 -> 2200 | K23: 0 | N23: 18
A24: 19 | B24: Cenografia/material/confecção | C24: 11179 | D24: 120 | E24: Serviço | F24: 1 | G24: 1 | H24: 4500 | I24: 4500 | J24: =+'3.12'!B7 -> 4512.5 | K24: 0 | L24: 12.5 | N24: 19
A25: 20 | B25: Coordenação geral | C25: 11180 | D25: 270 | F25: 1 | G25: 9 | H25: 5750 | I25: 51750 | J25: =+'3.13'!B16 -> 51750 | K25: 0 | N25: 20
A26: 21 | B26: Embalagem e acondicionamento para a exposição | C26: 11181 | D26: 120 | E26: Serviço | F26: 1 | G26: 2 | H26: 1100 | I26: 2200 | J26: =+'4.1'!B11 -> 2200 | K26: 0 | N26: 21
A27: 22 | B27: Impressão em braile | C27: 11182 | D27: 120 | E27: Serviço | F27: 1 | G27: 1 | H27: 9000 | I27: 9000 | J27: =+'4.2'!B7 -> 9000 | K27: 0 | N27: 22
A28: 23 | B28: Intérprete de libras | C28: 11183 | D28: 120 | E28: Serviço | F28: 2 | G28: 1 | H28: 1600 | I28: 3200 | J28: =+'4.3'!B3 -> 3200 | K28: 0 | N28: 23
A29: 24 | B29: Locação de Equipamento de projeção | C29: 11184 | D29: 120 | E29: Serviço | F29: 1 | G29: 1 | H29: 3000 | I29: 3000 | J29: =+'4.10'!B20 -> 3000 | K29: =IF(+I29-J29<0,0,I29-J29) -> 0 | N29: 24
A30: 25 | B30: Locação de Espaço para Exposição | C30: 11185 | D30: 120 | E30: Serviço | F30: 1 | G30: 1 | H30: 7500 | I30: 7500 | J30: =+'5.1'!B7 -> 7500 | K30: 0 | N30: 25
A31: 26 | B31: Locação de Mobiliário | C31: 11186 | D31: 120 | E31: Serviço | F31: 1 | G31: 1 | H31: 2500 | I31: 2500 | J31: =+'6.2'!B7 -> 2500 | K31: 0 | N31: 26
A32: 27 | B32: Montagem e desmontagem | C32: 11187 | D32: 120 | E32: Serviço | F32: 1 | G32: 1 | H32: 2500 | I32: 2500 | J32: =+'6.3'!B7 -> 2500 | K32: 0 | N32: 27
A33: 28 | B33: Projeto cenográfico | C33: 11188 | D33: 120 | E33: Serviço | F33: 1 | G33: 1 | H33: 6000 | I33: 6000 | J33: =+'6.4'!B7 -> 6000 | K33: =IF(+I33-J33<0,0,I33-J33) -> 0 | L33: =IF(+I33-J33<0,J33-I33," ") ->  | N33: 28
A34: 29 | B34: Transporte de material | C34: 11189 | D34: 120 | E34: Serviço | F34: 1 | G34: 2 | H34: 1200 | I34: 2400 | J34: =+'6.5'!B7 -> 2400 | K34: 0 | N34: 29
A35: 30 | B35: Remuneração para captação de recursos | C35: 11190 | D35: 1 | F35: 1 | G35: 1 | H35: 60110.1 | I35: 60110.1 | J35: =+'6.6'!B7 -> 60110.1 | K35: 0 | N35: 30
A36: 31 | B36: Custos de Administração | C36: 11191 | D36: 1 | F36: 1 | G36: 1 | H36: 66789 | I36: 66789 | J36: =+'6.7'!$B70 -> 66789 | K36: 0 | N36: 31
A37: 32 | B37: Custos de Divulgação | C37: 11192 | D37: 1 | F37: 1 | G37: 1 | H37: 89052 | I37: 89052 | J37: =+'6.8'!B50 -> 89052 | K37: 0 | N37: 32
H41: TOTAL PROJETOS | I41: =SUM(I5:I40) -> 678797.1 | J41: =SUM(J5:J40) -> 678081.63 | K41: =SUM(K5:K40) -> 728.2 | L41: =SUM(L5:L40) -> 12.73
H42: 850001 | I42: 15/01/2019 | J42: 195000
H43: 850002 | I43: 16/01/2019 | J43: 19000
H44: 850003 | I44: 17/01/2019 | J44: 51000
B45: TOTAL DO PROJETO CAPTADO | E45: 678797.1 | H45: 850004 | I45: 21/01/2019 | J45: 20000
B46: PARCELA LIBERADA | E46: 678797.1 | H46: 850006 | I46: 22/01/2019 | J46: 67000
B47: RENDIMENTOS CONTA BLOQUEIO | H47: 850008 | I47: 24/01/2019 | J47: 73000 | K47: SALDO DISPONIVEL | L47: =+K41-L41 -> 715.47
B48: RENDIMENTOS CONTA MOVIMENTO | E48: =+APLICAÇÕES!F19 -> 52.77 | H48: 850009 | I48: 29/01/2019 | J48: 51000
B49: Recurso total para o projeto | E49: =SUM(E46:E48) -> 678849.87 | H49: 850202 | I49: 7/10/19 | J49: 1000 | K49: oficio/pag.indevido
B50: Valores depositados | E50: =+deposito!C72 -> 477000 | F50: =+E50-SUM(J42:J49) -> 0
B51: DEPOSITOS DE ESTORNOS | E51: =+deposito!J72 -> 922 | J51: 900 | K51: ESTORNO AZUL CHEQUE 850165
B52: TARIFAS | E52: =+tarifas!B15 -> 401.34 | J52: 22 | K52: ESTONO ISBN
B53: Total creditado conta projeto | E53: =SUM(E49:E51) -> 1156771.87
B54: cheques emitidos | E54: =+J69 -> -1156771.87 | H54: 850207 | J54: 768.24 | K54: GRU
B55: IMPOSTO A RECOLHER
B56: TARIFAS REEMBOLSADAS | E56: =+tarifas!C15 -> 401.34
B58: SALDO PLANILHA | E58: =+E53+E52+E54+E55-E56 -> 3.166746865e-10
B59: SALDO APLICAÇÃO | E59: 0
B60: SALDO CONTA | E60: 0
B61: DIFERENÇA | E61: =SUM(E58:E60) -> 3.166746865e-10
H69: TOTAL CHEQUES EMITIDOS | J69: =SUM(J41:J68)*-1 -> -1156771.87
F70: OFICIOS A DEVOLVER | G70: =+F50*-1 -> 0
F71: SALDO EM CONTA | G71: =+E58 -> 3.166746865e-10
F72: SALDO REAL | G72: =SUM(G70:G71) -> 3.166746865e-10
F83: FINANCEIRO
B84: observações:
J87: .
G88: =+G72-G80 -> 3.166746865e-10 | K88: EDSON PEREIRA
G89: =+G88+G75 -> 3.166746865e-10

Sheet ANEXO III
L1: PARCIAL ( )
E2: RELAÇÃO DE PAGAMENTOS
E3: ANEXO III | L3: FINAL ( x )
A5: NOME DO PROJETO: MARYSIA PORTINARI - UNIVER SO PRÉ-EXISTENTE | L5: N.º PRONAC: 182445
A6: PROPONENTE: INSTITUTO OLGA KOS DE INCLUSÃO CULTURAL
A7: ITEM | B7: ITEM ORÇAMENTARIO | C7: FORNECEDOR | D7: C.N.P.J./C.P.F. | G7: CHEQUE/OP | H7: DATA DO DEBITO NA CONTA | I7: NUMERO DO DOC. FISCAL | J7: DATA DO DOCUMENTO FISCAL | L7: VALOR
A8: 1 | B8: =+'itens projetos'!B35 -> Remuneração para captação de recursos | C8: RIBEIRO DO VALLE CONS E ASS EM CAPTAÇÃO DE REC E G CULT LTDA | D8: 20.113.043/0001-60 | G8: 850005 | H8: 2019-01-22 | I8: NF 0044 | J8: 2019-01-21 | L8: 60110.1
A9: 2 | B9: impressão | C9: IPSIS GRAFICA E EDITORA S A | D9: 61.407.078/0001-10 | G9: 850010 | H9: 2019-02-06 | I9: NF 66349 | J9: 2019-01-31 | L9: 138000
A10: 3 | B10: coordenação gráfica | C10: KLNTOWITZ COMUNICAÇÃO LTDA | D10: 08.977.656/0001-70 | G10: 850011 | H10: 2019-01-30 | I10: NF 0250 | J10: 2019-01-29 | L10: 5220
A11: 4 | B11: revisão de texto | C11: KLNTOWITZ COMUNICAÇÃO LTDA | D11: 08.977.656/0001-70 | G11: 850012 | H11: 2019-01-30 | I11: NF 0251 | J11: 2019-01-29 | L11: 3240
A12: 5 | B12: produção de texto | C12: KLNTOWITZ COMUNICAÇÃO LTDA | D12: 08.977.656/0001-70 | G12: 850013 | H12: 2019-01-30 | I12: NF 0249 | J12: 2019-01-29 | L12: 20000
A13: 6 | B13: custos de divulgação | C13: GALEANO INFORMATICA LTDA - ME | D13: 15.915.752/0001-50 | G13: 850014 | H13: 2019-01-31 | I13: NF 1056 | J13: 2019-01-31 | L13: 2000
A14: 7 | B14: custos de administração | C14: JOSIANE NACAMUTA - ME | D14: 01.742.102/0001-45 | G14: 850015 | H14: 2019-01-31 | I14: NF 0779 | J14: 2019-01-30 | L14: 2914.2
A15: 8 | B15: custos de divulgação | C15: AZUL CONSULTORIA EM PROPAGANDA LTDA | D15: 08.160.849/0001-34 | G15: 850016 | H15: 2019-02-01 | I15: NF 0450 | J15: 2019-01-31 | L15: 3284.75
A16: 9 | B16: banners | C16: W PRINT SOLUTION GRÁFICA LTDA ME | D16: 28.442.773/0001-45 | G16: 850017 | H16: 2019-02-01 | I16: NF 0435 | J16: 2019-01-31 | L16: 2100
A17: 10 | B17: coodenação geral | C17: COR E TAL OFICINAS DE ARTE E EVENTOS LTDA | D17: 10.875.118/0001-17 | G17: 850018 | H17: 2019-02-01 | I17: NF 1166 | J17: 2019-01-31 | L17: 5396.37
A18: 11 | B18: advogado | C18: BRITO RODRIGUES SOCIEDADE INDIVIDUAL DE ADVOCACIA | D18: 07.641.544/0001-81 | G18: 850019 | H18: 2019-02-05 | I18: NF 0813 | J18: 2019-02-04 | L18: 1000
A19: 12 | B19: contador | C19: ATIVA CONTABIL S/S | D19: 49.501.679/0001-91 | G19: 850020 | H19: 2019-02-05 | I19: NF 0541 | J19: 2019-01-31 | L19: 954
A20: 13 | B20: custos de divulgação | C20: GALEANO INFORMATICA LTDA - ME | D20: 15.915.752/0001-50 | G20: 850021 | H20: 2019-02-08 | I20: NF 1062 | J20: 2019-02-06 | L20: 2000
A21: 14 | B21: Material de apoio pedagógico | C21: W PRINT SOLUTION GRÁFICA LTDA ME | D21: 28.442.773/0001-45 | G21: 850022 | H21: 2019-02-08 | I21: NF 0447 | J21: 2019-02-06 | L21: 7722
A22: 15 | B22: custos de administração | C22: JOSIANE NACAMUTA - ME | D22: 01.742.102/0001-45 | G22: 850023 | H22: 2019-02-08 | I22: NF 0792 | J22: 2019-02-07 | L22: 5001
A23: 16 | B23: Material de apoio pedagógico | C23: JOSIANE NACAMUTA - ME | D23: 01.742.102/0001-45 | G23: 850024 | H23: 2019-02-08 | I23: NF 0790 | J23: 2019-02-06 | L23: 4278.23
A24: 17 | B24: custos de administração | C24: JOSIANE NACAMUTA - ME | D24: 01.742.102/0001-45 | G24: 850025 | H24: 2019-02-08 | I24: NF 0780 | J24: 06/02/019 | L24: 2914.2
A25: 18 | B25: Coordenação geral | C25: COR E TAL OFICINAS DE ARTE E EVENTOS LTDA | D25: 10.875.118/0001-17 | G25: 850026 | H25: 2019-02-08 | I25: NF 1174 | J25: 2019-02-07 | L25: 5396.37
A26: 19 | B26: custos de administração | C26: COR E TAL OFICINAS DE ARTE E EVENTOS LTDA | D26: 10.875.118/0001-17 | G26: 850027 | H26: 2019-02-12 | I26: NF 1176 | J26: 2019-12-11 | L26: 3352.51
A27: 20 | B27: custos de divulgação | C27: SECRETARIA DA RECEITA FEDERAL DO BRASIL | G27: 850028 | H27: 2019-02-15 | I27: DARF 1708 NF 0450 | J27: 2019-02-15 | L27: 52.5
A28: 21 | B28: custos de divulgação | C28: SECRETARIA DA RECEITA FEDERAL DO BRASIL | G28: 850029 | H28: 2019-02-15 | I28: DARF 5952 NF 0450 | J28: 2019-02-15 | L28: 162.75
A29: 22 | B29: Coordenação geral | C29: SECRETARIA DA RECEITA FEDERAL DO BRASIL | G29: 850030 | H29: 2019-02-15 | I29: DARF 1708 NF 1166 | J29: 2019-02-15 | L29: 86.25
A30: 23 | B30: Coordenação geral | C30: SECRETARIA DA RECEITA FEDERAL DO BRASIL | G30: 850031 | H30: 2019-02-15 | I30: DARF 5952 NF 1166 | J30: 2019-02-15 | L30: 267.38
A31: 24 | B31: custos de administração | C31: TELEFONICA BRASIL S.A | D31: 02.558.157/0001-62 | G31: 850032 | H31: 2019-02-15 | I31: ND 19/2019 | J31: 2019-02-12 | L31: 180
A32: 25 | B32: custos de divulgação | C32: AZUL CONSULTORIA EM PROPAGANDA LTDA | D32: 08.160.849/0001-34 | G32: 850033 | H32: 2019-02-19 | I32: NF 0453 | J32: 2019-02-15 | L32: 3284.75
A33: 26 | B33: custos de administração | C33: COR E TAL OFICINAS DE ARTE E EVENTOS LTDA | D33: 10.875.118/0001-17 | G33: 850034 | H33: 2019-02-27 | I33: NF 1179 | J33: 2019-02-27 | L33: 3519.37
A34: 27 | B34: custos de divulgação | C34: GALEANO INFORMATICA LTDA - ME | D34: 15.915.752/0001-50 | G34: 850035 | H34: 2019-03-07 | I34: NF 1079 | J34: 2019-03-06 | L34: 2000
A35: 28 | B35: custos de administração | C35: JOSIANE NACAMUTA - ME | D35: 01.742.102/0001-45 | G35: 850036 | H35: 2019-03-07 | I35: NF 0798 | J35: 2019-03-01 | L35: 2914.2
A36: 29 | B36: advogado | C36: BRITO RODRIGUES SOCIEDADE INDIVIDUAL DE ADVOCACIA | D36: 07.641.544/0001-81 | G36: 850037 | H36: 2019-03-11 | I36: NF 0823 | J36: 2019-03-07 | L36: 1000
A37: 30 | B37: contador | C37: ATIVA CONTABIL S/S | D37: 49.501.679/0001-91 | G37: 850038 | H37: 2019-03-12 | I37: NF 0568 | J37: 2019-02-28 | L37: 954
A38: 31 | B38: custos de administração | C38: TELEFONICA BRASIL S.A | D38: 02.558.157/0001-62 | G38: 850039 | H38: 2019-03-14 | I38: ND 42/2019 | J38: 2019-03-12 | L38: 180
A39: 32 | B39: Coordenação geral | C39: SECRETARIA DA RECEITA FEDERAL DO BRASIL | G39: 850040 | H39: 2019-03-18 | I39: DARF 1708 NF 1174 | J39: 2019-03-18 | L39: 86.25
A40: 33 | B40: Coordenação geral | C40: SECRETARIA DA RECEITA FEDERAL DO BRASIL | G40: 850041 | H40: 2019-03-18 | I40: DARF 5952 NF 1174 | J40: 2019-03-18 | L40: 267.38
A41: 34 | B41: custos de administração | C41: SECRETARIA DA RECEITA FEDERAL DO BRASIL | G41: 850042 | H41: 2019-03-18 | I41: DARF 1708 NF 1176 | J41: 2019-03-18 | L41: 53.58
A42: 35 | B42: custos de administração | C42: SECRETARIA DA RECEITA FEDERAL DO BRASIL | G42: 850043 | H42: 2019-03-18 | I42: DARF 5952 NF 1176 | J42: 2019-03-18 | L42: 166.11
A43: 36 | B43: custos de divulgação | C43: SECRETARIA DA RECEITA FEDERAL DO BRASIL | G43: 850044 | H43: 2019-03-18 | I43: DARF 1708 NF 0453 | J43: 2019-03-18 | L43: 52.5
A44: 37 | B44: custos de divulgação | C44: SECRETARIA DA RECEITA FEDERAL DO BRASIL | G44: 850045 | H44: 2019-03-18 | I44: DARF 5952 NF 0453 | J44: 2019-03-18 | L44: 162.75
A45: 38 | B45: custos de administração | C45: SECRETARIA DA RECEITA FEDERAL DO BRASIL | G45: 850046 | H45: 2019-03-18 | I45: DARF 1708 NF 1179 | J45: 2019-03-18 | L45: 56.25
A46: 39 | B46: custos de administração | C46: SECRETARIA DA RECEITA FEDERAL DO BRASIL | G46: 850047 | H46: 2019-03-18 | I46: DARF 5952 NF 1179 | J46: 2019-03-18 | L46: 174.38
A47: 40 | B47: coodenação geral | C47: COR E TAL OFICINAS DE ARTE E EVENTOS LTDA | D47: 10.875.118/0001-17 | G47: 850048 | H47: 2019-03-19 | I47: NF 1189 | J47: 2019-03-18 | L47: 5396.37
A48: SUBTOTAL | L48: =SUM(L8:L47) -> 295900.5 | M48: -766284.44 | N48: =SUM(L48:M48) -> -470383.94
A49: =+'ANEXO II '!A50 -> LOCAL - DATA :SÃO PAULO, _________/____________/____________ | D49: - NOME E ASSINATURA DO RESPONSÁVEL: WOLF VEL KOS TRAMBUCH | N49: 476000 | O49: OFICIOS
N50: =SUM(N48:N49) -> 5616.06 | O50: DIFERENÇA
A51: 41 | B51: custos de administração | C51: COR E TAL OFICINAS DE ARTE E EVENTOS LTDA | D51: 10.875.118/0001-17 | G51: 850049 | H51: 2019-03-19 | I51: NF 1191 | J51: 2019-03-18 | L51: 3519.37
A52: 42 | B52: coordenação artistica | C52: COR E TAL OFICINAS DE ARTE E EVENTOS LTDA | D52: 10.875.118/0001-17 | G52: 850050 | H52: 2019-03-19 | I52: NF 1192 | J52: 2019-03-18 | L52: 5631
A53: 43 | B53: arte educador | C53: COR E TAL OFICINAS DE ARTE E EVENTOS LTDA | D53: 10.875.118/0001-17 | G53: 850051 | H53: 2019-03-19 | I53: NF 1193 | J53: 2019-03-18 | L53: 18019.2
A54: 44 | B54: custos de divulgação | C54: AZUL CONSULTORIA EM PROPAGANDA LTDA | D54: 08.160.849/0001-34 | G54: 850052 | H54: 2019-03-19 | I54: NF 0456 | J54: 2019-03-13 | L54: 3284.75
A55: 45 | B55: contador | C55: ATIVA CONTABIL S/S | D55: 49.501.679/0001-91 | G55: 850053 | H55: 2019-04-04 | I55: NF 0602 | J55: 2019-03-29 | L55: 954
A56: 46 | B56: advogado | C56: BRITO RODRIGUES SOCIEDADE INDIVIDUAL DE ADVOCACIA | D56: 07.641.544/0001-81 | G56: 850054 | H56: 2019-04-05 | I56: NF 0832 | J56: 2019-04-03 | L56: 1000
A57: 47 | B57: custos de divulgação | C57: GALEANO INFORMATICA LTDA - ME | D57: 15.915.752/0001-50 | G57: 850055 | H57: 2019-04-09 | I57: NF 1093 | J57: 2019-04-04 | L57: 2000
A58: 48 | B58: custos de administração | C58: JOSIANE NACAMUTA - ME | D58: 01.742.102/0001-45 | G58: 850056 | H58: 2019-04-09 | I58: NF 0815 | J58: 2019-04-04 | L58: 2914.2
A59: 49 | B59: coordenação artistica | C59: COR E TAL OFICINAS DE ARTE E EVENTOS LTDA | D59: 10.875.118/0001-17 | G59: 850057 | H59: 2019-04-11 | I59: NF 1202 | J59: 2019-04-11 | L59: 5631
A60: 50 | B60: custos de administração | C60: COR E TAL OFICINAS DE ARTE E EVENTOS LTDA | D60: 10.875.118/0001-17 | G60: 850058 | H60: 2019-04-11 | I60: NF 1201 | J60: 2019-04-11 | L60: 3519.37
A61: 51 | B61: coodenação geral | C61: COR E TAL OFICINAS DE ARTE E EVENTOS LTDA | D61: 10.875.118/0001-17 | G61: 850059 | H61: 2019-04-11 | I61: NF 1200 | J61: 2019-04-11 | L61: 5396.37
A62: 52 | B62: arte educador | C62: COR E TAL OFICINAS DE ARTE E EVENTOS LTDA | D62: 10.875.118/0001-17 | G62: 850060 | H62: 2019-04-11 | I62: NF 1203 | J62: 2019-04-11 | L62: 18019.2
A63: 53 | B63: custos de divulgação | C63: AZUL CONSULTORIA EM PROPAGANDA LTDA | D63: 08.160.849/0001-34 | G63: 850061 | H63: 2019-04-12 | I63: NF 0462 | J63: 2019-04-09 | L63: 3284.75
A64: 54 | B64: custos de administração | C64: TELEFONICA BRASIL S.A | D64: 02.558.157/0001-62 | G64: 850062 | H64: 2019-04-16 | I64: ND 61/2019 | J64: 2019-04-12 | L64: 180
A65: 55 | B65: coodenação geral | C65: SECRETARIA DA RECEITA FEDERAL DO BRASIL | G65: 850063 | H65: 2019-04-17 | I65: DARF 1708 NF 1189 | J65: 2019-04-17 | L65: 86.25
A66: 56 | B66: coodenação geral | C66: SECRETARIA DA RECEITA FEDERAL DO BRASIL | G66: 850064 | H66: 2019-04-17 | I66: DARF 5952 NF 1189 | J66: 2019-04-17 | L66: 267.38
A67: 57 | B67: custos de administração | C67: SECRETARIA DA RECEITA FEDERAL DO BRASIL | G67: 850066 | H67: 2019-04-17 | I67: DARF 5952 NF 1191 | J67: 2019-04-17 | L67: 174.38
A68: 58 | B68: custos de administração | C68: SECRETARIA DA RECEITA FEDERAL DO BRASIL | G68: 850067 | H68: 2019-04-17 | I68: DARF 1708 NF 1192 | J68: 2019-04-17 | L68: 90
A69: 59 | B69: coordenação artistica | C69: SECRETARIA DA RECEITA FEDERAL DO BRASIL | G69: 850068 | H69: 2019-04-17 | I69: DARF 5952 NF 1192 | J69: 2019-04-17 | L69: 279
A70: 60 | B70: arte educador | C70: SECRETARIA DA RECEITA FEDERAL DO BRASIL | G70: 850069 | H70: 2019-04-17 | I70: DARF 1708 NF 1193 | J70: 2019-04-17 | L70: 288
A71: 61 | B71: arte educador | C71: SECRETARIA DA RECEITA FEDERAL DO BRASIL | G71: 850070 | H71: 2019-04-17 | I71: DARF 5952 NF 1193 | J71: 2019-04-17 | L71: 892.8
A72: 62 | B72: custos de divulgação | C72: SECRETARIA DA RECEITA FEDERAL DO BRASIL | G72: 850071 | H72: 2019-04-17 | I72: DARF 1708 NF 0456 | J72: 2019-04-17 | L72: 52.5
A73: 63 | B73: custos de divulgação | C73: SECRETARIA DA RECEITA FEDERAL DO BRASIL | G73: 850072 | H73: 2019-04-17 | I73: DARF 5952 NF 0456 | J73: 2019-04-17 | L73: 162.75
A74: 64 | B74: custos de administração | C74: SECRETARIA DA RECEITA FEDERAL DO BRASIL | G74: 850073 | H74: 2019-04-17 | I74: DARF 1708 NF 1191 | J74: 2019-04-17 | L74: 56.25
A75: 65 | B75: custos de divulgação | C75: GALEANO INFORMATICA LTDA - ME | D75: 15.915.752/0001-50 | G75: 850074 | H75: 2019-05-03 | I75: NF 1108 | J75: 2019-05-03 | L75: 2000
A76: 66 | B76: custos de administração | C76: JOSIANE NACAMUTA - ME | D76: 01.742.102/0001-45 | G76: 850075 | H76: 2019-05-07 | I76: NF 0824 | J76: 2019-05-02 | L76: 2914.2
A77: 67 | B77: advogado | C77: BRITO RODRIGUES SOCIEDADE INDIVIDUAL DE ADVOCACIA | D77: 07.641.544/0001-81 | G77: 850076 | H77: 2019-05-08 | I77: NF 0843 | J77: 2019-05-06 | L77: 1000
A78: 68 | B78: custos de administração | C78: COR E TAL OFICINAS DE ARTE E EVENTOS LTDA | D78: 10.875.118/0001-17 | G78: 850077 | H78: 2019-05-13 | I78: NF 1211 | J78: 2019-05-10 | L78: 3519.37
A79: 69 | B79: coodenação geral | C79: COR E TAL OFICINAS DE ARTE E EVENTOS LTDA | D79: 10.875.118/0001-17 | G79: 850078 | H79: 2019-05-13 | I79: NF 1210 | J79: 2019-05-10 | L79: 5396.37
A80: 70 | B80: arte educador | C80: COR E TAL OFICINAS DE ARTE E EVENTOS LTDA | D80: 10.875.118/0001-17 | G80: 850079 | H80: 2019-05-13 | I80: NF 1213 | J80: 2019-05-10 | L80: 18019.2
A81: 71 | B81: coordenação artistica | C81: COR E TAL OFICINAS DE ARTE E EVENTOS LTDA | D81: 10.875.118/0001-17 | G81: 850080 | H81: 2019-05-13 | I81: NF 1212 | J81: 2019-05-10 | L81: 5631
A82: 72 | B82: contador | C82: ATIVA CONTABIL S/S | D82: 49.501.679/0001-91 | G82: 850081 | H82: 2019-05-15 | I82: NF 0637 | J82: 2019-04-30 | L82: 954
A83: 73 | B83: custos de administração | C83: TELEFONICA BRASIL S.A | D83: 02.558.157/0001-62 | G83: 850082 | H83: 2019-05-15 | I83: ND 73/2019 | J83: 2019-05-13 | L83: 180
A84: 74 | B84: coodenação geral | C84: SECRETARIA DA RECEITA FEDERAL DO BRASIL | G84: 850083 | H84: 2019-05-20 | I84: DARF 1708 NF 1200 | J84: 2019-05-20 | L84: 86.25
A85: 75 | B85: coodenação geral | C85: SECRETARIA DA RECEITA FEDERAL DO BRASIL | G85: 850084 | H85: 2019-05-20 | I85: DARF 5952 NF 1200 | J85: 2019-05-20 | L85: 267.38
A86: 76 | B86: custos de administração | C86: SECRETARIA DA RECEITA FEDERAL DO BRASIL | G86: 850085 | H86: 2019-05-20 | I86: DARF 1708 NF 1201 | J86: 2019-05-20 | L86: 56.25
A87: 77 | B87: custos de administração | C87: SECRETARIA DA RECEITA FEDERAL DO BRASIL | G87: 850086 | H87: 2019-05-20 | I87: DARF 5952 NF 1201 | J87: 2019-05-20 | L87: 174.38
A88: 78 | B88: coordenação artistica | C88: SECRETARIA DA RECEITA FEDERAL DO BRASIL | G88: 850087 | H88: 2019-05-20 | I88: DARF 1708 NF 1202 | J88: 2019-05-20 | L88: 90
A89: 79 | B89: coordenação artistica | C89: SECRETARIA DA RECEITA FEDERAL DO BRASIL | G89: 850088 | H89: 2019-05-20 | I89: DARF 5952 NF 1202 | J89: 2019-05-20 | L89: 279
A90: 80 | B90: arte educador | C90: SECRETARIA DA RECEITA FEDERAL DO BRASIL | G90: 850089 | H90: 2019-05-20 | I90: DARF 1708 NF 1203 | J90: 2019-05-20 | L90: 288
A91: 81 | B91: arte educador | C91: SECRETARIA DA RECEITA FEDERAL DO BRASIL | G91: 850090 | H91: 2019-05-20 | I91: DARF 5952 NF 1203 | J91: 2019-05-20 | L91: 892.8
A92: 82 | B92: custos de divulgação | C92: SECRETARIA DA RECEITA FEDERAL DO BRASIL | G92: 850091 | H92: 2019-05-20 | I92: DARF 1708 NF 0462 | J92: 2019-05-20 | L92: 52.5
A93: 83 | B93: custos de divulgação | C93: SECRETARIA DA RECEITA FEDERAL DO BRASIL | G93: 850092 | H93: 2019-05-20 | I93: DARF 5952 NF 0462 | J93: 2019-05-20 | L93: 162.75
A94: 84 | B94: Tradução | C94: VERTICE TRADUÇÕES TECNICAS LTDA | D94: 06.093.781/0001-92 | G94: 850093 | H94: 2019-05-21 | I94: NF 3749 | J94: 2019-05-08 | L94: 4000
A95: TOTAL | L95: =SUM(L48:L94) -> 417566.47 | M95: -891700.53 | N95: =SUM(L95:M95) -> -474134.06
A96: =+A49 -> LOCAL - DATA :SÃO PAULO, _________/____________/____________ | F96: NOME E ASSINATURA DO RESPONSÁVEL: WOLF VEL KOS TRAMBUCH | N96: 476000 | O96: OFICIOS
N97: =SUM(N95:N96) -> 1865.94 | O97: DIFERENÇA
A98: 85 | B98: custos de divulgação | C98: AZUL CONSULTORIA EM PROPAGANDA LTDA | D98: 01.742.102/0001-45 | G98: 850094 | H98: 2019-05-21 | I98: NF 0469 | J98: 2019-05-20 | L98: 3284.75
A99: 86 | B99: designer | C99: FRANCESCO GOSCIOLA JUNIOR | D99: 25.982.303/0001-88 | G99: 850095 | H99: 2019-05-29 | I99: NF 0010 | J99: 2019-05-28 | L99: 4000
A100: 87 | B100: fotografia | C100: SAT 5 CENA E TAKE 1 PRODUÇÕES ARTISTICAS LTDA | D100: 06.181.012/0001-46 | G100: 850096 | H100: 2019-05-30 | I100: NF 0879 | J100: 2019-05-28 | L100: 20000
A101: 88 | B101: contador | C101: ATIVA CONTABIL S/S | D101: 49.501.679/0001-91 | G101: 850097 | H101: 2019-06-04 | I101: NF 0670 | J101: 2019-05-28 | L101: 954
A102: 89 | B102: custos de divulgação | C102: GALEANO INFORMATICA LTDA - ME | D102: 15.915.752/0001-50 | G102: 850098 | H102: 2019-06-07 | I102: NF 1123 | J102: 2019-06-05 | L102: 2000
A103: 90 | B103: custos de administração | C103: JOSIANE NACAMUTA - ME | D103: 01.742.102/0001-45 | G103: 850099 | H103: 2019-06-07 | I103: NF 0841 | J103: 2019-06-05 | L103: 2914.2
A104: 91 | B104: advogado | C104: BRITO RODRIGUES SOCIEDADE INDIVIDUAL DE ADVOCACIA | D104: 07.641.544/0001-81 | G104: 850100 | H104: 2019-06-10 | I104: NF 0851 | J104: 2019-06-06 | L104: 1000
A105: 92 | B105: coodenação geral | C105: SECRETARIA DA RECEITA FEDERAL DO BRASIL | G105: 850101 | H105: 2019-06-10 | I105: DARF 1708 NF 1210 | J105: 2019-06-10 | L105: 86.25
A106: 93 | B106: coodenação geral | C106: SECRETARIA DA RECEITA FEDERAL DO BRASIL | G106: 850102 | H106: 2019-06-10 | I106: DARF 5952 NF 1210 | J106: 2019-06-10 | L106: 267.38
A107: 94 | B107: custos de administração | C107: SECRETARIA DA RECEITA FEDERAL DO BRASIL | G107: 850103 | H107: 2019-06-10 | I107: DARF 1708 NF 1211 | J107: 2019-06-10 | L107: 56.25
A108: 95 | B108: custos de administração | C108: SECRETARIA DA RECEITA FEDERAL DO BRASIL | G108: 850104 | H108: 2019-06-10 | I108: DARF 5952 NF 1211 | J108: 2019-06-10 | L108: 174.38
A109: 96 | B109: coordenação artistica | C109: SECRETARIA DA RECEITA FEDERAL DO BRASIL | G109: 850105 | H109: 2019-06-10 | I109: DARF 1708 NF 1212 | J109: 2019-06-10 | L109: 90
A110: 97 | B110: arte educador | C110: SECRETARIA DA RECEITA FEDERAL DO BRASIL | G110: 850107 | H110: 2019-06-10 | I110: DARF 1708 NF 1213 | J110: 2019-06-10 | L110: 288
A111: 98 | B111: custos de divulgação | C111: SECRETARIA DA RECEITA FEDERAL DO BRASIL | G111: 850109 | H111: 2019-06-10 | I111: DARF 1708 NF 0469 | J111: 2019-06-10 | L111: 52.5
A112: 99 | B112: custos de divulgação | C112: SECRETARIA DA RECEITA FEDERAL DO BRASIL | G112: 850110 | H112: 2019-06-10 | I112: DARF 5952 NF 0469 | J112: 2019-06-10 | L112: 162.75
A113: 100 | B113: coordenação artistica | C113: SECRETARIA DA RECEITA FEDERAL DO BRASIL | G113: 850111 | H113: 2019-06-10 | I113: DARF 5952 NF 1212 | J113: 2019-06-10 | L113: 279
A114: 101 | B114: arte educador | C114: SECRETARIA DA RECEITA FEDERAL DO BRASIL | G114: 850112 | H114: 2019-06-17 | I114: DARF 5952 NF 1213 | J114: 2019-06-17 | L114: 892.8
A115: 102 | B115: custos de administração | C115: TELEFONICA BRASIL S.A | D115: 02.558.157/0001-62 | G115: 850113 | H115: 2019-06-17 | I115: ND 86/2019 | J115: 2019-06-12 | L115: 180
A116: 103 | B116: custos de divulgação | C116: AZUL CONSULTORIA EM PROPAGANDA LTDA | D116: 08.160.849/0001-34 | G116: 850114 | H116: 2019-06-17 | I116: NF 0472 | J116: 2019-06-12 | L116: 3284.75
A117: 104 | B117: designer | C117: FRANCESCO GOSCIOLA JUNIOR | D117: 25.982.303/0001-88 | G117: 850115 | H117: 2019-06-17 | I117: NF 0011 | J117: 2019-06-12 | L117: 4000
A118: 105 | B118: coodenação geral | C118: COR E TAL OFICINAS DE ARTE E EVENTOS LTDA | D118: 10.875.118/0001-17 | G118: 850116 | H118: 2019-06-18 | I118: NF 1221 | J118: 2019-06-17 | L118: 5396.37
A119: 106 | B119: custos de administração | C119: COR E TAL OFICINAS DE ARTE E EVENTOS LTDA | D119: 10.875.118/0001-17 | G119: 850017 | H119: 2019-06-18 | I119: NF 1222 | J119: 2019-06-17 | L119: 3519.37
A120: 107 | B120: coordenação artistica | C120: COR E TAL OFICINAS DE ARTE E EVENTOS LTDA | D120: 10.875.118/0001-17 | G120: 850118 | H120: 2019-06-18 | I120: NF 1223 | J120: 2019-06-17 | L120: 5631
A121: 108 | B121: arte educador | C121: COR E TAL OFICINAS DE ARTE E EVENTOS LTDA | D121: 10.875.118/0001-17 | G121: 850119 | H121: 2019-06-18 | I121: NF 1224 | J121: 2019-06-17 | L121: 18019.2
A122: 109 | B122: Cenografia/material/confecção | C122: BRIC A BRAC DECORAÇÕES LTDA | D122: 48.608.020/0001-76 | G122: 850141 | H122: 2019-06-18 | I122: NF 0039 | J122: 2019-06-18 | L122: 1900
A123: 110 | B123: Ficha Catalográfica e ISBN | C123: FUNDAÇÃO MIGUEL DE CERVANTES | D123: 05.214.413/0001-92 | G123: 850142 | H123: 2019-06-18 | I123: TRANSAÇÃO 0596 | J123: 2019-06-18 | L123: 22
A124: 111 | B124: contador | C124: ATIVA CONTABIL S/S | D124: 49.501.679/0001-91 | G124: 850144 | H124: 2019-07-02 | I124: NF 0695 | J124: 2019-06-27 | L124: 954
A125: 112 | B125: advogado | C125: BRITO RODRIGUES SOCIEDADE INDIVIDUAL DE ADVOCACIA | D125: 07.641.544/0001-81 | G125: 850145 | H125: 2019-07-04 | I125: NF 0864 | J125: 2019-07-03 | L125: 1000
A126: 113 | B126: custos de divulgação | C126: GALEANO INFORMATICA LTDA - ME | D126: 15.915.752/0001-50 | G126: 850146 | H126: 2019-07-04 | I126: NF 1138 | J126: 2019-07-03 | L126: 2000
A127: 114 | B127: custos de administração | C127: JOSIANE NACAMUTA - ME | D127: 01.742.102/0001-45 | G127: 850147 | H127: 2019-07-05 | I127: NF 0855 | J127: 2019-07-03 | L127: 2914.2
A128: 115 | B128: designer | C128: FRANCESCO GOSCIOLA JUNIOR | D128: 25.982.303/0001-88 | G128: 850148 | H128: 2019-07-05 | I128: NF 0012 | J128: 2019-07-04 | L128: 4000
A129: 116 | B129: custos de divulgação | C129: AZUL CONSULTORIA EM PROPAGANDA LTDA | D129: 08.160.849/0001-34 | G129: 850149 | H129: 2019-07-12 | I129: NF 0475 | J129: 2019-07-07 | L129: 3284.75
A130: 117 | B130: coodenação geral | C130: COR E TAL OFICINAS DE ARTE E EVENTOS LTDA | D130: 10.875.118/0001-17 | G130: 850150 | H130: 2019-07-16 | I130: NF 1232 | J130: 2019-07-12 | L130: 5396.37
A131: 118 | B131: custos de administração | C131: COR E TAL OFICINAS DE ARTE E EVENTOS LTDA | D131: 10.875.118/0001-17 | G131: 850151 | H131: 2019-07-16 | I131: NF 1233 | J131: 2019-07-12 | L131: 3519.37
A132: 119 | B132: custos de administração | C132: TELEFONICA BRASIL S.A | D132: 02.558.157/0001-62 | G132: 850152 | H132: 2019-07-16 | I132: ND 106/2019 | J132: 2019-07-12 | L132: 180
A133: 120 | B133: coordenação artistica | C133: COR E TAL OFICINAS DE ARTE E EVENTOS LTDA | D133: 10.875.118/0001-17 | G133: 850153 | H133: 2019-07-17 | I133: DARF 1708 NF 1223 | J133: 2019-07-17 | L133: 90
A134: 121 | B134: coordenação artistica | C134: COR E TAL OFICINAS DE ARTE E EVENTOS LTDA | D134: 10.875.118/0001-17 | G134: 850154 | H134: 2019-07-17 | I134: DARF 5952 NF 1223 | J134: 2019-07-17 | L134: 279
A135: 122 | B135: custos de administração | C135: COR E TAL OFICINAS DE ARTE E EVENTOS LTDA | D135: 10.875.118/0001-17 | G135: 850155 | H135: 2019-07-17 | I135: DARF 1708 NF 1222 | J135: 2019-07-17 | L135: 56.25
A136: 123 | B136: custos de administração | C136: COR E TAL OFICINAS DE ARTE E EVENTOS LTDA | D136: 10.875.118/0001-17 | G136: 850156 | H136: 2019-07-17 | I136: DARF 5952 NF 1222 | J136: 2019-07-17 | L136: 174.38
A137: 124 | B137: coodenação geral | C137: COR E TAL OFICINAS DE ARTE E EVENTOS LTDA | D137: 10.875.118/0001-17 | G137: 850157 | H137: 2019-07-17 | I137: DARF 1708 NF 1221 | J137: 2019-07-17 | L137: 86.25
A138: 125 | B138: coodenação geral | C138: COR E TAL OFICINAS DE ARTE E EVENTOS LTDA | D138: 10.875.118/0001-17 | G138: 850158 | H138: 2019-07-17 | I138: DARF 5952 NF 1221 | J138: 2019-07-17 | L138: 267.38
A139: 126 | B139: arte educador | C139: COR E TAL OFICINAS DE ARTE E EVENTOS LTDA | D139: 10.875.118/0001-17 | G139: 850159 | H139: 2019-07-17 | I139: DARF 1708 NF 1224 | J139: 2019-07-17 | L139: 288
A140: 127 | B140: arte educador | C140: COR E TAL OFICINAS DE ARTE E EVENTOS LTDA | D140: 10.875.118/0001-17 | G140: 850160 | H140: 2019-07-17 | I140: DARF 5952 NF 1224 | J140: 2019-07-17 | L140: 892.8
M141: ENCARGOS
A142: TOTAL | L142: =SUM(L95:L141) -> 521404.17 | M142: -998418.93 | N142: =SUM(L142:M142) -> -477014.76
A143: =+A96 -> LOCAL - DATA :SÃO PAULO, _________/____________/____________ | F143: NOME E ASSINATURA DO RESPONSÁVEL: WOLF VEL KOS TRAMBUCH | N143: 476000 | O143: OFICIOS
N144: =SUM(N142:N143) -> -1014.76 | O144: IMPOSTO
A145: 128 | B145: custos de divulgação | C145: SECRETARIA DA RECEITA FEDERAL DO BRASIL | G145: 850122 | H145: 2019-07-19 | I145: DARF 5952 NF 0472 | J145: 2019-07-19 | L145: 162.75
A146: 129 | B146: custos de divulgação | C146: SECRETARIA DA RECEITA FEDERAL DO BRASIL | G146: 850123 | H146: 2019-07-19 | I146: DARF 1708 NF | J146: 2019-07-19 | L146: 52.5
A147: 130 | B147: contador | C147: ATIVA CONTABIL S/S | D147: 49.501.679/0001-91 | G147: 850124 | H147: 2019-08-05 | I147: NF 0730 | J147: 2019-07-26 | L147: 954
A148: 131 | B148: custos de divulgação | C148: GALEANO INFORMATICA LTDA - ME | D148: 15.915.752/0001-50 | G148: 850125 | H148: 2019-08-05 | I148: NF 1155 | J148: 2019-08-01 | L148: 2000
A149: 132 | B149: custos de divulgação | C149: AZUL CONSULTORIA EM PROPAGANDA LTDA | D149: 08.160.849/0001-34 | G149: 850126 | H149: 2019-08-08 | I149: NF 0003 | J149: 2019-08-05 | L149: 3284.75
A150: 133 | B150: advogado | C150: BRITO RODRIGUES SOCIEDADE INDIVIDUAL DE ADVOCACIA | D150: 07.641.544/0001-81 | G150: 850127 | H150: 2019-08-08 | I150: NF 0874 | J150: 2019-08-05 | L150: 1000
A151: 134 | B151: custos de administração | C151: JOSIANE NACAMUTA - ME | D151: 01.742.102/0001-45 | G151: 850128 | H151: 2019-08-08 | I151: NF 0870 | J151: 2019-08-02 | L151: 2914.2
A152: 135 | B152: custos de administração | C152: TELEFONICA BRASIL S.A | D152: 02.558.157/0001-62 | G152: 850129 | H152: 2019-08-15 | I152: ND 123/2019 | J152: 2019-08-13 | L152: 180
A153: 136 | B153: coodenação geral | C153: COR E TAL OFICINAS DE ARTE E EVENTOS LTDA | D153: 10.875.118/0001-17 | G153: 850130 | H153: 2019-08-19 | I153: NF 1244 | J153: 2019-08-15 | L153: 5396.37
A154: 137 | B154: custos de administração | C154: COR E TAL OFICINAS DE ARTE E EVENTOS LTDA | D154: 10.875.118/0001-17 | G154: 850131 | H154: 2019-08-19 | I154: NF 1247 | J154: 2019-08-15 | L154: 3519.37
A155: 138 | B155: coodenação geral | C155: SECRETARIA DA RECEITA FEDERAL DO BRASIL | G155: 850132 | H155: 2019-08-19 | I155: DARF 1708 NF 1232 | J155: 2019-08-19 | L155: 86.25
A156: 139 | B156: coodenação geral | C156: SECRETARIA DA RECEITA FEDERAL DO BRASIL | G156: 850133 | H156: 2019-08-19 | I156: DARF 5952 NF 1232 | J156: 2019-08-19 | L156: 267.38
A157: 140 | B157: custos de divulgação | C157: SECRETARIA DA RECEITA FEDERAL DO BRASIL | G157: 850134 | H157: 2019-08-19 | I157: DARF 1708 NF 0475 | J157: 2019-08-19 | L157: 52.5
A158: 141 | B158: custos de divulgação | C158: SECRETARIA DA RECEITA FEDERAL DO BRASIL | G158: 850135 | H158: 2019-08-19 | I158: DARF 5952 NF 0475 | J158: 2019-08-19 | L158: 162.75
A159: 142 | B159: custos de administração | C159: SECRETARIA DA RECEITA FEDERAL DO BRASIL | G159: 850137 | H159: 2019-08-19 | I159: DARF 5952 NF 1233 | J159: 2019-08-19 | L159: 174.38
A160: 143 | B160: custos de administração | C160: SECRETARIA DA RECEITA FEDERAL DO BRASIL | G160: 850138 | H160: 2019-08-19 | I160: DARF 1708 NF 0003 | J160: 2019-08-19 | L160: 52.5
A161: 144 | B161: custos de divulgação | C161: SECRETARIA DA RECEITA FEDERAL DO BRASIL | G161: 850139 | H161: 2019-08-19 | I161: DARF 5952 NF 0003 | J161: 2019-08-19 | L161: 162.75
A162: 145 | B162: custos de divulgação | C162: SECRETARIA DA RECEITA FEDERAL DO BRASIL | G162: 850140 | H162: 2019-08-19 | I162: DARF 1708 NF 1233 | J162: 2019-08-19 | L162: 56.25
A163: 146 | B163: coodenação geral | C163: SECRETARIA DA RECEITA FEDERAL DO BRASIL | G163: 850181 | H163: 2019-08-20 | I163: DARF 1708 NF 1244 | J163: 2019-08-20 | L163: 86.25
A164: 147 | B164: coodenação geral | C164: SECRETARIA DA RECEITA FEDERAL DO BRASIL | G164: 850182 | H164: 2019-08-20 | I164: DARF 5952 NF 1244 | J164: 2019-08-20 | L164: 267.38
A165: 148 | B165: custos de administração | C165: SECRETARIA DA RECEITA FEDERAL DO BRASIL | G165: 850183 | H165: 2019-08-20 | I165: DARF 1708 NF 1247 | J165: 2019-08-20 | L165: 56.25
A166: 149 | B166: custos de administração | C166: SECRETARIA DA RECEITA FEDERAL DO BRASIL | G166: 850184 | H166: 2019-08-20 | I166: DARF 5952 NF 1247 | J166: 2019-08-20 | L166: 174.38
A167: 150 | B167: contador | C167: ATIVA CONTABIL S/S | D167: 49.501.679/0001-91 | G167: 850186 | H167: 2019-09-03 | I167: NF 0763 | J167: 2019-08-26 | L167: 954
A168: 151 | B168: custos de divulgação | C168: GALEANO INFORMATICA LTDA - ME | D168: 15.915.752/0001-50 | G168: 850187 | H168: 2019-09-04 | I168: NF 1172 | J168: 2019-09-03 | L168: 2000
A169: 152 | B169: custos de administração | C169: JOSIANE NACAMUTA - ME | D169: 01.742.102/0001-45 | G169: 850188 | H169: 2019-09-04 | I169: NF 0878 | J169: 2019-09-02 | L169: 2914.2
A170: 153 | B170: custos de divulgação | C170: SECRETARIA MUNICIPAL DA FAZENDA | G170: 850191 | H170: 2019-09-06 | I170: DAMSP NF 10 | J170: 2019-09-06 | L170: 175
A171: 154 | B171: coodenação geral | C171: COR E TAL OFICINAS DE ARTE E EVENTOS LTDA | D171: 10.875.118/0001-17 | G171: 850192 | H171: 2019-09-06 | I171: NF 1262 | J171: 2019-09-05 | L171: 5396.37
A172: 155 | B172: custos de administração | C172: COR E TAL OFICINAS DE ARTE E EVENTOS LTDA | D172: 10.875.118/0001-17 | G172: 850193 | H172: 2019-09-06 | I172: NF 1263 | J172: 2019-09-05 | L172: 3519.37
A173: 156 | B173: custos de divulgação | C173: COR E TAL OFICINAS DE ARTE E EVENTOS LTDA | D173: 10.875.118/0001-17 | G173: 850194 | H173: 2019-09-06 | I173: NF 1270 | J173: 2019-09-05 | L173: 3284.75
A174: 157 | B174: interpretes de libras | C174: COR E TAL OFICINAS DE ARTE E EVENTOS LTDA | D174: 10.875.118/0001-17 | G174: 850195 | H174: 2019-09-06 | I174: NF 1267 | J174: 2019-09-05 | L174: 3003.2
A175: 158 | B175: montagem e desmontagem | C175: COR E TAL OFICINAS DE ARTE E EVENTOS LTDA | D175: 10.875.118/0001-17 | G175: 850196 | H175: 2019-09-06 | I175: NF 1268 | J175: 2019-09-05 | L175: 2346.25
A176: 159 | B176: Projeto cenográfico | C176: COR E TAL OFICINAS DE ARTE E EVENTOS LTDA | D176: 10.875.118/0001-17 | G176: 850197 | H176: 2019-09-06 | I176: NF 1269 | J176: 2019-09-05 | L176: 5631
A177: 160 | B177: custos de divulgação | C177: COR E TAL OFICINAS DE ARTE E EVENTOS LTDA | D177: 10.875.118/0001-17 | G177: 850198 | H177: 2019-09-06 | I177: NF 1271 | J177: 2019-09-05 | L177: 2395.05
A178: 161 | B178: curador | C178: COR E TAL OFICINAS DE ARTE E EVENTOS LTDA | D178: 10.875.118/0001-17 | G178: 850199 | H178: 2019-09-06 | I178: NF 1272 | J178: 2019-09-05 | L178: 14077.5
A179: 162 | B179: custos de divulgação | C179: AZUL CONSULTORIA EM PROPAGANDA LTDA | D179: 08.160.849/0001-34 | G179: 850190 | H179: 2019-09-06 | I179: NF 0010 | J179: 2019-09-04 | L179: 3109.75
A180: 163 | B180: Locação de Equipamento de projeção | C180: SAT 5 CENA E TAKE 1 PRODUÇÕES ARTISTICAS LTDA | D180: 06.181.012/0001-46 | G180: 850161 | H180: 2019-09-11 | I180: NF 0901 | J180: 2019-09-06 | L180: 3000
A181: 164 | B181: Locação de Espaço para Exposição | C181: FUNDAÇÃO MEMORIAL DA AMÉRICA LATINA | D181: 61.571.923/0001-98 | G181: 850162 | H181: 2019-09-12 | J181: 2019-09-12 | L181: 7500
A182: 165 | B182: advogado | C182: BRITO RODRIGUES SOCIEDADE INDIVIDUAL DE ADVOCACIA | D182: 07.641.544/0001-81 | G182: 850189 | H182: 2019-09-13 | I182: NF 0883 | J182: 2019-09-03 | L182: 1000
A183: 166 | B183: Transporte de material | C183: JOSE EDUARDO SILVA DARIS | D183: 24.256.835/0001-75 | G183: 850164 | H183: 2019-09-16 | I183: NF 0019 | J183: 2019-09-13 | L183: 2400
A184: 167 | B184: custos de administração | C184: TELEFONICA BRASIL S.A | D184: 02.558.157/0001-62 | G184: 850163 | H184: 2019-09-17 | I184: ND 136/2019 | J184: 2019-09-12 | L184: 180
A185: 168 | B185: custos de divulgação | C185: AZUL CONSULTORIA EM PROPAGANDA LTDA | D185: 08.160.849/0001-34 | G185: 850165 | H185: 2019-09-17 | I185: NF 11 | J185: 2019-09-13 | L185: 16893
A186: 169 | B186: custos de administração | C186: JOSIANE NACAMUTA - ME | D186: 01.742.102/0001-45 | G186: 850200 | H186: 2019-09-17 | I186: NF 0890 | J186: 2019-09-16 | L186: 370
A187: 170 | B187: Locação de mobiliario | C187: NOVA IDEAL EVENTOS LTDA | D187: 06.086.217/0001-42 | G187: 850167 | H187: 2019-09-19 | I187: ND 151 | J187: 2019-09-16 | L187: 2500
A189: TOTAL | L189: =SUM(L142:L188) -> 625116.57
A190: =+A143 -> LOCAL - DATA :SÃO PAULO, _________/____________/____________ | F190: NOME E ASSINATURA DO RESPONSÁVEL: WOLF VEL KOS TRAMBUCH
A192: 171 | B192: custos de divulgação | C192: W PRINT SOLUTION GRÁFICA LTDA ME | D192: 28.442.773/0001-47 | G192: 850170 | H192: 2019-09-19 | I192: NF 0626 | J192: 2019-09-17 | L192: 1400
A193: 172 | B193: custos de divulgação | C193: W PRINT SOLUTION GRÁFICA LTDA ME | D193: 28.442.773/0001-47 | G193: 850171 | H193: 2019-09-19 | I193: NF 0042 | J193: 2019-09-18 | L193: 2500
A194: 173 | B194: custos de divulgação | C194: W PRINT SOLUTION GRÁFICA LTDA ME | D194: 28.442.773/0001-47 | G194: 850172 | H194: 2019-09-19 | I194: NF 0627 | J194: 2019-09-17 | L194: 6000
A195: 174 | B195: custos de divulgação | C195: W PRINT SOLUTION GRÁFICA LTDA ME | D195: 28.442.773/0001-47 | G195: 850173 | H195: 2019-09-19 | I195: NF 0625 | J195: 2019-09-17 | L195: 3500
A196: 175 | B196: impressão em braile | C196: FABRICIO MIRANDA DE LA O | D196: 23.556.325/0001-50 | G196: 850174 | H196: 2019-09-19 | I196: NF 0010 | J196: 2019-09-18 | L196: 9000
A197: 176 | B197: aluguel de onibus | C197: UNIVERSO EXPRESS LTDA | D197: 03.215.940/0001-96 | G197: 92001 | H197: 2019-09-20 | I197: NF 0612 | J197: 2019-09-20 | L197: 1650.6
A198: 177 | B198: embalagem e acondicionamento para a exposição | C198: FABRICIO MIRANDA DE LA O | D198: 23.556.325/0001-50 | G198: 850175 | H198: 2019-09-20 | I198: NF 0008 | J198: 2019-09-18 | L198: 2200
A199: 178 | B199: adesivos | C199: NOVA IDEAL EVENTOS LTDA | D199: 06.086.217/0001-42 | G199: 850166 | H199: 2019-09-19 | I199: NF 0677 | J199: 2019-09-17 | L199: 2200
A200: 179 | B200: aluguel de onibus | C200: MINISTÉRIO DA PREVIDENCIA SOCIAL | G200: 850177 | H200: 2019-09-25 | I200: GPS NF 0612 | J200: 2019-09-25 | L200: 59.4
A201: 180 | B201: aluguel de onibus | C201: SECRETARIA DA RECEITA FEDERAL DO BRASIL | G201: 850176 | H201: 2019-09-25 | I201: ISS NF 0612 | J201: 2019-09-25 | L201: 90
A202: 181 | B202: custos de divulgação | C202: SECRETARIA DA RECEITA FEDERAL DO BRASIL | G202: 92701 | H202: 2019-09-27 | I202: DARF 1708 NF 11 | J202: 2019-09-27 | L202: 270
A203: 182 | B203: custos de divulgação | C203: SECRETARIA DA RECEITA FEDERAL DO BRASIL | G203: 92702 | H203: 2019-09-27 | I203: DARF 5952 NF 11 | J203: 2019-09-27 | L203: 837
... 34 more rows

Sheet Planilha1

Sheet Planilha2

Sheet 1.1
A1: =+'itens projetos'!B5 -> Coordenação artistica | I1: ='itens projetos'!C5 -> 11160
A2: VERBA | B2: VR. NOTA | C2: N º CHEQUE | D2: DATA DA SAÍDA | E2: DESCRIÇÃO DA SAÍDA | F2: NF | G2: DATA DA NOTA | H2: QTDADE
A3: =+'itens projetos'!I5 -> 24000 | B3: 6000 | C3: 850050 | D3: 2019-03-19 | E3: COR E TAL OFICINAS DE ARTE E EVENTOS LTDA | F3: NF 1192 | G3: 2019-03-18 | H3: 2
B4: 6000 | C4: 850057 | D4: 2019-04-11 | E4: COR E TAL OFICINAS DE ARTE E EVENTOS LTDA | F4: NF 1202 | G4: 2019-04-11 | H4: 2
B5: 6000 | C5: 850080 | D5: 2019-05-13 | E5: COR E TAL OFICINAS DE ARTE E EVENTOS LTDA | F5: NF 1212 | G5: 2019-05-10 | H5: 2
B6: 6000 | C6: 850118 | D6: 2019-06-18 | E6: COR E TAL OFICINAS DE ARTE E EVENTOS LTDA | F6: NF 1223 | G6: 2019-06-17 | H6: 2
A10: =SUM(A3:A9) -> 24000 | B10: =SUM(B3:B9) -> 24000
A11: SALDO | B11: =+A3-B10 -> 0
A15: COTAÇÃO DE MATERIAIS E SERVIÇOS
G18: 1 - Fornecedor | I18: 2 - Fornecedor | K18: 3 - Fornecedor
A19: =+'itens projetos'!A2:M2 -> MARYSIA PORTINARI - UNIVERSO PRÉ-EXISTENTE - PRONAC: 182445 | G19: AZUL CONSULTORIA | I19: LUPA CLIPPING | K19: LUCKY
G20: CNPJ: 08.160.849/0001-34 | I20: CNPJ: 01.379.084/0001-89 | K20: CNPJ: 00.265.815/0001-00
A21: QTDE | B21: UNI | C21: COD | D21: DESCRIÇÃO DO MATERIAL | G21: V. UNI | H21: V. TOTAL | I21: V. UNI | J21: V. TOTAL | K21: V. UNI | L21: V. TOTAL
A22: 1 | B22: 1 | C22: 32 | D22: CUSTO DE DIVULGAÇÃO - MIDIA IMPRESSA | G22: 18000 | H22: 18000 | I22: 19900 | J22: 19900 | K22: 21800 | L22: 21800
H27: =A27*G27 -> 0 | J27: =I27*A27 -> 0 | L27: =K27*A27 -> 0
H28: 0 | J28: 0 | L28: 0
H29: 0 | J29: 0 | L29: 0
H30: 0 | J30: 0 | L30: 0
H31: 0 | J31: 0 | L31: 0
H32: 0 | J32: 0 | L32: 0
H33: 0 | J33: 0 | L33: 0
H34: 0 | J34: 0 | L34: 0
H35: 0 | J35: 0 | L35: 0
H36: 0 | J36: 0 | L36: 0
H37: 0 | J37: 0 | L37: 0
H38: 0 | J38: 0 | L38: 0
H39: 0 | J39: 0 | L39: 0
H40: 0 | J40: 0 | L40: 0
H41: 0 | J41: 0 | L41: 0
H42: 0 | J42: 0 | L42: 0
H43: 0 | J43: 0 | L43: 0
H44: 0 | J44: 0 | L44: 0
H45: 0 | J45: 0 | L45: 0
H46: 0 | J46: 0 | L46: 0
H47: 0 | J47: 0 | L47: 0
H48: 0 | J48: 0 | L48: 0
H49: 0 | J49: 0 | L49: 0
H50: 0 | J50: 0 | L50: 0
H51: 0 | J51: 0 | L51: 0
H52: 0 | J52: 0 | L52: 0
H53: 0 | J53: 0 | L53: 0
A54: OBS:. | F54: TOTAIS | G54: =SUM(H22:H53) -> 18000 | I54: =SUM(J22:J53) -> 19900 | K54: =SUM(L22:L53) -> 21800
A56: DATA | G56: APROVADO
A57: 2019-01-14

Sheet 1.2
A1: =+'itens projetos'!B6 -> Aluguel de ônibus | I1: ='itens projetos'!C6 -> 11161
A2: VERBA | B2: VR. NOTA | C2: N º CHEQUE | D2: DATA DA SAÍDA | E2: DESCRIÇÃO DA SAÍDA | F2: NF | G2: DATA DA NOTA | H2: QTDADE
A3: =+'itens projetos'!I6 -> 1800 | B3: 1800 | C3: 92001 | D3: 2019-09-20 | E3: UNIVERSO EXPRESS LTDA | F3: 612 | G3: 2019-09-20 | H3: 2
A10: =SUM(A3:A9) -> 1800 | B10: =SUM(B3:B9) -> 1800
A11: SALDO | B11: =+A3-B10 -> 0
A17: COTAÇÃO DE MATERIAIS E SERVIÇOS
G20: 1 - Fornecedor | I20: 2 - Fornecedor | K20: 3 - Fornecedor
A21: =+'itens projetos'!A2:M2 -> MARYSIA PORTINARI - UNIVERSO PRÉ-EXISTENTE - PRONAC: 182445 | G21: COR E TAL | I21: GRUPO SERVSUL | K21: GRUPO SP
G22: CNPJ: 10.875.118/0001-17 | I22: CNPJ: 03.617.361/0001-70 | K22: CNPJ: 06.325.983/0001-12
A23: QTDE | B23: UNI | C23: COD | D23: DESCRIÇÃO DO MATERIAL | G23: V. UNI | H23: V. TOTAL | I23: V. UNI | J23: V. TOTAL | K23: V. UNI | L23: V. TOTAL
A24: 2 | B24: SERVIÇO | C24: 23 | D24: INTERPRETE DE LIBRAS | G24: 1600 | H24: =A24*G24 -> 3200 | I24: 3200 | J24: =I24*2 -> 6400 | K24: 2730 | L24: =K24*2 -> 5460
H25: =A25*G25 -> 0 | J25: =I25*A25 -> 0 | L25: =K25*A25 -> 0
H26: 0 | J26: 0 | L26: 0
H27: 0 | J27: 0 | L27: 0
H28: 0 | J28: 0 | L28: 0
H29: 0 | J29: 0 | L29: 0
H30: 0 | J30: 0 | L30: 0
H31: 0 | J31: 0 | L31: 0
H32: 0 | J32: 0 | L32: 0
H33: 0 | J33: 0 | L33: 0
H34: 0 | J34: 0 | L34: 0
H35: 0 | J35: 0 | L35: 0
H36: 0 | J36: 0 | L36: 0
H37: 0 | J37: 0 | L37: 0
H38: 0 | J38: 0 | L38: 0
H39: 0 | J39: 0 | L39: 0
H40: 0 | J40: 0 | L40: 0
H41: 0 | J41: 0 | L41: 0
H42: 0 | J42: 0 | L42: 0
H43: 0 | J43: 0 | L43: 0
H44: 0 | J44: 0 | L44: 0
H45: 0 | J45: 0 | L45: 0
H46: 0 | J46: 0 | L46: 0
H47: 0 | J47: 0 | L47: 0
H48: 0 | J48: 0 | L48: 0
H49: 0 | J49: 0 | L49: 0
H50: 0 | J50: 0 | L50: 0
H51: 0 | J51: 0 | L51: 0
H52: 0 | J52: 0 | L52: 0
H53: 0 | J53: 0 | L53: 0
H54: 0 | J54: 0 | L54: 0
H55: 0 | J55: 0 | L55: 0
A56: OBS:. | F56: TOTAIS | G56: =SUM(H24:H55) -> 3200 | I56: =SUM(J24:J55) -> 6400 | K56: =SUM(L24:L55) -> 5460
A58: DATA | G58: APROVADO
A59: 2019-01-14

Sheet 1.3
A1: =+'itens projetos'!B7 -> Arte educador | I1: ='itens projetos'!C7 -> 11162
A2: VERBA | B2: VR. NOTA | C2: N º CHEQUE | D2: DATA DA SAÍDA | E2: DESCRIÇÃO DA SAÍDA | F2: NF | G2: DATA DA NOTA | H2: QTDADE
A3: =+'itens projetos'!I7 -> 76800 | B3: 19200 | C3: 850051 | D3: 2019-03-19 | E3: COR E TAL OFICINAS DE ARTE E EVENTOS LTDA | F3: NF 1193 | G3: 2019-03-18 | H3: 8
B4: 19200 | C4: 850060 | D4: 2019-04-11 | E4: COR E TAL OFICINAS DE ARTE E EVENTOS LTDA | F4: NF 1203 | G4: 2019-04-11 | H4: 8
B5: 19200 | C5: 850079 | D5: 2019-05-13 | E5: COR E TAL OFICINAS DE ARTE E EVENTOS LTDA | F5: NF 1213 | G5: 2019-05-10 | H5: 8
B6: 19200 | C6: 850119 | D6: 2019-06-18 | E6: COR E TAL OFICINAS DE ARTE E EVENTOS LTDA | F6: NF 1221 | G6: 2019-06-17 | H6: 8
A15: =SUM(A3:A5) -> 76800 | B15: =SUM(B3:B14) -> 76800
A16: SALDO | B16: =A15-B15 -> 0
A19: 4800 MENSAL
A20: COTAÇÃO DE MATERIAIS E SERVIÇOS
G23: 1 - Fornecedor | I23: 2 - Fornecedor | K23: 3 - Fornecedor
A24: =+'itens projetos'!A2:M2 -> MARYSIA PORTINARI - UNIVERSO PRÉ-EXISTENTE - PRONAC: 182445 | G24: BNER | I24: COR E TAL | K24: PEOPLE
G25: CNPJ:82.344.425/0001/82 | I25: CNPJ: 10.875.118/0001-17 | K25: CNPJ: 13.933.022/0001-56
A26: QTDE | B26: UNI | C26: COD | D26: DESCRIÇÃO DO MATERIAL | G26: V. UNI | H26: V. TOTAL | I26: V. UNI | J26: V. TOTAL | K26: V. UNI | L26: V. TOTAL
A27: 9 | B27: MESES | C27: 20 | D27: COORDENAÇÃO GERAL | G27: 6200 | H27: =A27*G27 -> 55800 | I27: 5750 | J27: =I27*A27 -> 51750 | K27: 6050 | L27: =K27*A27 -> 54450
A28: 4 | B28: MESES | C28: 15 | D28: ARTE EDUCADOR | G28: 24000 | H28: =A28*G28 -> 96000 | I28: 19200 | J28: =I28*A28 -> 76800 | K28: 23200 | L28: =K28*A28 -> 92800
A29: 4 | B29: MESES | C29: 3 | D29: COORDENAÇÃO ARTISTICA | G29: 6600 | H29: 26400 | I29: 6000 | J29: 24000 | K29: 6440 | L29: 25760
A30: 9 | B30: MESES | C30: 31 | D30: ASSISTENTE ADMISTRATIVO | G30: 38000 | H30: 38000 | I30: 33572.2 | J30: 33572.2 | K30: 36500 | L30: 36500
H31: 0 | J31: 0 | L31: 0
H32: 0 | J32: 0 | L32: 0
H33: 0 | J33: 0 | L33: 0
H34: 0 | J34: 0 | L34: 0
H35: 0 | J35: 0 | L35: 0
H36: 0 | J36: 0 | L36: 0
H37: 0 | J37: 0 | L37: 0
H38: 0 | J38: 0 | L38: 0
H39: 0 | J39: 0 | L39: 0
H40: 0 | J40: 0 | L40: 0
H41: 0 | J41: 0 | L41: 0
H42: 0 | J42: 0 | L42: 0
H43: 0 | J43: 0 | L43: 0
H44: 0 | J44: 0 | L44: 0
H45: 0 | J45: 0 | L45: 0
H46: 0 | J46: 0 | L46: 0
H47: 0 | J47: 0 | L47: 0
H48: 0 | J48: 0 | L48: 0
H49: 0 | J49: 0 | L49: 0
H50: 0 | J50: 0 | L50: 0
H51: 0 | J51: 0 | L51: 0
H52: 0 | J52: 0 | L52: 0
H53: 0 | J53: 0 | L53: 0
H54: 0 | J54: 0 | L54: 0
H55: 0 | J55: 0 | L55: 0
H56: 0 | J56: 0 | L56: 0
H57: 0 | J57: 0 | L57: 0
H58: 0 | J58: 0 | L58: 0
A59: OBS:. | F59: TOTAIS | G59: =SUM(H27:H58) -> 216200 | I59: =SUM(J27:J58) -> 186122.2 | K59: =SUM(L27:L58) -> 209510
A61: DATA | I61: APROVADO
A62: 2019-01-14

Sheet 2.1
A1: =+'itens projetos'!B8 -> Impressão | I1: ='itens projetos'!C8 -> 11163
A2: VERBA | B2: VR. NOTA | C2: N º CHEQUE | D2: DATA DA SAÍDA | E2: DESCRIÇÃO DA SAÍDA | F2: NF | G2: DATA DA NOTA | H2: QTDADE
A3: =+'itens projetos'!I8 -> 9000 | B3: 9000 | C3: 850180 | D3: 2019-10-03 | E3: FABRICIO MIRANDA DE LA O | F3: NF 0012 | G3: 2019-10-01 | H3: 2000
A16: =SUM(A3:A15) -> 9000 | B16: =SUM(B3:B15) -> 9000
A17: SALDO | B17: =A16-B16 -> 0
A20: COTAÇÃO DE MATERIAIS E SERVIÇOS
G23: 1 - Fornecedor | I23: 2 - Fornecedor | K23: 3 - Fornecedor
A24: =+'itens projetos'!A2:M2 -> MARYSIA PORTINARI - UNIVERSO PRÉ-EXISTENTE - PRONAC: 182445 | G24: Fabricio de la o | I24: Visão Digital | K24: Adex
G25: CNPJ: 23.556.325/0001-50 | I25: CNPJ: 22.530.132/0001-68 | K25: CNPJ: 04.834.612/0001-30
A26: QTDE | B26: UNI | C26: COD | D26: DESCRIÇÃO DO MATERIAL | G26: V. UNI | H26: V. TOTAL | I26: V. UNI | J26: V. TOTAL | K26: V. UNI | L26: V. TOTAL
A27: 2000 | B27: 1 | C27: 16 | D27: Impressão | G27: 4.5 | H27: =G27*A27 -> 9000 | I27: 7.2 | J27: =I27*2000 -> 14400 | K27: 8.9 | L27: =K27*2000 -> 17800
H28: =A28*G28 -> 0 | J28: =I28*A28 -> 0 | L28: =K28*A28 -> 0
H29: 0 | J29: 0 | L29: 0
H30: 0 | J30: 0 | L30: 0
H31: 0 | J31: 0 | L31: 0
H32: 0 | J32: 0 | L32: 0
H33: 0 | J33: 0 | L33: 0
H34: 0 | J34: 0 | L34: 0
H35: 0 | J35: 0 | L35: 0
H36: 0 | J36: 0 | L36: 0
H37: 0 | J37: 0 | L37: 0
H38: 0 | J38: 0 | L38: 0
H39: 0 | J39: 0 | L39: 0
H40: 0 | J40: 0 | L40: 0
H41: 0 | J41: 0 | L41: 0
H42: 0 | J42: 0 | L42: 0
H43: 0 | J43: 0 | L43: 0
H44: 0 | J44: 0 | L44: 0
H45: 0 | J45: 0 | L45: 0
H46: 0 | J46: 0 | L46: 0
H47: 0 | J47: 0 | L47: 0
H48: 0 | J48: 0 | L48: 0
H49: 0 | J49: 0 | L49: 0
H50: 0 | J50: 0 | L50: 0
H51: 0 | J51: 0 | L51: 0
H52: 0 | J52: 0 | L52: 0
H53: 0 | J53: 0 | L53: 0
H54: 0 | J54: 0 | L54: 0
H55: 0 | J55: 0 | L55: 0
H56: 0 | J56: 0 | L56: 0
H57: 0 | J57: 0 | L57: 0
H58: 0 | J58: 0 | L58: 0
A59: OBS:. | F59: TOTAIS | G59: =SUM(H27:H58) -> 9000 | I59: =SUM(J27:J58) -> 14400 | K59: =SUM(L27:L58) -> 17800
A61: DATA | G61: APROVADO
A62: 2019-01-14

Sheet 2.2
A1: =+'itens projetos'!B9 -> Material de apoio pedagógico | I1: ='itens projetos'!C9 -> 11164
A2: VERBA | B2: VR. NOTA | C2: N º CHEQUE | D2: DATA DA SAÍDA | E2: DESCRIÇÃO DA SAÍDA | F2: NF | G2: DATA DA NOTA | H2: QTDADE
A3: =+'itens projetos'!I9 -> 12000 | B3: 7722 | C3: 850022 | D3: 2019-02-08 | E3: W PRINT SOLUTION GRAFICA LTDA-ME | F3: NF 0447 | G3: 2019-02-06 | H3: 1200
B4: 4278.23 | C4: 850024 | D4: 2019-02-08 | E4: JOSIANE NACAMUTA -ME | F4: NF 0790 | G4: 2019-02-06 | H4: 615
A16: =SUM(A2:A15) -> 12000 | B16: =SUM(B3:B15) -> 12000.23
A17: SALDO | B17: =A16-B16 -> -0.23
A20: COTAÇÃO DE MATERIAIS E SERVIÇOS
G23: 1 - Fornecedor | I23: 2 - Fornecedor | K23: 3 - Fornecedor
A24: =+'itens projetos'!A2:M2 -> MARYSIA PORTINARI - UNIVERSO PRÉ-EXISTENTE - PRONAC: 182445 | G24: ESPACIAL | I24: JOSIANE | K24: NET CENTRO
G25: CNPJ: 08.745.680/0001-84 | I25: CNPJ: 18.775.988/0001-26 | K25: CNPJ: 74.002.346/0001-65
A26: QTDE | B26: UNI | C26: COD | D26: DESCRIÇÃO DO MATERIAL | G26: V. UNI | H26: V. TOTAL | I26: V. UNI | J26: V. TOTAL | K26: V. UNI | L26: V. TOTAL
A27: 1 | B27: UNI | C27: 17 | D27: MATERIAL DE APOIO PEDAGÓGICO | G27: 5290 | H27: =A27*G27 -> 5290 | I27: 4278.23 | J27: =I27*A27 -> 4278.23 | K27: 5000 | L27: =K27*A27 -> 5000
H28: =A28*G28 -> 0 | J28: =I28*A28 -> 0 | L28: =K28*A28 -> 0
H29: 0 | J29: 0 | L29: 0
H30: 0 | J30: 0 | L30: 0
H31: 0 | J31: 0 | L31: 0
H32: 0 | J32: 0 | L32: 0
H33: 0 | J33: 0 | L33: 0
H34: 0 | J34: 0 | L34: 0
H35: 0 | J35: 0 | L35: 0
H36: 0 | J36: 0 | L36: 0
H37: 0 | J37: 0 | L37: 0
H38: 0 | J38: 0 | L38: 0
H39: 0 | J39: 0 | L39: 0
H40: 0 | J40: 0 | L40: 0
H41: 0 | J41: 0 | L41: 0
H42: 0 | J42: 0 | L42: 0
H43: 0 | J43: 0 | L43: 0
H44: 0 | J44: 0 | L44: 0
H45: 0 | J45: 0 | L45: 0
H46: 0 | J46: 0 | L46: 0
H47: 0 | J47: 0 | L47: 0
H48: 0 | J48: 0 | L48: 0
H49: 0 | J49: 0 | L49: 0
H50: 0 | J50: 0 | L50: 0
H51: 0 | J51: 0 | L51: 0
H52: 0 | J52: 0 | L52: 0
H53: 0 | J53: 0 | L53: 0
H54: 0 | J54: 0 | L54: 0
H55: 0 | J55: 0 | L55: 0
H56: 0 | J56: 0 | L56: 0
H57: 0 | J57: 0 | L57: 0
H58: 0 | J58: 0 | L58: 0
A59: OBS:. | F59: TOTAIS | G59: =SUM(H27:H58) -> 5290 | I59: =SUM(J27:J58) -> 4278.23 | K59: =SUM(L27:L58) -> 5000
A61: DATA | I61: APROVADO
A62: 2019-01-14

Sheet 2.3
A1: =+'itens projetos'!B10 -> Produção de Texto
A2: VERBA | B2: VR. NOTA | C2: N º CHEQUE | D2: DATA DA SAÍDA | E2: DESCRIÇÃO DA SAÍDA | F2: NF | G2: DATA DA NOTA | H2: QTDADE | I2: ='itens projetos'!C10 -> 11165
A3: =+'itens projetos'!I10 -> 20000 | B3: 20000 | C3: 850013 | D3: 2019-01-30 | E3: KLINTOWITZ COMUNICAÇÃO LTDA | F3: NF 0249 | G3: 2019-01-29 | H3: 1
A15: =SUM(A3:A12) -> 20000 | B15: =SUM(B3:B14) -> 20000
A16: SALDO | B16: =A15-B15 -> 0
A20: COTAÇÃO DE MATERIAIS E SERVIÇOS
G23: 1 - Fornecedor | I23: 2 - Fornecedor | K23: 3 - Fornecedor
A24: =+'itens projetos'!A2:M2 -> MARYSIA PORTINARI - UNIVERSO PRÉ-EXISTENTE - PRONAC: 182445 | G24: COR E TAL | I24: LUCKY | K24: KLINTOWITZ
G25: CNPJ : 10.875.118/0001-17 | I25: CNPJ: 00.265.815/0001-00 | K25: CNPJ : 08.977.656/0001-70
A26: QTDE | B26: UNI | C26: COD | D26: DESCRIÇÃO DO MATERIAL | G26: V. UNI | H26: V. TOTAL | I26: V. UNI | J26: V. TOTAL | K26: V. UNI | L26: V. TOTAL
A27: 1 | B27: SERVIÇO | C27: 32 | D27: REVISÃO DE TEXTO | G27: 2552 | H27: =A27*G27 -> 2552 | I27: 4050 | J27: =I27*A27 -> 4050 | K27: 3240 | L27: =K27*A27 -> 3240
H30: =A30*G30 -> 0 | J30: =I30*A30 -> 0 | L30: =K30*A30 -> 0
H31: 0 | J31: 0 | L31: 0
H32: 0 | J32: 0 | L32: 0
H33: 0 | J33: 0 | L33: 0
H34: 0 | J34: 0 | L34: 0
H35: 0 | J35: 0 | L35: 0
H36: 0 | J36: 0 | L36: 0
H37: 0 | J37: 0 | L37: 0
H38: 0 | J38: 0 | L38: 0
H39: 0 | J39: 0 | L39: 0
H40: 0 | J40: 0 | L40: 0
H41: 0 | J41: 0 | L41: 0
H42: 0 | J42: 0 | L42: 0
H43: 0 | J43: 0 | L43: 0
H44: 0 | J44: 0 | L44: 0
H45: 0 | J45: 0 | L45: 0
H46: 0 | J46: 0 | L46: 0
H47: 0 | J47: 0 | L47: 0
H48: 0 | J48: 0 | L48: 0
H49: 0 | J49: 0 | L49: 0
H50: 0 | J50: 0 | L50: 0
H51: 0 | J51: 0 | L51: 0
H52: 0 | J52: 0 | L52: 0
H53: 0 | J53: 0 | L53: 0
H54: 0 | J54: 0 | L54: 0
H55: 0 | J55: 0 | L55: 0
H56: 0 | J56: 0 | L56: 0
H57: 0 | J57: 0 | L57: 0
H58: 0 | J58: 0 | L58: 0
A59: OBS:. | F59: TOTAIS | G59: =SUM(H27:H58) -> 2552 | I59: =SUM(J27:J58) -> 4050 | K59: =SUM(L27:L58) -> 3240
A61: DATA | G61: APROVADO
A62: 2019-01-14

Sheet 2.4
A1: =+'itens projetos'!B11 -> Coordenação Gráfica | I1: ='itens projetos'!C11 -> 11166
A2: VERBA | B2: VR. NOTA | C2: N º CHEQUE | D2: DATA DA SAÍDA | E2: DESCRIÇÃO DA SAÍDA | F2: NF | G2: DATA DA NOTA | H2: QTDADE
A3: =+'itens projetos'!I11 -> 5220 | B3: 5220 | C3: 850011 | D3: 2019-01-30 | E3: KLINTOWITZ COMUNICAÇÃO LTDA | F3: NF 0250 | G3: 2019-01-29
A15: =SUM(A3:A14) -> 5220 | B15: =SUM(B3:B14) -> 5220
A16: SALDO | B16: =A15-B15 -> 0
A20: COTAÇÃO DE MATERIAIS E SERVIÇOS
G23: 1 - Fornecedor | I23: 2 - Fornecedor | K23: 3 - Fornecedor
A24: =+'itens projetos'!A2:M2 -> MARYSIA PORTINARI - UNIVERSO PRÉ-EXISTENTE - PRONAC: 182445 | G24: EGB | I24: IPSIS | K24: UPRISEPRINT
G25: CNPJ: 03.792.721/0001-70 | I25: CNPJ: 61.407.078/0001-10 | K25: CNPJ: 16.887.262/0001-50
A26: QTDE | B26: UNI | C26: COD | D26: DESCRIÇÃO DO MATERIAL | G26: V. UNI | H26: V. TOTAL | I26: V. UNI | J26: V. TOTAL | K26: V. UNI | L26: V. TOTAL
A27: 3000 | C27: 7 | D27: =+A1 -> Coordenação Gráfica | G27: 40 | H27: =A27*G27 -> 120000 | I27: 45 | J27: =I27*A27 -> 135000 | K27: 50 | L27: =K27*A27 -> 150000
H28: =A28*G28 -> 0 | J28: =I28*A28 -> 0 | L28: =K28*A28 -> 0
H29: 0 | J29: 0 | L29: 0
H30: 0 | J30: 0 | L30: 0
H31: 0 | J31: 0 | L31: 0
H32: 0 | J32: 0 | L32: 0
H33: 0 | J33: 0 | L33: 0
H34: 0 | J34: 0 | L34: 0
H35: 0 | J35: 0 | L35: 0
H36: 0 | J36: 0 | L36: 0
H37: 0 | J37: 0 | L37: 0
H38: 0 | J38: 0 | L38: 0
H39: 0 | J39: 0 | L39: 0
H40: 0 | J40: 0 | L40: 0
H41: 0 | J41: 0 | L41: 0
H42: 0 | J42: 0 | L42: 0
H43: 0 | J43: 0 | L43: 0
H44: 0 | J44: 0 | L44: 0
H45: 0 | J45: 0 | L45: 0
H46: 0 | J46: 0 | L46: 0
H47: 0 | J47: 0 | L47: 0
H48: 0 | J48: 0 | L48: 0
H49: 0 | J49: 0 | L49: 0
H50: 0 | J50: 0 | L50: 0
H51: 0 | J51: 0 | L51: 0
H52: 0 | J52: 0 | L52: 0
H53: 0 | J53: 0 | L53: 0
H54: 0 | J54: 0 | L54: 0
H55: 0 | J55: 0 | L55: 0
H56: 0 | J56: 0 | L56: 0
H57: 0 | J57: 0 | L57: 0
H58: 0 | J58: 0 | L58: 0
A59: OBS:. | F59: TOTAIS | G59: =SUM(H27:H58) -> 120000 | I59: =SUM(J27:J58) -> 135000 | K59: =SUM(L27:L58) -> 150000
A61: DATA | G61: APROVADO
A62: 2015-03-18

Sheet 2.5
A1: =+'itens projetos'!B12 -> Custo distribuição para bibliotecas | I1: ='itens projetos'!C12 -> 11167
A2: VERBA | B2: VR. NOTA | C2: N º CHEQUE | D2: DATA DA SAÍDA | E2: DESCRIÇÃO DA SAÍDA | F2: NF | G2: DATA DA NOTA | H2: QTDADE
A3: =+'itens projetos'!I12 -> 2000 | B3: 1721.8 | C3: 850206 | E3: GROW COMMODITIES LTDA | F3: DOC 11863
A15: =SUM(A3:A14) -> 2000 | B15: =SUM(B3:B14) -> 1721.8
A16: SALDO | B16: =A15-B15 -> 278.2
A19: COTAÇÃO DE MATERIAIS E SERVIÇOS
G22: 1 - Fornecedor | I22: 2 - Fornecedor | K22: 3 - Fornecedor
A23: =+'itens projetos'!A2:M2 -> MARYSIA PORTINARI - UNIVERSO PRÉ-EXISTENTE - PRONAC: 182445 | G23: IPSIS | I23: UP RISE | K23: GRAFICA REVELAÇÃO
G24: CNPJ: 61.407.078/0001-10 | I24: CNPJ:16.887.262/0001-50 | K24: CNPJ:08.288.515/0001-40
A25: QTDE | B25: UNI | C25: COD | D25: DESCRIÇÃO DO MATERIAL | G25: V. UNI | H25: V. TOTAL | I25: V. UNI | J25: V. TOTAL | K25: V. UNI | L25: V. TOTAL
A26: 3000 | B26: UNI | C26: 8 | D26: IMPRESSÕES | G26: 35 | H26: =A26*G26 -> 105000 | I26: 43.5 | J26: 130500 | K26: 45 | L26: 135000
H29: =A29*G29 -> 0 | J29: =I29*A29 -> 0 | L29: =K29*A29 -> 0
H30: 0 | J30: 0 | L30: 0
H31: 0 | J31: 0 | L31: 0
H32: 0 | J32: 0 | L32: 0
H33: 0 | J33: 0 | L33: 0
H34: 0 | J34: 0 | L34: 0
H35: 0 | J35: 0 | L35: 0
H36: 0 | J36: 0 | L36: 0
H37: 0 | J37: 0 | L37: 0
H38: 0 | J38: 0 | L38: 0
H39: 0 | J39: 0 | L39: 0
H40: 0 | J40: 0 | L40: 0
H41: 0 | J41: 0 | L41: 0
H42: 0 | J42: 0 | L42: 0
H43: 0 | J43: 0 | L43: 0
H44: 0 | J44: 0 | L44: 0
H45: 0 | J45: 0 | L45: 0
H46: 0 | J46: 0 | L46: 0
H47: 0 | J47: 0 | L47: 0
H48: 0 | J48: 0 | L48: 0
H49: 0 | J49: 0 | L49: 0
H50: 0 | J50: 0 | L50: 0
H51: 0 | J51: 0 | L51: 0
H52: 0 | J52: 0 | L52: 0
H53: 0 | J53: 0 | L53: 0
H54: 0 | J54: 0 | L54: 0
H55: 0 | J55: 0 | L55: 0
H56: 0 | J56: 0 | L56: 0
H57: 0 | J57: 0 | L57: 0
A58: OBS:. | F58: TOTAIS | G58: =SUM(H26:H57) -> 105000 | I58: =SUM(J26:J57) -> 130500 | K58: =SUM(L26:L57) -> 135000
A60: DATA | G60: APROVADO
A61: 2018-01-09

Sheet 3.1
A1: =+'itens projetos'!B13 -> Designer | I1: ='itens projetos'!C13 -> 11168
A2: VERBA | B2: VR. NOTA | C2: N º CHEQUE | D2: DATA DA SAÍDA | E2: DESCRIÇÃO DA SAÍDA | F2: NF | G2: DATA DA NOTA | H2: QTDADE
A3: =+'itens projetos'!I13 -> 12000 | B3: 4000 | C3: 850095 | D3: 2019-05-29 | E3: FRANCESCO GOSCIOLA JUNIOR | F3: NF 0010 | G3: 2019-05-28 | H3: 1
B4: 4000 | C4: 850115 | D4: 2019-06-17 | E4: FRANCESCO GOSCIOLA JUNIOR | F4: NF 0011 | G4: 2019-06-12 | H4: 1
B5: 4000 | C5: 850148 | D5: 2019-07-05 | E5: FRANCESCO GOSCIOLA JUNIOR | F5: NF 0012 | G5: 2019-07-04 | H5: 1
A15: =SUM(A3:A14) -> 12000 | B15: =SUM(B3:B14) -> 12000
A16: SALDO | B16: =A15-B15 -> 0
A18: COTAÇÃO DE MATERIAIS E SERVIÇOS
G21: 1 - Fornecedor | I21: 2 - Fornecedor | K21: 3 - Fornecedor
A22: =+'itens projetos'!A2:M2 -> MARYSIA PORTINARI - UNIVERSO PRÉ-EXISTENTE - PRONAC: 182445 | G22: FRANSCESCO GOSCIOLA | I22: EBRS COMERCIO | K22: UPRISEPRINT COMERCIO
G23: CNPJ: 25.982.303/0001-88 | I23: CNPJ: 09.120.592/0001-50 | K23: CNPJ: 16.887.262/0001-50
A24: QTDE | B24: UNI | C24: COD | D24: DESCRIÇÃO DO MATERIAL | G24: V. UNI | H24: V. TOTAL | I24: V. UNI | J24: V. TOTAL | K24: V. UNI | L24: V. TOTAL
A25: 1 | B25: SERVIÇO | C25: 4 | D25: DESIGNER ( 3 MESES ) | G25: =H25/3 -> 4000 | H25: 12000 | I25: =J25/3 -> 4383.333333 | J25: 13150 | K25: =L25/3 -> 4100 | L25: 12300
H28: =A28*G28 -> 0 | J28: =I28*A28 -> 0 | L28: =K28*A28 -> 0
H29: 0 | J29: 0 | L29: 0
H30: 0 | J30: 0 | L30: 0
H31: 0 | J31: 0 | L31: 0
H32: 0 | J32: 0 | L32: 0
H33: 0 | J33: 0 | L33: 0
H34: 0 | J34: 0 | L34: 0
H35: 0 | J35: 0 | L35: 0
H36: 0 | J36: 0 | L36: 0
H37: 0 | J37: 0 | L37: 0
H38: 0 | J38: 0 | L38: 0
H39: 0 | J39: 0 | L39: 0
H40: 0 | J40: 0 | L40: 0
H41: 0 | J41: 0 | L41: 0
H42: 0 | J42: 0 | L42: 0
H43: 0 | J43: 0 | L43: 0
H44: 0 | J44: 0 | L44: 0
H45: 0 | J45: 0 | L45: 0
H46: 0 | J46: 0 | L46: 0
H47: 0 | J47: 0 | L47: 0
H48: 0 | J48: 0 | L48: 0
H49: 0 | J49: 0 | L49: 0
H50: 0 | J50: 0 | L50: 0
H51: 0 | J51: 0 | L51: 0
H52: 0 | J52: 0 | L52: 0
H53: 0 | J53: 0 | L53: 0
H54: 0 | J54: 0 | L54: 0
H55: 0 | J55: 0 | L55: 0
H56: 0 | J56: 0 | L56: 0
A57: OBS:. | F57: TOTAIS | G57: =SUM(H25:H56) -> 12000 | I57: =SUM(J25:J56) -> 13150 | K57: =SUM(L25:L56) -> 12300
A59: DATA | G59: APROVADO
A60: 2019-01-14

Sheet 3.2
A1: =+'itens projetos'!B14 -> Ficha Catalográfica e ISBN | I1: ='itens projetos'!C14 -> 11169
A2: VERBA | B2: VR. NOTA | C2: N º CHEQUE | D2: DATA DA SAÍDA | E2: DESCRIÇÃO DA SAÍDA | F2: NF | G2: DATA DA NOTA | H2: QTDADE
A3: =+'itens projetos'!I14 -> 150
A7: =SUM(A3:A6) -> 150 | B7: =SUM(B3:B6) -> 0
A8: SALDO | B8: =A7-B7 -> 150
A12: COTAÇÃO DE MATERIAIS E SERVIÇOS
G15: 1 - Fornecedor | I15: 2 - Fornecedor | K15: 3 - Fornecedor
A16: =+'itens projetos'!A2:M2 -> MARYSIA PORTINARI - UNIVERSO PRÉ-EXISTENTE - PRONAC: 182445 | G16: COR E TAL | I16: VERTICE | K16: LUCKY
G17: CNPJ: 10.875.118/0001-17 | I17: CNPJ: 06.093.781/0001-92 | K17: CNPJ: 00.265.815/0001-00
A18: QTDE | B18: UNI | C18: COD | D18: DESCRIÇÃO DO MATERIAL | G18: V. UNI | H18: V. TOTAL | I18: V. UNI | J18: V. TOTAL | K18: V. UNI | L18: V. TOTAL
A19: 60 | B19: UNI | C19: 10 | D19: REDATOR | G19: 200 | H19: =A19*G19 -> 12000 | I19: 250 | J19: =I19*A19 -> 15000 | K19: 233.33 | L19: 14000
A20: 20 | B20: UNI | C20: 36 | D20: PRODUÇÃO DE TEXTO | G20: 175 | H20: =A20*G20 -> 3500 | I20: 185 | J20: =I20*A20 -> 3700 | K20: 200 | L20: =K20*A20 -> 4000
A21: 20 | B21: UNI | C21: 38 | D21: REVISÃO DE TEXTO | G21: 15 | H21: 300 | I21: 18 | J21: 360 | K21: 20 | L21: 400
H22: 0 | J22: 0 | L22: 0
H23: 0 | J23: 0 | L23: 0
H24: 0 | J24: 0 | L24: 0
H25: 0 | J25: 0 | L25: 0
H26: 0 | J26: 0 | L26: 0
H27: 0 | J27: 0 | L27: 0
H28: 0 | J28: 0 | L28: 0
H29: 0 | J29: 0 | L29: 0
H30: 0 | J30: 0 | L30: 0
H31: 0 | J31: 0 | L31: 0
H32: 0 | J32: 0 | L32: 0
H33: 0 | J33: 0 | L33: 0
H34: 0 | J34: 0 | L34: 0
H35: 0 | J35: 0 | L35: 0
H36: 0 | J36: 0 | L36: 0
H37: 0 | J37: 0 | L37: 0
H38: 0 | J38: 0 | L38: 0
H39: 0 | J39: 0 | L39: 0
H40: 0 | J40: 0 | L40: 0
H41: 0 | J41: 0 | L41: 0
H42: 0 | J42: 0 | L42: 0
H43: 0 | J43: 0 | L43: 0
H44: 0 | J44: 0 | L44: 0
H45: 0 | J45: 0 | L45: 0
H46: 0 | J46: 0 | L46: 0
H47: 0 | J47: 0 | L47: 0
H48: 0 | J48: 0 | L48: 0
H49: 0 | J49: 0 | L49: 0
H50: 0 | J50: 0 | L50: 0
A51: OBS:. | F51: TOTAIS | G51: =SUM(H19:H50) -> 15800 | I51: =SUM(J19:J50) -> 19060 | K51: =SUM(L19:L50) -> 18400
A53: DATA | G53: APROVADO
A54: 2017-07-08

Sheet 3.3
A1: =+'itens projetos'!B15 -> Fotografia Artística (Fotógrafo, Tratamento, Revelação, etc.) | I1: ='itens projetos'!C15 -> 11170
A2: VERBA | B2: VR. NOTA | C2: N º CHEQUE | D2: DATA DA SAÍDA | E2: DESCRIÇÃO DA SAÍDA | F2: NF | G2: DATA DA NOTA | H2: QTDADE
A3: =+'itens projetos'!I15 -> 20000 | B3: 20000 | C3: 850096 | D3: 2019-05-30 | E3: SAT 5 CENA E TAKE I PRODUÇÕES ARTISTICASLTDA | F3: NF 0879 | G3: 2019-05-28
A8: =SUM(A3:A7) -> 20000 | B8: =SUM(B3:B7) -> 20000
A9: SALDO | B9: =A8-B8 -> 0
A12: COTAÇÃO DE MATERIAIS E SERVIÇOS
G15: 1 - Fornecedor | I15: 2 - Fornecedor | K15: 3 - Fornecedor
A16: =+'itens projetos'!A2:M2 -> MARYSIA PORTINARI - UNIVERSO PRÉ-EXISTENTE - PRONAC: 182445 | G16: COR E TAL | I16: PEOPLE | K16: BNER
G17: CNJP: 10.875.118/0001-17 | I17: CNPJ: 13.933.022/0001-56 | K17: CNPJ: 82.344.425/0001-82
A18: QTDE | B18: UNI | C18: COD | D18: DESCRIÇÃO DO MATERIAL | G18: V. UNI | H18: V. TOTAL | I18: V. UNI | J18: V. TOTAL | K18: V. UNI | L18: V. TOTAL
A19: 4 | B19: 2 | C19: 11 | D19: COORDENADOR CULTURAL | G19: 7400 | H19: =A19*G19 -> 29600 | I19: 8000 | J19: =A19*I19 -> 32000 | K19: 8400 | L19: =A19*K19 -> 33600
A20: 4 | B20: 8 | C20: 12 | D20: ARTE EDUCADOR | G20: 20000 | H20: =A20*G20 -> 80000 | I20: 20800 | J20: =I20*A20 -> 83200 | K20: 22400 | L20: =K20*A20 -> 89600
A21: 11 | C21: 19 | D21: COORDENAÇÃO GERAL | G21: 5750 | H21: 63250 | I21: 6000 | J21: 66000 | K21: 6200 | L21: 68200
H22: 0 | J22: 0 | L22: 0
H23: 0 | J23: 0 | L23: 0
H24: 0 | J24: 0 | L24: 0
H25: 0 | J25: 0 | L25: 0
H26: 0 | J26: 0 | L26: 0
H27: 0 | J27: 0 | L27: 0
H28: 0 | J28: 0 | L28: 0
H29: 0 | J29: 0 | L29: 0
H30: 0 | J30: 0 | L30: 0
H31: 0 | J31: 0 | L31: 0
H32: 0 | J32: 0 | L32: 0
H33: 0 | J33: 0 | L33: 0
H34: 0 | J34: 0 | L34: 0
H35: 0 | J35: 0 | L35: 0
H36: 0 | J36: 0 | L36: 0
H37: 0 | J37: 0 | L37: 0
H38: 0 | J38: 0 | L38: 0
H39: 0 | J39: 0 | L39: 0
H40: 0 | J40: 0 | L40: 0
H41: 0 | J41: 0 | L41: 0
H42: 0 | J42: 0 | L42: 0
H43: 0 | J43: 0 | L43: 0
H44: 0 | J44: 0 | L44: 0
H45: 0 | J45: 0 | L45: 0
H46: 0 | J46: 0 | L46: 0
H47: 0 | J47: 0 | L47: 0
H48: 0 | J48: 0 | L48: 0
H49: 0 | J49: 0 | L49: 0
H50: 0 | J50: 0 | L50: 0
A51: OBS:. | F51: TOTAIS | G51: =SUM(H19:H50) -> 172850 | I51: =SUM(J19:J50) -> 181200 | K51: =SUM(L19:L50) -> 191400
G53: APROVADO
A54: 2018-01-30

Sheet 3.4
A1: =+'itens projetos'!B16 -> Gravação de vozes | I1: ='itens projetos'!C16 -> 11171
A2: VERBA | B2: VR. NOTA | C2: N º CHEQUE | D2: DATA DA SAÍDA | E2: DESCRIÇÃO DA SAÍDA | F2: NF | G2: DATA DA NOTA | H2: QTDADE
A3: =+'itens projetos'!I16 -> 5300 | B3: 5000 | C3: 850204 | D3: 2019-10-29 | E3: VER COM PALAVRAS | F3: 712 | G3: 2019-10-28 | H3: 1
A16: =SUM(A3:A15) -> 5300 | B16: =SUM(B3:B15) -> 5000
A17: SALDO | B17: =A16-B16 -> 300
A22: COTAÇÃO DE MATERIAIS E SERVIÇOS
G25: 1 - Fornecedor | I25: 2 - Fornecedor | K25: 3 - Fornecedor
A26: =+'itens projetos'!A2:M2 -> MARYSIA PORTINARI - UNIVERSO PRÉ-EXISTENTE - PRONAC: 182445 | G26: VERTICE TRADUÇÕES | I26: VER COM PALAVRAS | K26: REESCRITAS
G27: CNPJ: 06.093.781/0001-92 | I27: CNPJ: 15.432.135/0001-01 | K27: CNPJ: 21.627.180/0001-06
A28: QTDE | B28: UNI | C28: COD | D28: DESCRIÇÃO DO MATERIAL | G28: V. UNI | H28: V. TOTAL | I28: V. UNI | J28: V. TOTAL | K28: V. UNI | L28: V. TOTAL
A29: 1 | B29: SERVIÇO | C29: 7 | D29: GRAVAÇÃO DE VOZES | G29: 12200 | H29: 12200 | I29: 5000 | J29: 5000 | K29: 10350 | L29: 10350
H33: =A33*G33 -> 0 | J33: =I33*A33 -> 0 | L33: =K33*A33 -> 0
H34: 0 | J34: 0 | L34: 0
H35: 0 | J35: 0 | L35: 0
H36: 0 | J36: 0 | L36: 0
H37: 0 | J37: 0 | L37: 0
H38: 0 | J38: 0 | L38: 0
H39: 0 | J39: 0 | L39: 0
H40: 0 | J40: 0 | L40: 0
H41: 0 | J41: 0 | L41: 0
H42: 0 | J42: 0 | L42: 0
H43: 0 | J43: 0 | L43: 0
H44: 0 | J44: 0 | L44: 0
H45: 0 | J45: 0 | L45: 0
H46: 0 | J46: 0 | L46: 0
H47: 0 | J47: 0 | L47: 0
H48: 0 | J48: 0 | L48: 0
H49: 0 | J49: 0 | L49: 0
H50: 0 | J50: 0 | L50: 0
H51: 0 | J51: 0 | L51: 0
H52: 0 | J52: 0 | L52: 0
H53: 0 | J53: 0 | L53: 0
H54: 0 | J54: 0 | L54: 0
H55: 0 | J55: 0 | L55: 0
H56: 0 | J56: 0 | L56: 0
H57: 0 | J57: 0 | L57: 0
H58: 0 | J58: 0 | L58: 0
H59: 0 | J59: 0 | L59: 0
H60: 0 | J60: 0 | L60: 0
A61: OBS:. | F61: TOTAIS | G61: =SUM(H29:H60) -> 12200 | I61: =SUM(J29:J60) -> 5000 | K61: =SUM(L29:L60) -> 10350
A63: DATA | I63: APROVADO
A64: 2019-01-14

Sheet 3.5
A1: =+'itens projetos'!B17 -> Impressão | I1: ='itens projetos'!C17 -> 11172
A2: VERBA | B2: VR. NOTA | C2: N º CHEQUE | D2: DATA DA SAÍDA | E2: DESCRIÇÃO DA SAÍDA | F2: NF | G2: DATA DA NOTA | H2: QTDADE
A3: =+'itens projetos'!I17 -> 138000 | B3: 138000 | C3: 850010 | D3: 2019-02-06 | E3: IPSIS GRAFICA E EDITORA S.A | F3: NF 66349 | G3: 2019-01-31 | H3: 3000
A8: =SUM(A3:A7) -> 138000 | B8: =SUM(B3:B7) -> 138000
A9: SALDO | B9: =A8-B8 -> 0
A11: COTAÇÃO DE MATERIAIS E SERVIÇOS
G14: 1 - Fornecedor | I14: 2 - Fornecedor | K14: 3 - Fornecedor
A15: =+'itens projetos'!A2:M2 -> MARYSIA PORTINARI - UNIVERSO PRÉ-EXISTENTE - PRONAC: 182445 | G15: IPSIS | I15: JD REPSODUÇÕES | K15: UP RISE
G16: CNPJ: 61.407.078/0001-10 | I16: CNPJ: 12.121.441/0001-20 | K16: 16.887.262/0001-50
A17: QTDE | B17: UNI | C17: COD | D17: DESCRIÇÃO DO MATERIAL | G17: V. UNI | H17: V. TOTAL | I17: V. UNI | J17: V. TOTAL | K17: V. UNI | L17: V. TOTAL
A18: 3000 | B18: Unidade | C18: 8 | D18: IMPRESSÕES | G18: 46 | H18: =G18*A18 -> 138000 | I18: 55.3 | J18: =I18*A18 -> 165900 | K18: 52 | L18: =A18*K18 -> 156000
H19: =A19*G19 -> 0 | J19: =I19*A19 -> 0 | L19: =K19*A19 -> 0
H20: 0 | J20: 0 | L20: 0
H21: 0 | J21: 0 | L21: 0
H22: 0 | J22: 0 | L22: 0
H23: 0 | J23: 0 | L23: 0
H24: 0 | J24: 0 | L24: 0
H25: 0 | J25: 0 | L25: 0
H26: 0 | J26: 0 | L26: 0
H27: 0 | J27: 0 | L27: 0
H28: 0 | J28: 0 | L28: 0
H29: 0 | J29: 0 | L29: 0
H30: 0 | J30: 0 | L30: 0
H31: 0 | J31: 0 | L31: 0
H32: 0 | J32: 0 | L32: 0
H33: 0 | J33: 0 | L33: 0
H34: 0 | J34: 0 | L34: 0
H35: 0 | J35: 0 | L35: 0
H36: 0 | J36: 0 | L36: 0
H37: 0 | J37: 0 | L37: 0
H38: 0 | J38: 0 | L38: 0
H39: 0 | J39: 0 | L39: 0
H40: 0 | J40: 0 | L40: 0
H41: 0 | J41: 0 | L41: 0
H42: 0 | J42: 0 | L42: 0
H43: 0 | J43: 0 | L43: 0
H44: 0 | J44: 0 | L44: 0
H45: 0 | J45: 0 | L45: 0
H46: 0 | J46: 0 | L46: 0
H47: 0 | J47: 0 | L47: 0
H48: 0 | J48: 0 | L48: 0
H49: 0 | J49: 0 | L49: 0
A50: OBS:. | F50: TOTAIS | G50: =SUM(H18:H49) -> 138000 | I50: =SUM(J18:J49) -> 165900 | K50: =SUM(L18:L49) -> 156000
A52: 2019-01-14 | G52: APROVADO

Sheet 3.6
A1: =+'itens projetos'!B18 -> Revisão de Texto | I1: =+'itens projetos'!C18 -> 11173
A2: VERBA | B2: VR. NOTA | C2: N º CHEQUE | D2: DATA DA SAÍDA | E2: DESCRIÇÃO DA SAÍDA | F2: NF | G2: DATA DA NOTA | H2: QTDADE
A3: =+'itens projetos'!I18 -> 3240 | B3: 3240 | C3: 850012 | D3: 2019-01-30 | E3: KLINTOWITZ COMUNICAÇÃO LTDA | F3: NF 0251 | G3: 2019-01-29
A7: =SUM(A3:A6) -> 3240 | B7: =SUM(B3:B6) -> 3240
A8: SALDO | B8: =A7-B7 -> 0
A12: COTAÇÃO DE MATERIAIS E SERVIÇOS
G15: 1 - Fornecedor | I15: 2 - Fornecedor | K15: 3 - Fornecedor
A16: =+'itens projetos'!A2:M2 -> MARYSIA PORTINARI - UNIVERSO PRÉ-EXISTENTE - PRONAC: 182445 | G16: JD REPRODUÇÕES | I16: EPS GRAFICA | K16: COCKTAIL
G17: CNPJ: 12.121.441/0001-20 | I17: CNPJ: 05.004.458/0001-32 | K17: CNPJ: 15.021.896/0001-62
A18: QTDE | B18: UNI | C18: COD | D18: DESCRIÇÃO DO MATERIAL | G18: V. UNI | H18: V. TOTAL | I18: V. UNI | J18: V. TOTAL | K18: V. UNI | L18: V. TOTAL
A19: 3000 | C19: 14 | D19: IMPRESSÃO CONVITES | G19: 2 | H19: =A19*G19 -> 6000 | I19: 2.5 | J19: =I19*A19 -> 7500 | K19: 2.8 | L19: =K19*A19 -> 8400
A20: 5 | C20: 15 | D20: IMPRESSÃO DE BANNERS | G20: 350 | H20: =A20*G20 -> 1750 | I20: 380 | J20: =I20*A20 -> 1900 | K20: 400 | L20: =K20*A20 -> 2000
A21: 2000 | C21: 16 | D21: IMPRESSÃO DE FOLDERS | G21: 2.5 | H21: 5000 | I21: 3 | J21: 6000 | K21: 3.5 | L21: 7000
A22: 2 | C22: 21 | D22: EMBALAGEM E ACONDICONAMENTO PARA EXPOSIÇÃO | G22: 1750 | H22: 3500 | I22: 2000 | J22: 4000 | K22: 2300 | L22: 4600
A23: 1 | C23: 25 | D23: IMPRESSÃO DE ADESIVO | G23: 2000 | H23: 2000 | I23: 2200 | J23: 2200 | K23: 2300 | L23: 2300
A24: 1 | C24: 27 | D24: IMPRESSÃO BRAILE | G24: 9800 | H24: 9800 | I24: 10000 | J24: 10000 | K24: 12000 | L24: 12000
A25: 1 | C25: 37 | D25: PROJETO GRAFICO | G25: 3000 | H25: 3000 | I25: 3500 | J25: 3500 | K25: 4000 | L25: 4000
H26: 0 | J26: 0 | L26: 0
H27: 0 | J27: 0 | L27: 0
H28: 0 | J28: 0 | L28: 0
H29: 0 | J29: 0 | L29: 0
H30: 0 | J30: 0 | L30: 0
H31: 0 | J31: 0 | L31: 0
H32: 0 | J32: 0 | L32: 0
H33: 0 | J33: 0 | L33: 0
H34: 0 | J34: 0 | L34: 0
H35: 0 | J35: 0 | L35: 0
H36: 0 | J36: 0 | L36: 0
H37: 0 | J37: 0 | L37: 0
H38: 0 | J38: 0 | L38: 0
H39: 0 | J39: 0 | L39: 0
H40: 0 | J40: 0 | L40: 0
H41: 0 | J41: 0 | L41: 0
H42: 0 | J42: 0 | L42: 0
H43: 0 | J43: 0 | L43: 0
H44: 0 | J44: 0 | L44: 0
H45: 0 | J45: 0 | L45: 0
H46: 0 | J46: 0 | L46: 0
H47: 0 | J47: 0 | L47: 0
H48: 0 | J48: 0 | L48: 0
H49: 0 | J49: 0 | L49: 0
H50: 0 | J50: 0 | L50: 0
A51: OBS:. | F51: TOTAIS | G51: =SUM(H19:H50) -> 31050 | I51: =SUM(J19:J50) -> 35100 | K51: =SUM(L19:L50) -> 40300
A53: DATA | G53: APROVADO
A54: 2017-07-08

Sheet 3.7
A1: =+'itens projetos'!B19 -> Tradução | I1: ='itens projetos'!C19 -> 11174
A2: VERBA | B2: VR. NOTA | C2: N º CHEQUE | D2: DATA DA SAÍDA | E2: DESCRIÇÃO DA SAÍDA | F2: NF | G2: DATA DA NOTA | H2: QTDADE
A3: =+'itens projetos'!I19 -> 4000 | B3: 4000 | C3: 850093 | D3: 2019-05-21 | E3: VERTICE TRADUÇÕES TECNICAS LTDA | F3: 3749 | G3: 2019-05-08
A7: =SUM(A3:A6) -> 4000 | B7: =SUM(B3:B6) -> 4000
A8: SALDO | B8: =A7-B7 -> 0
A12: COTAÇÃO DE MATERIAIS E SERVIÇOS
G15: 1 - Fornecedor | I15: 2 - Fornecedor | K15: 3 - Fornecedor
A16: =+'itens projetos'!A2:M2 -> MARYSIA PORTINARI - UNIVERSO PRÉ-EXISTENTE - PRONAC: 182445 | G16: KLINTOWITZ | I16: VERTICE | K16: LUCKY
G17: CNPJ: 08.977.656/0001-70 | I17: CNPJ: 06.093.781/0001-92 | K17: CNPJ: 00.265.815/0001-00
A18: QTDE | B18: UNI | C18: COD | D18: DESCRIÇÃO DO MATERIAL | G18: V. UNI | H18: V. TOTAL | I18: V. UNI | J18: V. TOTAL | K18: V. UNI | L18: V. TOTAL
A19: 1 | B19: SERVIÇO | C19: 3.7 | D19: TRADUÇÃO | G19: 4300 | H19: =A19*G19 -> 4300 | I19: 4000 | J19: =I19*A19 -> 4000 | K19: 4500 | L19: =K19*A19 -> 4500
H20: =A20*G20 -> 0 | J20: =I20*A20 -> 0 | L20: =K20*A20 -> 0
H21: 0 | J21: 0 | L21: 0
H22: 0 | J22: 0 | L22: 0
H23: 0 | J23: 0 | L23: 0
H24: 0 | J24: 0 | L24: 0
H25: 0 | J25: 0 | L25: 0
H26: 0 | J26: 0 | L26: 0
H27: 0 | J27: 0 | L27: 0
H28: 0 | J28: 0 | L28: 0
H29: 0 | J29: 0 | L29: 0
H30: 0 | J30: 0 | L30: 0
H31: 0 | J31: 0 | L31: 0
H32: 0 | J32: 0 | L32: 0
H33: 0 | J33: 0 | L33: 0
H34: 0 | J34: 0 | L34: 0
H35: 0 | J35: 0 | L35: 0
H36: 0 | J36: 0 | L36: 0
H37: 0 | J37: 0 | L37: 0
H38: 0 | J38: 0 | L38: 0
H39: 0 | J39: 0 | L39: 0
H40: 0 | J40: 0 | L40: 0
H41: 0 | J41: 0 | L41: 0
H42: 0 | J42: 0 | L42: 0
H43: 0 | J43: 0 | L43: 0
H44: 0 | J44: 0 | L44: 0
H45: 0 | J45: 0 | L45: 0
H46: 0 | J46: 0 | L46: 0
H47: 0 | J47: 0 | L47: 0
H48: 0 | J48: 0 | L48: 0
H49: 0 | J49: 0 | L49: 0
H50: 0 | J50: 0 | L50: 0
A51: OBS:. | F51: TOTAIS | G51: =SUM(H19:H50) -> 4300 | I51: =SUM(J19:J50) -> 4000 | K51: =SUM(L19:L50) -> 4500
A53: DATA | I53: APROVADO
A54: 2019-01-14

Sheet 3.8
A1: =+'itens projetos'!B20 -> Advogado | I1: ='itens projetos'!C20 -> 11175
A2: VERBA | B2: VR. NOTA | C2: N º CHEQUE | D2: DATA DA SAÍDA | E2: DESCRIÇÃO DA SAÍDA | F2: NF | G2: DATA DA NOTA | H2: QTDADE
A3: =+'itens projetos'!I20 -> 9000 | B3: 1000 | C3: 850019 | D3: 2019-02-05 | E3: BRITO RODRIGUES SOCIEDADE INDIVIDUAL DE ADVOCACIA | F3: NF 0813 | G3: 2019-02-04 | H3: 1
B4: 1000 | C4: 850037 | D4: 2019-03-11 | E4: BRITO RODRIGUES SOCIEDADE INDIVIDUAL DE ADVOCACIA | F4: NF 0823 | G4: 2019-03-07 | H4: 1
B5: 1000 | C5: 850054 | D5: 2019-04-05 | E5: BRITO RODRIGUES SOCIEDADE INDIVIDUAL DE ADVOCACIA | F5: NF 0832 | G5: 2019-04-03 | H5: 1
B6: 1000 | C6: 850076 | D6: 2019-05-08 | E6: BRITO RODRIGUES SOCIEDADE INDIVIDUAL DE ADVOCACIA | F6: NF 0843 | G6: 2019-05-06 | H6: 1
B7: 1000 | C7: 850100 | D7: 2019-06-10 | E7: BRITO RODRIGUES SOCIEDADE INDIVIDUAL DE ADVOCACIA | F7: NF 0851 | G7: 2019-06-06 | H7: 1
B8: 1000 | C8: 850145 | D8: 2019-07-04 | E8: BRITO RODRIGUES SOCIEDADE INDIVIDUAL DE ADVOCACIA | F8: NF 0864 | G8: 2019-07-03 | H8: 1
B9: 1000 | C9: 850127 | D9: 2019-08-08 | E9: BRITO RODRIGUES SOCIEDADE INDIVIDUAL DE ADVOCACIA | F9: NF 0874 | G9: 2019-08-05 | H9: 1
B10: 1000 | C10: 850189 | D10: 2019-09-13 | E10: BRITO RODRIGUES SOCIEDADE INDIVIDUAL DE ADVOCACIA | F10: NF 0883 | G10: 2019-09-03 | H10: 1
B11: 1000 | C11: 850203 | D11: 2019-10-08 | E11: BRITO RODRIGUES SOCIEDADE INDIVIDUAL DE ADVOCACIA | F11: NF 0893 | G11: 2019-10-04 | H11: 1
A14: =SUM(A3:A13) -> 9000 | B14: =SUM(B3:B13) -> 9000
A15: SALDO | B15: =A14-B14 -> 0
A18: COTAÇÃO DE MATERIAIS E SERVIÇOS
G21: 1 - Fornecedor | I21: 2 - Fornecedor | K21: 3 - Fornecedor
A22: =+'itens projetos'!A2:M2 -> MARYSIA PORTINARI - UNIVERSO PRÉ-EXISTENTE - PRONAC: 182445 | G22: BRITO | I22: CAVALHEIRO | K22: MANHAS
G23: CNPJ: 07.641.544/0001-81 | I23: CNPJ: 16.854.928/0001-73 | K23: CNPJ: 02.760.836/0001-10
A24: QTDE | B24: UNI | C24: COD | D24: DESCRIÇÃO DO MATERIAL | G24: V. UNI | H24: V. TOTAL | I24: V. UNI | J24: V. TOTAL | K24: V. UNI | L24: V. TOTAL
A25: 9 | B25: SERVIÇOS | C25: 11 | D25: ADVOGADO | G25: 1000 | H25: =A25*G25 -> 9000 | I25: 1050 | J25: =I25*A25 -> 9450 | K25: 1250 | L25: =K25*A25 -> 11250
H26: =A26*G26 -> 0 | J26: =I26*A26 -> 0 | L26: =K26*A26 -> 0
H27: 0 | J27: 0 | L27: 0
H28: 0 | J28: 0 | L28: 0
H29: 0 | J29: 0 | L29: 0
H30: 0 | J30: 0 | L30: 0
H31: 0 | J31: 0 | L31: 0
H32: 0 | J32: 0 | L32: 0
H33: 0 | J33: 0 | L33: 0
H34: 0 | J34: 0 | L34: 0
H35: 0 | J35: 0 | L35: 0
H36: 0 | J36: 0 | L36: 0
H37: 0 | J37: 0 | L37: 0
H38: 0 | J38: 0 | L38: 0
H39: 0 | J39: 0 | L39: 0
H40: 0 | J40: 0 | L40: 0
H41: 0 | J41: 0 | L41: 0
H42: 0 | J42: 0 | L42: 0
H43: 0 | J43: 0 | L43: 0
H44: 0 | J44: 0 | L44: 0
H45: 0 | J45: 0 | L45: 0
H46: 0 | J46: 0 | L46: 0
H47: 0 | J47: 0 | L47: 0
H48: 0 | J48: 0 | L48: 0
H49: 0 | J49: 0 | L49: 0
H50: 0 | J50: 0 | L50: 0
H51: 0 | J51: 0 | L51: 0
H52: 0 | J52: 0 | L52: 0
H53: 0 | J53: 0 | L53: 0
H54: 0 | J54: 0 | L54: 0
H55: 0 | J55: 0 | L55: 0
H56: 0 | J56: 0 | L56: 0
A57: OBS:. | F57: TOTAIS | G57: =SUM(H25:H56) -> 9000 | I57: =SUM(J25:J56) -> 9450 | K57: =SUM(L25:L56) -> 11250
A59: DATA | G59: APROVADO
A60: 2019-01-14

Sheet 3.9
A1: =+'itens projetos'!B21 -> Contador | I1: ='itens projetos'!C21 -> 11176
A2: VERBA | B2: VR. NOTA | C2: N º CHEQUE | D2: DATA DA SAÍDA | E2: DESCRIÇÃO DA SAÍDA | F2: NF | G2: DATA DA NOTA | H2: QTDADE
A3: =+'itens projetos'!I21 -> 8586 | B3: 954 | C3: 850020 | D3: 2019-02-05 | E3: ATIVA CONTABIL | F3: NF 0541 | G3: 2019-01-31 | H3: 1
B4: 954 | C4: 850038 | D4: 2019-03-12 | E4: ATIVA CONTABIL | F4: NF 0568 | G4: 2019-02-28 | H4: 1
B5: 954 | C5: 850053 | D5: 2019-04-04 | E5: ATIVA CONTABIL | F5: NF 0602 | G5: 2019-03-29 | H5: 1
B6: 954 | C6: 850081 | D6: 2019-05-15 | E6: ATIVA CONTABIL | F6: NF 0637 | G6: 2019-04-30 | H6: 1
B7: 954 | C7: 850097 | D7: 2019-06-04 | E7: ATIVA CONTABIL | F7: NF 0670 | G7: 2019-05-28 | H7: 1
B8: 954 | C8: 850144 | D8: 2019-07-02 | E8: ATIVA CONTABIL | F8: NF 0695 | G8: 2019-06-27 | H8: 1
B9: 954 | C9: 850124 | D9: 2019-08-05 | E9: ATIVA CONTABIL | F9: NF 0730 | G9: 2019-07-26 | H9: 1
B10: 954 | C10: 850186 | D10: 2019-09-03 | E10: ATIVA CONTABIL | F10: NF 0763 | G10: 2019-08-26 | H10: 1
B11: 954 | C11: 850179 | D11: 2019-10-03 | E11: ATIVA CONTABIL | F11: NF 0796 | G11: 2019-09-24 | H11: 1
A13: =SUM(A3:A7) -> 8586 | B13: =SUM(B3:B11) -> 8586
A14: SALDO | B14: =A13-B13 -> 0
A17: COTAÇÃO DE MATERIAIS E SERVIÇOS
G20: 1 - Fornecedor | I20: 2 - Fornecedor | K20: 3 - Fornecedor
G21: CONTADATA | I21: DATECON | K21: ATIVA
G22: CNPJ:53.408.530/0001-30 | I22: CNPJ: 11.236.799/0001-36 | K22: CNPJ: 49.501.679/0001-91
A23: QTDE | B23: UNI | C23: COD | D23: DESCRIÇÃO DO MATERIAL | G23: V. UNI | H23: V. TOTAL | I23: V. UNI | J23: V. TOTAL | K23: V. UNI | L23: V. TOTAL
A24: 9 | B24: MESES | C24: 17 | D24: CONTADOR | G24: 1000 | H24: =A24*G24 -> 9000 | I24: 1200 | J24: =I24*A24 -> 10800 | K24: 954 | L24: =K24*A24 -> 8586
H25: =A25*G25 -> 0 | J25: =I25*A25 -> 0 | L25: =K25*A25 -> 0
H26: 0 | J26: 0 | L26: 0
H27: 0 | J27: 0 | L27: 0
H28: 0 | J28: 0 | L28: 0
H29: 0 | J29: 0 | L29: 0
H30: 0 | J30: 0 | L30: 0
H31: 0 | J31: 0 | L31: 0
H32: 0 | J32: 0 | L32: 0
H33: 0 | J33: 0 | L33: 0
H34: 0 | J34: 0 | L34: 0
H35: 0 | J35: 0 | L35: 0
H36: 0 | J36: 0 | L36: 0
H37: 0 | J37: 0 | L37: 0
H38: 0 | J38: 0 | L38: 0
H39: 0 | J39: 0 | L39: 0
H40: 0 | J40: 0 | L40: 0
H41: 0 | J41: 0 | L41: 0
H42: 0 | J42: 0 | L42: 0
H43: 0 | J43: 0 | L43: 0
H44: 0 | J44: 0 | L44: 0
H45: 0 | J45: 0 | L45: 0
H46: 0 | J46: 0 | L46: 0
H47: 0 | J47: 0 | L47: 0
H48: 0 | J48: 0 | L48: 0
H49: 0 | J49: 0 | L49: 0
H50: 0 | J50: 0 | L50: 0
H51: 0 | J51: 0 | L51: 0
H52: 0 | J52: 0 | L52: 0
H53: 0 | J53: 0 | L53: 0
H54: 0 | J54: 0 | L54: 0
H55: 0 | J55: 0 | L55: 0
A56: OBS:. | F56: TOTAIS | G56: =SUM(H24:H55) -> 9000 | I56: =SUM(J24:J55) -> 10800 | K56: =SUM(L24:L55) -> 8586
A58: DATA | K58: APROVADO
A59: 2019-01-15

Sheet 3.10
A1: =+'itens projetos'!B22 -> Curador
A2: VERBA | B2: VR. NOTA | C2: N º CHEQUE | D2: DATA DA SAÍDA | E2: DESCRIÇÃO DA SAÍDA | F2: NF | G2: DATA DA NOTA | H2: QTDADE | I2: ='itens projetos'!C22 -> 11177
A3: =+'itens projetos'!I22 -> 15000 | B3: 15000 | C3: 850199 | D3: 2019-09-06 | E3: COR E TAL OFICINAS DE ARTE E EVENTOS LTDA | F3: NF 1272 | G3: 2019-09-05 | H3: 1
A7: =SUM(A3:A6) -> 15000 | B7: =SUM(B3:B6) -> 15000
A8: SALDO | B8: =A7-B7 -> 0
A12: COTAÇÃO DE MATERIAIS E SERVIÇOS
G15: 1 - Fornecedor | I15: 2 - Fornecedor | K15: 3 - Fornecedor
A16: =+'itens projetos'!A2:M2 -> MARYSIA PORTINARI - UNIVERSO PRÉ-EXISTENTE - PRONAC: 182445 | G16: COR E TAL | I16: KLINTOWITZ | K16: LUCKY
G17: CNPJ: 10.875.118/0001-17 | I17: CNPJ: 08.977.656/0001-70 | K17: CNPJ: 00.265.815/0001-00
A18: QTDE | B18: UNI | C18: COD | D18: DESCRIÇÃO DO MATERIAL | G18: V. UNI | H18: V. TOTAL | I18: V. UNI | J18: V. TOTAL | K18: V. UNI | L18: V. TOTAL
A19: 1 | B19: SERVIÇO | C19: 17 | D19: Curador | G19: 15000 | H19: =A19*G19 -> 15000 | I19: 18000 | J19: =I19*A19 -> 18000 | K19: 20000 | L19: =K19*A19 -> 20000
H20: =A20*G20 -> 0 | J20: =I20*A20 -> 0 | L20: =K20*A20 -> 0
H21: 0 | J21: 0 | L21: 0
H22: 0 | J22: 0 | L22: 0
H23: 0 | J23: 0 | L23: 0
H24: 0 | J24: 0 | L24: 0
H25: 0 | J25: 0 | L25: 0
H26: 0 | J26: 0 | L26: 0
H27: 0 | J27: 0 | L27: 0
H28: 0 | J28: 0 | L28: 0
H29: 0 | J29: 0 | L29: 0
H30: 0 | J30: 0 | L30: 0
H31: 0 | J31: 0 | L31: 0
H32: 0 | J32: 0 | L32: 0
H33: 0 | J33: 0 | L33: 0
H34: 0 | J34: 0 | L34: 0
H35: 0 | J35: 0 | L35: 0
H36: 0 | J36: 0 | L36: 0
H37: 0 | J37: 0 | L37: 0
H38: 0 | J38: 0 | L38: 0
H39: 0 | J39: 0 | L39: 0
H40: 0 | J40: 0 | L40: 0
H41: 0 | J41: 0 | L41: 0
H42: 0 | J42: 0 | L42: 0
H43: 0 | J43: 0 | L43: 0
H44: 0 | J44: 0 | L44: 0
H45: 0 | J45: 0 | L45: 0
H46: 0 | J46: 0 | L46: 0
H47: 0 | J47: 0 | L47: 0
H48: 0 | J48: 0 | L48: 0
H49: 0 | J49: 0 | L49: 0
H50: 0 | J50: 0 | L50: 0
A51: OBS:. | F51: TOTAIS | G51: =SUM(H19:H50) -> 15000 | I51: =SUM(J19:J50) -> 18000 | K51: =SUM(L19:L50) -> 20000
A53: DATA | G53: APROVADO
A54: 2019-01-14

Sheet 3.11
A1: =+'itens projetos'!B23 -> Adesivos
A2: VERBA | B2: VR. NOTA | C2: N º CHEQUE | D2: DATA DA SAÍDA | E2: DESCRIÇÃO DA SAÍDA | F2: NF | G2: DATA DA NOTA | H2: QTDADE | I2: ='itens projetos'!C23 -> 11178
A3: =+'itens projetos'!I23 -> 2200 | B3: 2200 | C3: 850166 | D3: 2019-09-19 | E3: NOVA IDEAL EVENTOS LTDA | F3: 0677 | G3: 2019-09-17 | H3: 1
A15: =SUM(A3:A14) -> 2200 | B15: =SUM(B3:B14) -> 2200
A16: SALDO | B16: =A15-B15 -> 0
A19: COTAÇÃO DE MATERIAIS E SERVIÇOS
G22: 1 - Fornecedor | I22: 2 - Fornecedor | K22: 3 - Fornecedor
A23: =+'itens projetos'!A2:M2 -> MARYSIA PORTINARI - UNIVERSO PRÉ-EXISTENTE - PRONAC: 182445 | G23: Fabricio de la o | I23: Adex | K23: Visão Digital
G24: CNPJ: 23.556.325/0001-50 | I24: CNPJ: 04.834.612/0001-30 | K24: CNPJ: 22.530.132/0001-68
A25: QTDE | B25: UNI | C25: COD | D25: DESCRIÇÃO DO MATERIAL | G25: V. UNI | H25: V. TOTAL | I25: V. UNI | J25: V. TOTAL | K25: V. UNI | L25: V. TOTAL
A26: 1 | B26: 2 | C26: 21 | D26: Embalagem e acondicionamento para exposição | G26: 1100 | H26: 2200 | I26: 1300 | J26: 2600 | K26: 1250 | L26: 2500
A27: 1 | B27: 1 | C27: 22 | D27: Impressão em braile | G27: 9000 | H27: 9000 | I27: 10000 | J27: 10000 | K27: 9800 | L27: 9800
H28: =A28*G28 -> 0 | J28: =I28*A28 -> 0 | L28: =K28*A28 -> 0
H29: 0 | J29: 0 | L29: 0
H30: 0 | J30: 0 | L30: 0
H31: 0 | J31: 0 | L31: 0
H32: 0 | J32: 0 | L32: 0
H33: 0 | J33: 0 | L33: 0
H34: 0 | J34: 0 | L34: 0
H35: 0 | J35: 0 | L35: 0
H36: 0 | J36: 0 | L36: 0
H37: 0 | J37: 0 | L37: 0
H38: 0 | J38: 0 | L38: 0
H39: 0 | J39: 0 | L39: 0
H40: 0 | J40: 0 | L40: 0
H41: 0 | J41: 0 | L41: 0
H42: 0 | J42: 0 | L42: 0
H43: 0 | J43: 0 | L43: 0
H44: 0 | J44: 0 | L44: 0
H45: 0 | J45: 0 | L45: 0
H46: 0 | J46: 0 | L46: 0
H47: 0 | J47: 0 | L47: 0
H48: 0 | J48: 0 | L48: 0
H49: 0 | J49: 0 | L49: 0
H50: 0 | J50: 0 | L50: 0
H51: 0 | J51: 0 | L51: 0
H52: 0 | J52: 0 | L52: 0
H53: 0 | J53: 0 | L53: 0
H54: 0 | J54: 0 | L54: 0
H55: 0 | J55: 0 | L55: 0
H56: 0 | J56: 0 | L56: 0
H57: 0 | J57: 0 | L57: 0
A58: OBS:. | F58: TOTAIS | G58: =SUM(H26:H57) -> 11200 | I58: =SUM(J26:J57) -> 12600 | K58: =SUM(L26:L57) -> 12300
A60: DATA | G60: APROVADO
A61: 2019-01-14

Sheet 3.12
A1: =+'itens projetos'!B24 -> Cenografia/material/confecção
A2: VERBA | B2: VR. NOTA | C2: N º CHEQUE | D2: DATA DA SAÍDA | E2: DESCRIÇÃO DA SAÍDA | F2: NF | G2: DATA DA NOTA | H2: QTDADE | I2: ='itens projetos'!C24 -> 11179
A3: =+'itens projetos'!I24 -> 4500 | B3: 1900 | C3: 850141 | D3: 2019-06-18 | E3: BRIC A BRAC DECORAÇÕES LTDA | F3: 0039 | G3: 2019-06-18 | H3: 8
B4: 2612.5 | C4: 850178 | D4: 2019-09-26 | E4: BRIC A BRAC DECORAÇÕES LTDA | F4: 45 | G4: 2019-09-25 | H4: 11
A7: =SUM(A3:A6) -> 4500 | B7: =SUM(B3:B6) -> 4512.5
A8: SALDO | B8: =A7-B7 -> -12.5
A12: COTAÇÃO DE MATERIAIS E SERVIÇOS
G15: 1 - Fornecedor | I15: 2 - Fornecedor | K15: 3 - Fornecedor
A16: =+'itens projetos'!A2:M2 -> MARYSIA PORTINARI - UNIVERSO PRÉ-EXISTENTE - PRONAC: 182445 | G16: BRIC A BRAC DECORAÇÕES | I16: CENTER ARTES | K16: SOMAR
G17: CNPJ: 48.608.020/0001-76 | I17: CNPJ: 09.449.295/0001-52 | K17: CNPJ: 20.800.945/0001-03
A18: QTDE | B18: UNI | C18: COD | D18: DESCRIÇÃO DO MATERIAL | G18: V. UNI | H18: V. TOTAL | I18: V. UNI | J18: V. TOTAL | K18: V. UNI | L18: V. TOTAL
A19: 1 | B19: 1 | C19: 19 | D19: Cenografia/material/confecção | G19: 4512.5 | H19: 4512.5 | I19: 6700 | J19: 6700 | K19: 4800 | L19: 4800
H20: =A20*G20 -> 0 | J20: =I20*A20 -> 0 | L20: =K20*A20 -> 0
H21: 0 | J21: 0 | L21: 0
H22: 0 | J22: 0 | L22: 0
H23: 0 | J23: 0 | L23: 0
H24: 0 | J24: 0 | L24: 0
H25: 0 | J25: 0 | L25: 0
H26: 0 | J26: 0 | L26: 0
H27: 0 | J27: 0 | L27: 0
H28: 0 | J28: 0 | L28: 0
H29: 0 | J29: 0 | L29: 0
H30: 0 | J30: 0 | L30: 0
H31: 0 | J31: 0 | L31: 0
H32: 0 | J32: 0 | L32: 0
H33: 0 | J33: 0 | L33: 0
H34: 0 | J34: 0 | L34: 0
H35: 0 | J35: 0 | L35: 0
H36: 0 | J36: 0 | L36: 0
H37: 0 | J37: 0 | L37: 0
H38: 0 | J38: 0 | L38: 0
H39: 0 | J39: 0 | L39: 0
H40: 0 | J40: 0 | L40: 0
H41: 0 | J41: 0 | L41: 0
H42: 0 | J42: 0 | L42: 0
H43: 0 | J43: 0 | L43: 0
H44: 0 | J44: 0 | L44: 0
H45: 0 | J45: 0 | L45: 0
H46: 0 | J46: 0 | L46: 0
H47: 0 | J47: 0 | L47: 0
H48: 0 | J48: 0 | L48: 0
H49: 0 | J49: 0 | L49: 0
H50: 0 | J50: 0 | L50: 0
A51: OBS:. | F51: TOTAIS | G51: =SUM(H19:H50) -> 4512.5 | I51: =SUM(J19:J50) -> 6700 | K51: =SUM(L19:L50) -> 4800
A53: DATA | G53: APROVADO
A54: 2019-01-14

Sheet 3.13
A1: =+'itens projetos'!B25 -> Coordenação geral
A2: VERBA | B2: VR. NOTA | C2: N º CHEQUE | D2: DATA DA SAÍDA | E2: DESCRIÇÃO DA SAÍDA | F2: NF | G2: DATA DA NOTA | H2: QTDADE | I2: ='itens projetos'!C25 -> 11180
A3: =+'itens projetos'!I25 -> 51750 | B3: 5750 | C3: 850018 | D3: 2019-02-01 | E3: COR E TAL OFICINAS DE ARTE E EVENTOS LTDA | F3: NF 1166 | G3: 2019-01-31 | H3: 1
B4: 5750 | C4: 850026 | D4: 2019-02-08 | E4: COR E TAL OFICINAS DE ARTE E EVENTOS LTDA | F4: NF 1174 | G4: 2019-02-07 | H4: 1
B5: 5750 | C5: 850048 | D5: 2019-03-19 | E5: COR E TAL OFICINAS DE ARTE E EVENTOS LTDA | F5: NF 1189 | G5: 2019-03-18 | H5: 1
B6: 5750 | C6: 850059 | D6: 2019-04-11 | E6: COR E TAL OFICINAS DE ARTE E EVENTOS LTDA | F6: NF 1200 | G6: 2019-04-11 | H6: 1
B7: 5750 | C7: 850078 | D7: 2019-05-13 | E7: COR E TAL OFICINAS DE ARTE E EVENTOS LTDA | F7: NF 1210 | G7: 2019-05-10 | H7: 1
B8: 5750 | C8: 850116 | D8: 2019-06-18 | E8: COR E TAL OFICINAS DE ARTE E EVENTOS LTDA | F8: NF 1221 | G8: 2019-06-17 | H8: 1
B9: 5750 | C9: 850150 | D9: 2019-07-16 | E9: COR E TAL OFICINAS DE ARTE E EVENTOS LTDA | F9: NF 1232 | G9: 2019-07-12 | H9: 1
B10: 5750 | C10: 8550130 | D10: 2019-08-19 | E10: COR E TAL OFICINAS DE ARTE E EVENTOS LTDA | F10: NF 1244 | G10: 2019-08-15 | H10: 1
B11: 5750 | C11: 850192 | D11: 2019-09-06 | E11: COR E TAL OFICINAS DE ARTE E EVENTOS LTDA | F11: NF 1262 | G11: 2019-09-05 | H11: 1
A16: =SUM(A3:A15) -> 51750 | B16: =SUM(B3:B15) -> 51750 | H16: =SUM(H3:H15) -> 9
A17: SALDO | B17: =A16-B16 -> 0
A21: COTAÇÃO DE MATERIAIS E SERVIÇOS
G24: 1 - Fornecedor | I24: 2 - Fornecedor | K24: 3 - Fornecedor
A25: =+'itens projetos'!A2:M2 -> MARYSIA PORTINARI - UNIVERSO PRÉ-EXISTENTE - PRONAC: 182445 | G25: SAT5 CENA | I25: 3° VISÃO | K25: BIT CLICK
G26: CNPJ: 06.181.012/0001-46 | I26: 43.865.484/0001-44 | K26: CNPJ: 58.102.252/0001-01
A27: QTDE | B27: UNI | C27: COD | D27: DESCRIÇÃO DO MATERIAL | G27: V. UNI | H27: V. TOTAL | I27: V. UNI | J27: V. TOTAL | K27: V. UNI | L27: V. TOTAL
A28: 1 | B28: 1 | C28: 6 | D28: FOTOGRAFIA ARTISTICA | G28: 20000 | H28: =A28*G28 -> 20000 | I28: 22200 | J28: =I28*A28 -> 22200 | K28: 21000 | L28: =K28*A28 -> 21000
H29: =A29*G29 -> 0 | J29: =I29*A29 -> 0 | L29: =K29*A29 -> 0
H30: 0 | J30: 0 | L30: 0
H31: 0 | J31: 0 | L31: 0
H32: 0 | J32: 0 | L32: 0
H33: 0 | J33: 0 | L33: 0
H34: 0 | J34: 0 | L34: 0
H35: 0 | J35: 0 | L35: 0
H36: 0 | J36: 0 | L36: 0
H37: 0 | J37: 0 | L37: 0
H38: 0 | J38: 0 | L38: 0
H39: 0 | J39: 0 | L39: 0
H40: 0 | J40: 0 | L40: 0
H41: 0 | J41: 0 | L41: 0
H42: 0 | J42: 0 | L42: 0
H43: 0 | J43: 0 | L43: 0
H44: 0 | J44: 0 | L44: 0
H45: 0 | J45: 0 | L45: 0
H46: 0 | J46: 0 | L46: 0
H47: 0 | J47: 0 | L47: 0
H48: 0 | J48: 0 | L48: 0
H49: 0 | J49: 0 | L49: 0
H50: 0 | J50: 0 | L50: 0
H51: 0 | J51: 0 | L51: 0
H52: 0 | J52: 0 | L52: 0
H53: 0 | J53: 0 | L53: 0
H54: 0 | J54: 0 | L54: 0
H55: 0 | J55: 0 | L55: 0
H56: 0 | J56: 0 | L56: 0
H57: 0 | J57: 0 | L57: 0
H58: 0 | J58: 0 | L58: 0
H59: 0 | J59: 0 | L59: 0
A60: OBS:. | F60: TOTAIS | G60: =SUM(H28:H59) -> 20000 | I60: =SUM(J28:J59) -> 22200 | K60: =SUM(L28:L59) -> 21000
A62: DATA | G62: APROVADO
A63: 2019-01-14

Sheet 4.1
A1: =+'itens projetos'!B26 -> Embalagem e acondicionamento para a exposição
A2: VERBA | B2: VR. NOTA | C2: N º CHEQUE | D2: DATA DA SAÍDA | E2: DESCRIÇÃO DA SAÍDA | F2: NF | G2: DATA DA NOTA | H2: QTDADE | I2: ='itens projetos'!C26 -> 11181
A3: =+'itens projetos'!I26 -> 2200 | B3: 2200 | C3: 850175 | D3: 2019-09-20 | E3: FABRICIO MIRANDA DE LA O | F3: 0008 | G3: 2019-09-18 | H3: 1
A11: =SUM(A3:A10) -> 2200 | B11: =SUM(B3:B10) -> 2200
A12: SALDO | B12: =A11-B11 -> 0
A14: COTAÇÃO DE MATERIAIS E SERVIÇOS
G17: 1 - Fornecedor | I17: 2 - Fornecedor | K17: 3 - Fornecedor
A18: =+'itens projetos'!A2:M2 -> MARYSIA PORTINARI - UNIVERSO PRÉ-EXISTENTE - PRONAC: 182445 | G18: COR E TAL | I18: KLINTOWITZ | K18: LUCKY
G19: CNPJ: 10.875.118/0001-17 | I19: CNPJ: 08.977.656/0001-70 | K19: CNPJ: 00.265.815/0001-00
A20: QTDE | B20: UNI | C20: COD | D20: DESCRIÇÃO DO MATERIAL | G20: V. UNI | H20: V. TOTAL | I20: V. UNI | J20: V. TOTAL | K20: V. UNI | L20: V. TOTAL
A21: 1 | C21: 22 | D21: Projeto de Comunicação Visual | G21: 10000 | H21: =A21*G21 -> 10000 | I21: 12000 | J21: =I21*A21 -> 12000 | K21: 14000 | L21: =K21*A21 -> 14000
H22: =A22*G22 -> 0 | J22: 0 | L22: =K22*A22 -> 0
H23: 0 | J23: 0 | L23: 0
H24: 0 | J24: 0 | L24: 0
H25: 0 | J25: 0 | L25: 0
H26: 0 | J26: 0 | L26: 0
H27: 0 | J27: 0 | L27: 0
H28: 0 | J28: 0 | L28: 0
H29: 0 | J29: 0 | L29: 0
H30: 0 | J30: 0 | L30: 0
H31: 0 | J31: 0 | L31: 0
H32: 0 | J32: 0 | L32: 0
H33: 0 | J33: 0 | L33: 0
H34: 0 | J34: 0 | L34: 0
H35: 0 | J35: 0 | L35: 0
H36: 0 | J36: 0 | L36: 0
H37: 0 | J37: 0 | L37: 0
H38: 0 | J38: 0 | L38: 0
H39: 0 | J39: 0 | L39: 0
H40: 0 | J40: 0 | L40: 0
H41: 0 | J41: 0 | L41: 0
H42: 0 | J42: 0 | L42: 0
H43: 0 | J43: 0 | L43: 0
H44: 0 | J44: 0 | L44: 0
H45: 0 | J45: 0 | L45: 0
H46: 0 | J46: 0 | L46: 0
H47: 0 | J47: 0 | L47: 0
H48: 0 | J48: 0 | L48: 0
H49: 0 | J49: 0 | L49: 0
H50: 0 | J50: 0 | L50: 0
H51: 0 | J51: 0 | L51: 0
H52: 0 | J52: 0 | L52: 0
A53: OBS:. | F53: TOTAIS | G53: =SUM(H21:H52) -> 10000 | I53: =SUM(J21:J52) -> 12000 | K53: =SUM(L21:L52) -> 14000
A55: DATA | G55: APROVADO
A56: 2015-01-05

Sheet 4.2
A1: =+'itens projetos'!B27 -> Impressão em braile
A2: VERBA | B2: VR. NOTA | C2: N º CHEQUE | D2: DATA DA SAÍDA | E2: DESCRIÇÃO DA SAÍDA | F2: NF | G2: DATA DA NOTA | H2: QTDADE | I2: ='itens projetos'!C27 -> 11182
A3: =+'itens projetos'!I27 -> 9000 | B3: 9000 | C3: 850174 | D3: 2019-09-19 | E3: FABRICIO MIRANDA DE LA O | F3: 0010 | G3: 2019-09-18 | H3: 1
A7: =SUM(A3:A6) -> 9000 | B7: =SUM(B3:B6) -> 9000
A8: SALDO | B8: =A7-B7 -> 0
A10: COTAÇÃO DE MATERIAIS E SERVIÇOS
G13: 1 - Fornecedor | I13: 2 - Fornecedor | K13: 3 - Fornecedor
A14: =+'itens projetos'!A2:M2 -> MARYSIA PORTINARI - UNIVERSO PRÉ-EXISTENTE - PRONAC: 182445
A16: QTDE | B16: UNI | C16: COD | D16: DESCRIÇÃO DO MATERIAL | G16: V. UNI | H16: V. TOTAL | I16: V. UNI | J16: V. TOTAL | K16: V. UNI | L16: V. TOTAL
C17: 3.20 | H17: =A17*G17 -> 0 | J17: =I17*A17 -> 0 | L17: =K17*A17 -> 0
H18: =A18*G18 -> 0 | J18: 0 | L18: =K18*A18 -> 0
H19: 0 | J19: 0 | L19: 0
H20: 0 | J20: 0 | L20: 0
H21: 0 | J21: 0 | L21: 0
H22: 0 | J22: 0 | L22: 0
H23: 0 | J23: 0 | L23: 0
H24: 0 | J24: 0 | L24: 0
H25: 0 | J25: 0 | L25: 0
H26: 0 | J26: 0 | L26: 0
H27: 0 | J27: 0 | L27: 0
H28: 0 | J28: 0 | L28: 0
H29: 0 | J29: 0 | L29: 0
H30: 0 | J30: 0 | L30: 0
H31: 0 | J31: 0 | L31: 0
H32: 0 | J32: 0 | L32: 0
H33: 0 | J33: 0 | L33: 0
H34: 0 | J34: 0 | L34: 0
H35: 0 | J35: 0 | L35: 0
H36: 0 | J36: 0 | L36: 0
H37: 0 | J37: 0 | L37: 0
H38: 0 | J38: 0 | L38: 0
H39: 0 | J39: 0 | L39: 0
H40: 0 | J40: 0 | L40: 0
H41: 0 | J41: 0 | L41: 0
H42: 0 | J42: 0 | L42: 0
H43: 0 | J43: 0 | L43: 0
H44: 0 | J44: 0 | L44: 0
H45: 0 | J45: 0 | L45: 0
H46: 0 | J46: 0 | L46: 0
H47: 0 | J47: 0 | L47: 0
H48: 0 | J48: 0 | L48: 0
A49: OBS:. | F49: TOTAIS | G49: =SUM(H17:H48) -> 0 | I49: =SUM(J17:J48) -> 0 | K49: =SUM(L17:L48) -> 0
A51: DATA | G51: APROVADO
A52: 2013-05-28

Sheet 4.3
A1: =+'itens projetos'!B28 -> Intérprete de libras
A2: VERBA | B2: VR. NOTA | C2: N º CHEQUE | D2: DATA DA SAÍDA | E2: DESCRIÇÃO DA SAÍDA | F2: NF | G2: DATA DA NOTA | H2: QTDADE | I2: ='itens projetos'!C28 -> 11183
A3: =+'itens projetos'!I28 -> 3200 | B3: 3200 | C3: 850195 | D3: 2019-09-06 | E3: COR E TAL OFICINAS DE ARTE E EVENTOS LTDA | F3: NF 1267 | G3: 2019-09-05 | H3: 2
A7: =SUM(A3:A6) -> 3200 | B7: =SUM(B3:B6) -> 3200
A8: SALDO | B8: =A7-B7 -> 0
A10: COTAÇÃO DE MATERIAIS E SERVIÇOS
G13: 1 - Fornecedor | I13: 2 - Fornecedor | K13: 3 - Fornecedor
A14: =+'itens projetos'!A2:M2 -> MARYSIA PORTINARI - UNIVERSO PRÉ-EXISTENTE - PRONAC: 182445 | G14: COR E TAL | I14: EPS | K14: VISÃO
G15: CNP: 10.875.118/0001-17 | I15: CNPJ: 05.004.458/0001-32 | K15: CNPJ: 22.530.132/0001-68
A16: QTDE | B16: UNI | C16: COD | D16: DESCRIÇÃO DO MATERIAL | G16: V. UNI | H16: V. TOTAL | I16: V. UNI | J16: V. TOTAL | K16: V. UNI | L16: V. TOTAL
A17: 1 | C17: 24 | D17: PROJETO DE COMUNICAÇÃO DE VISUAL | G17: 10000 | H17: =A17*G17 -> 10000 | I17: 12000 | J17: 12000 | K17: 15000 | L17: =K17*A17 -> 15000
H18: =A18*G18 -> 0 | J18: =I18*A18 -> 0 | L18: =K18*A18 -> 0
H19: 0 | J19: 0 | L19: 0
H20: 0 | J20: 0 | L20: 0
H21: 0 | J21: 0 | L21: 0
H22: 0 | J22: 0 | L22: 0
H23: 0 | J23: 0 | L23: 0
H24: 0 | J24: 0 | L24: 0
H25: 0 | J25: 0 | L25: 0
H26: 0 | J26: 0 | L26: 0
H27: 0 | J27: 0 | L27: 0
H28: 0 | J28: 0 | L28: 0
H29: 0 | J29: 0 | L29: 0
H30: 0 | J30: 0 | L30: 0
H31: 0 | J31: 0 | L31: 0
H32: 0 | J32: 0 | L32: 0
H33: 0 | J33: 0 | L33: 0
H34: 0 | J34: 0 | L34: 0
H35: 0 | J35: 0 | L35: 0
H36: 0 | J36: 0 | L36: 0
H37: 0 | J37: 0 | L37: 0
H38: 0 | J38: 0 | L38: 0
H39: 0 | J39: 0 | L39: 0
H40: 0 | J40: 0 | L40: 0
H41: 0 | J41: 0 | L41: 0
H42: 0 | J42: 0 | L42: 0
H43: 0 | J43: 0 | L43: 0
H44: 0 | J44: 0 | L44: 0
H45: 0 | J45: 0 | L45: 0
H46: 0 | J46: 0 | L46: 0
H47: 0 | J47: 0 | L47: 0
H48: 0 | J48: 0 | L48: 0
A49: OBS:. | F49: TOTAIS | G49: =SUM(H17:H48) -> 10000 | I49: =SUM(J17:J48) -> 12000 | K49: =SUM(L17:L48) -> 15000
A51: DATA | G51: APROVADO
A52: 2017-07-08

Sheet 4.10
A1: =+'itens projetos'!B29 -> Locação de Equipamento de projeção
A2: VERBA | B2: VR. NOTA | C2: N º CHEQUE | D2: DATA DA SAÍDA | E2: DESCRIÇÃO DA SAÍDA | F2: NF | G2: DATA DA NOTA | H2: QTDADE | I2: ='itens projetos'!C29 -> 11184
A3: =+'itens projetos'!I29 -> 3000 | B3: 3000 | C3: 850161 | D3: 2019-09-11 | E3: SAT 5 CENA E TAKE 1 PRODUÇÕES | F3: 901 | G3: 2019-09-06 | H3: 1
A20: =SUM(A3:A5) -> 3000 | B20: =SUM(B3:B19) -> 3000
A21: SALDO | B21: =A20-B20 -> 0
A25: COTAÇÃO DE MATERIAIS E SERVIÇOS
G28: 1 - Fornecedor | I28: 2 - Fornecedor | K28: 3 - Fornecedor
A29: =+'itens projetos'!A2:M2 -> MARYSIA PORTINARI - UNIVERSO PRÉ-EXISTENTE - PRONAC: 182445 | G29: SAT5 CENA | I29: 3° VISÃO | K29: BIT CLICK
G30: CNPJ: 06.181.012/0001-46 | I30: 43.865.484/0001-44 | K30: CNPJ: 58.102.252/0001-01
A31: QTDE | B31: UNI | C31: COD | D31: DESCRIÇÃO DO MATERIAL | G31: V. UNI | H31: V. TOTAL | I31: V. UNI | J31: V. TOTAL | K31: V. UNI | L31: V. TOTAL
A32: 1 | B32: SERVIÇO | C32: 24 | D32: Locação de equipamento de projeção | G32: 3000 | H32: =A32*G32 -> 3000 | I32: 3800 | J32: =I32*A32 -> 3800 | K32: 3180 | L32: =K32*A32 -> 3180
H33: =A33*G33 -> 0 | J33: =I33*A33 -> 0 | L33: =K33*A33 -> 0
H34: 0 | J34: 0 | L34: 0
H35: 0 | J35: 0 | L35: 0
H36: 0 | J36: 0 | L36: 0
H37: 0 | J37: 0 | L37: 0
H38: 0 | J38: 0 | L38: 0
H39: 0 | J39: 0 | L39: 0
H40: 0 | J40: 0 | L40: 0
H41: 0 | J41: 0 | L41: 0
H42: 0 | J42: 0 | L42: 0
H43: 0 | J43: 0 | L43: 0
H44: 0 | J44: 0 | L44: 0
H45: 0 | J45: 0 | L45: 0
H46: 0 | J46: 0 | L46: 0
H47: 0 | J47: 0 | L47: 0
H48: 0 | J48: 0 | L48: 0
H49: 0 | J49: 0 | L49: 0
H50: 0 | J50: 0 | L50: 0
H51: 0 | J51: 0 | L51: 0
H52: 0 | J52: 0 | L52: 0
H53: 0 | J53: 0 | L53: 0
H54: 0 | J54: 0 | L54: 0
H55: 0 | J55: 0 | L55: 0
H56: 0 | J56: 0 | L56: 0
H57: 0 | J57: 0 | L57: 0
H58: 0 | J58: 0 | L58: 0
H59: 0 | J59: 0 | L59: 0
H60: 0 | J60: 0 | L60: 0
H61: 0 | J61: 0 | L61: 0
H62: 0 | J62: 0 | L62: 0
H63: 0 | J63: 0 | L63: 0
A64: OBS:. | F64: TOTAIS | G64: =SUM(H32:H63) -> 3000 | I64: =SUM(J32:J63) -> 3800 | K64: =SUM(L32:L63) -> 3180
A66: DATA | G66: APROVADO

Sheet 5.1
A1: =+'itens projetos'!B30 -> Locação de Espaço para Exposição
A2: VERBA | B2: VR. NOTA | C2: N º CHEQUE | D2: DATA DA SAÍDA | E2: DESCRIÇÃO DA SAÍDA | F2: NF | G2: DATA DA NOTA | H2: QTDADE | I2: ='itens projetos'!C30 -> 11185
A3: =+'itens projetos'!I30 -> 7500 | B3: 7500 | C3: 850162 | D3: 2019-09-12 | E3: FUNDAÇÃO MEMORIAL DA AMERICA LATINA | G3: 2019-09-12 | H3: 1
A7: =SUM(A3:A6) -> 7500 | B7: =SUM(B3:B6) -> 7500
A8: SALDO | B8: =A7-B7 -> 0
A10: COTAÇÃO DE MATERIAIS E SERVIÇOS
G13: 1 - Fornecedor | I13: 2 - Fornecedor | K13: 3 - Fornecedor
A14: =+'itens projetos'!A2:M2 -> MARYSIA PORTINARI - UNIVERSO PRÉ-EXISTENTE - PRONAC: 182445 | G14: COR E TAL | I14: PEOPLE | K14: BNER
G15: CNPJ: 10.875.118/0001-17 | I15: CNPJ: 13.933.022/0001-56 | K15: CNPJ: 82.344.425/0001-82
A16: QTDE | B16: UNI | C16: COD | D16: DESCRIÇÃO DO MATERIAL | G16: V. UNI | H16: V. TOTAL | I16: V. UNI | J16: V. TOTAL | K16: V. UNI | L16: V. TOTAL
A17: 1 | C17: 26 | D17: ASSISTENTE DE PRODUÇÃO | G17: 180 | H17: =A17*G17 -> 180 | I17: 200 | J17: 200 | K17: 250 | L17: =K17*A17 -> 250
H18: =A18*G18 -> 0 | J18: =I18*A18 -> 0 | L18: =K18*A18 -> 0
H19: 0 | J19: 0 | L19: 0
H20: 0 | J20: 0 | L20: 0
H21: 0 | J21: 0 | L21: 0
H22: 0 | J22: 0 | L22: 0
H23: 0 | J23: 0 | L23: 0
H24: 0 | J24: 0 | L24: 0
H25: 0 | J25: 0 | L25: 0
H26: 0 | J26: 0 | L26: 0
H27: 0 | J27: 0 | L27: 0
H28: 0 | J28: 0 | L28: 0
H29: 0 | J29: 0 | L29: 0
H30: 0 | J30: 0 | L30: 0
H31: 0 | J31: 0 | L31: 0
H32: 0 | J32: 0 | L32: 0
H33: 0 | J33: 0 | L33: 0
H34: 0 | J34: 0 | L34: 0
H35: 0 | J35: 0 | L35: 0
H36: 0 | J36: 0 | L36: 0
H37: 0 | J37: 0 | L37: 0
H38: 0 | J38: 0 | L38: 0
H39: 0 | J39: 0 | L39: 0
H40: 0 | J40: 0 | L40: 0
H41: 0 | J41: 0 | L41: 0
H42: 0 | J42: 0 | L42: 0
H43: 0 | J43: 0 | L43: 0
H44: 0 | J44: 0 | L44: 0
H45: 0 | J45: 0 | L45: 0
H46: 0 | J46: 0 | L46: 0
H47: 0 | J47: 0 | L47: 0
H48: 0 | J48: 0 | L48: 0
A49: OBS:. | F49: TOTAIS | G49: =SUM(H17:H48) -> 180 | I49: =SUM(J17:J48) -> 200 | K49: =SUM(L17:L48) -> 250
A51: DATA | G51: APROVADO
A52: 2017-07-08

Sheet 6.2
A1: =+'itens projetos'!B31 -> Locação de Mobiliário
A2: VERBA | B2: VR. NOTA | C2: N º CHEQUE | D2: DATA DA SAÍDA | E2: DESCRIÇÃO DA SAÍDA | F2: NF | G2: DATA DA NOTA | H2: QTDADE | I2: ='itens projetos'!C31 -> 11186
A3: =+'itens projetos'!I31 -> 2500 | B3: 2500 | C3: 850167 | D3: 2019-07-19 | E3: NOVA IDEAL EVENTOS LTDA | F3: ND 151 | G3: 2019-09-16 | H3: 18
A7: =SUM(A3:A6) -> 2500 | B7: =SUM(B3:B6) -> 2500
A8: SALDO | B8: =A7-B7 -> 0
A10: COTAÇÃO DE MATERIAIS E SERVIÇOS
G13: 1 - Fornecedor | I13: 2 - Fornecedor | K13: 3 - Fornecedor
A14: =+'itens projetos'!A2:M2 -> MARYSIA PORTINARI - UNIVERSO PRÉ-EXISTENTE - PRONAC: 182445 | G14: NOVA IDEAL | I14: BJB SINALIZAÇÃO | K14: ESTRUTURAL
G15: CNPJ: 06.086.217/0001-42 | I15: CNPJ: 13.365.851/0001-80 | K15: CNPJ: 07.476.923/0001-63
A16: QTDE | B16: UNI | C16: COD | D16: DESCRIÇÃO DO MATERIAL | G16: V. UNI | H16: V. TOTAL | I16: V. UNI | J16: V. TOTAL | K16: V. UNI | L16: V. TOTAL
A17: 1 | B17: SERVIÇO | C17: 26 | D17: LOCAÇÃO DE MOBILIARIO | G17: 2500 | H17: =A17*G17 -> 2500 | I17: 3500 | J17: 3500 | K17: 4000 | L17: =K17*A17 -> 4000
H18: =A18*G18 -> 0 | J18: =I18*A18 -> 0 | L18: =K18*A18 -> 0
H19: 0 | J19: 0 | L19: 0
H20: 0 | J20: 0 | L20: 0
H21: 0 | J21: 0 | L21: 0
H22: 0 | J22: 0 | L22: 0
H23: 0 | J23: 0 | L23: 0
H24: 0 | J24: 0 | L24: 0
H25: 0 | J25: 0 | L25: 0
H26: 0 | J26: 0 | L26: 0
H27: 0 | J27: 0 | L27: 0
H28: 0 | J28: 0 | L28: 0
H29: 0 | J29: 0 | L29: 0
H30: 0 | J30: 0 | L30: 0
H31: 0 | J31: 0 | L31: 0
H32: 0 | J32: 0 | L32: 0
H33: 0 | J33: 0 | L33: 0
H34: 0 | J34: 0 | L34: 0
H35: 0 | J35: 0 | L35: 0
H36: 0 | J36: 0 | L36: 0
H37: 0 | J37: 0 | L37: 0
H38: 0 | J38: 0 | L38: 0
H39: 0 | J39: 0 | L39: 0
H40: 0 | J40: 0 | L40: 0
H41: 0 | J41: 0 | L41: 0
H42: 0 | J42: 0 | L42: 0
H43: 0 | J43: 0 | L43: 0
H44: 0 | J44: 0 | L44: 0
H45: 0 | J45: 0 | L45: 0
H46: 0 | J46: 0 | L46: 0
H47: 0 | J47: 0 | L47: 0
H48: 0 | J48: 0 | L48: 0
A49: OBS:. | F49: TOTAIS | G49: =SUM(H17:H48) -> 2500 | I49: =SUM(J17:J48) -> 3500 | K49: =SUM(L17:L48) -> 4000
A51: DATA | G51: APROVADO
A52: 2019-01-14

Sheet 6.3
A1: =+'itens projetos'!B32 -> Montagem e desmontagem
A2: VERBA | B2: VR. NOTA | C2: N º CHEQUE | D2: DATA DA SAÍDA | E2: DESCRIÇÃO DA SAÍDA | F2: NF | G2: DATA DA NOTA | H2: QTDADE | I2: ='itens projetos'!C32 -> 11187
A3: =+'itens projetos'!I32 -> 2500 | B3: 2500 | C3: 850196 | D3: 2019-09-06 | E3: COR E TAL OFICINAS DE ARTE E EVENTOS LTDA | F3: NF 1268 | G3: 2019-09-05 | H3: 1
A7: =SUM(A3:A6) -> 2500 | B7: =SUM(B3:B6) -> 2500
A8: SALDO | B8: =A7-B7 -> 0
A10: COTAÇÃO DE MATERIAIS E SERVIÇOS
G13: 1 - Fornecedor | I13: 2 - Fornecedor | K13: 3 - Fornecedor
A14: =+'itens projetos'!A2:M2 -> MARYSIA PORTINARI - UNIVERSO PRÉ-EXISTENTE - PRONAC: 182445 | G14: COR E TAL | I14: DERG SERVIÇOS | K14: CICERO BIBIANO
G15: CNPJ: 10.875.118/0001-17 | I15: CNPJ: 07.675.403/0001-80 | K15: CNPJ: 17.818.077/0001-76
A16: QTDE | B16: UNI | C16: COD | D16: DESCRIÇÃO DO MATERIAL | G16: V. UNI | H16: V. TOTAL | I16: V. UNI | J16: V. TOTAL | K16: V. UNI | L16: V. TOTAL
A17: 1 | B17: SERVIÇO | C17: 27 | D17: MONTAGEM E DESMONTAGEM | G17: 2500 | H17: =A17*G17 -> 2500 | I17: 3200 | J17: 3200 | K17: 3500 | L17: =K17*A17 -> 3500
H18: =A18*G18 -> 0 | J18: =I18*A18 -> 0 | L18: =K18*A18 -> 0
H19: 0 | J19: 0 | L19: 0
H20: 0 | J20: 0 | L20: 0
H21: 0 | J21: 0 | L21: 0
H22: 0 | J22: 0 | L22: 0
H23: 0 | J23: 0 | L23: 0
H24: 0 | J24: 0 | L24: 0
H25: 0 | J25: 0 | L25: 0
H26: 0 | J26: 0 | L26: 0
H27: 0 | J27: 0 | L27: 0
H28: 0 | J28: 0 | L28: 0
H29: 0 | J29: 0 | L29: 0
H30: 0 | J30: 0 | L30: 0
H31: 0 | J31: 0 | L31: 0
H32: 0 | J32: 0 | L32: 0
H33: 0 | J33: 0 | L33: 0
H34: 0 | J34: 0 | L34: 0
H35: 0 | J35: 0 | L35: 0
H36: 0 | J36: 0 | L36: 0
H37: 0 | J37: 0 | L37: 0
H38: 0 | J38: 0 | L38: 0
H39: 0 | J39: 0 | L39: 0
H40: 0 | J40: 0 | L40: 0
H41: 0 | J41: 0 | L41: 0
H42: 0 | J42: 0 | L42: 0
H43: 0 | J43: 0 | L43: 0
H44: 0 | J44: 0 | L44: 0
H45: 0 | J45: 0 | L45: 0
H46: 0 | J46: 0 | L46: 0
H47: 0 | J47: 0 | L47: 0
H48: 0 | J48: 0 | L48: 0
A49: OBS:. | F49: TOTAIS | G49: =SUM(H17:H48) -> 2500 | I49: =SUM(J17:J48) -> 3200 | K49: =SUM(L17:L48) -> 3500
A51: DATA | G51: APROVADO
A52: 2013-05-28

Sheet 6.4
A1: =+'itens projetos'!B33 -> Projeto cenográfico
A2: VERBA | B2: VR. NOTA | C2: N º CHEQUE | D2: DATA DA SAÍDA | E2: DESCRIÇÃO DA SAÍDA | F2: NF | G2: DATA DA NOTA | H2: QTDADE | I2: ='itens projetos'!C33 -> 11188
A3: =+'itens projetos'!I33 -> 6000 | B3: 6000 | C3: 850197 | D3: 2019-09-06 | E3: COR E TAL OFICINAS DE ARTE E EVENTOS LTDA | F3: NF 1269 | G3: 2019-09-05
A7: =SUM(A3:A6) -> 6000 | B7: =SUM(B3:B6) -> 6000
A8: SALDO | B8: =A7-B7 -> 0
A10: COTAÇÃO DE MATERIAIS E SERVIÇOS
G13: 1 - Fornecedor | I13: 2 - Fornecedor | K13: 3 - Fornecedor
A14: =+'itens projetos'!A2:M2 -> MARYSIA PORTINARI - UNIVERSO PRÉ-EXISTENTE - PRONAC: 182445 | G14: COR E TAL | I14: AMBP | K14: INTERAÇÃO
G15: CNPJ: 10.875.118/0001-17 | I15: CNPJ: 08.472.572/0001-85 | K15: CNPJ: 11.239.114/0001-05
A16: QTDE | B16: UNI | C16: COD | D16: DESCRIÇÃO DO MATERIAL | G16: V. UNI | H16: V. TOTAL | I16: V. UNI | J16: V. TOTAL | K16: V. UNI | L16: V. TOTAL
A17: 1 | B17: 1 | C17: 28 | D17: PROJETO CENOGRAFICO | G17: 6000 | H17: 6000 | I17: 12300 | J17: 12300 | K17: 8000 | L17: =K17*A17 -> 8000
H18: =A18*G18 -> 0 | J18: =I18*A18 -> 0 | L18: =K18*A18 -> 0
H19: 0 | J19: 0 | L19: 0
H20: 0 | J20: 0 | L20: 0
H21: 0 | J21: 0 | L21: 0
H22: 0 | J22: 0 | L22: 0
H23: 0 | J23: 0 | L23: 0
H24: 0 | J24: 0 | L24: 0
H25: 0 | J25: 0 | L25: 0
H26: 0 | J26: 0 | L26: 0
H27: 0 | J27: 0 | L27: 0
H28: 0 | J28: 0 | L28: 0
H29: 0 | J29: 0 | L29: 0
H30: 0 | J30: 0 | L30: 0
H31: 0 | J31: 0 | L31: 0
H32: 0 | J32: 0 | L32: 0
H33: 0 | J33: 0 | L33: 0
H34: 0 | J34: 0 | L34: 0
H35: 0 | J35: 0 | L35: 0
H36: 0 | J36: 0 | L36: 0
H37: 0 | J37: 0 | L37: 0
H38: 0 | J38: 0 | L38: 0
H39: 0 | J39: 0 | L39: 0
H40: 0 | J40: 0 | L40: 0
H41: 0 | J41: 0 | L41: 0
H42: 0 | J42: 0 | L42: 0
H43: 0 | J43: 0 | L43: 0
H44: 0 | J44: 0 | L44: 0
H45: 0 | J45: 0 | L45: 0
H46: 0 | J46: 0 | L46: 0
H47: 0 | J47: 0 | L47: 0
H48: 0 | J48: 0 | L48: 0
A49: OBS:. | F49: TOTAIS | G49: =SUM(H17:H48) -> 6000 | I49: =SUM(J17:J48) -> 12300 | K49: =SUM(L17:L48) -> 8000
A51: DATA | G51: APROVADO
A52: 2019-01-14

Sheet 6.5
A1: =+'itens projetos'!B34 -> Transporte de material
A2: VERBA | B2: VR. NOTA | C2: N º CHEQUE | D2: DATA DA SAÍDA | E2: DESCRIÇÃO DA SAÍDA | F2: NF | G2: DATA DA NOTA | H2: QTDADE | I2: ='itens projetos'!C34 -> 11189
A3: =+'itens projetos'!I34 -> 2400 | B3: 2400 | C3: 850164 | D3: 2019-09-16 | E3: JOSE EDUARDO SILVA DARIS | F3: 0019 | G3: 2019-09-13 | H3: 1
A7: =SUM(A3:A6) -> 2400 | B7: =SUM(B3:B6) -> 2400
A8: SALDO | B8: =A7-B7 -> 0
A10: COTAÇÃO DE MATERIAIS E SERVIÇOS
G13: 1 - Fornecedor | I13: 2 - Fornecedor | K13: 3 - Fornecedor
A14: =+'itens projetos'!A2:M2 -> MARYSIA PORTINARI - UNIVERSO PRÉ-EXISTENTE - PRONAC: 182445 | G14: JOSE EDUARDO | I14: ANA FRANSCISCO | K14: BESSA
G15: CNPJ: 24.256.835/0001-75 | I15: CNPJ: 17.846.067/0001-44 | K15: CNPJ: 10.670.857/0001-39
A16: QTDE | B16: UNI | C16: COD | D16: DESCRIÇÃO DO MATERIAL | G16: V. UNI | H16: V. TOTAL | I16: V. UNI | J16: V. TOTAL | K16: V. UNI | L16: V. TOTAL
A17: 2 | B17: SERVIÇO | C17: 29 | D17: TRANSPORTE DE MATERIAL | G17: 1200 | H17: =A17*G17 -> 2400 | I17: 1650 | J17: 3300 | K17: 1500 | L17: =K17*A17 -> 3000
H18: =A18*G18 -> 0 | J18: =I18*A18 -> 0 | L18: =K18*A18 -> 0
H19: 0 | J19: 0 | L19: 0
H20: 0 | J20: 0 | L20: 0
H21: 0 | J21: 0 | L21: 0
H22: 0 | J22: 0 | L22: 0
H23: 0 | J23: 0 | L23: 0
H24: 0 | J24: 0 | L24: 0
H25: 0 | J25: 0 | L25: 0
H26: 0 | J26: 0 | L26: 0
H27: 0 | J27: 0 | L27: 0
H28: 0 | J28: 0 | L28: 0
H29: 0 | J29: 0 | L29: 0
H30: 0 | J30: 0 | L30: 0
H31: 0 | J31: 0 | L31: 0
H32: 0 | J32: 0 | L32: 0
H33: 0 | J33: 0 | L33: 0
H34: 0 | J34: 0 | L34: 0
H35: 0 | J35: 0 | L35: 0
H36: 0 | J36: 0 | L36: 0
H37: 0 | J37: 0 | L37: 0
H38: 0 | J38: 0 | L38: 0
H39: 0 | J39: 0 | L39: 0
H40: 0 | J40: 0 | L40: 0
H41: 0 | J41: 0 | L41: 0
H42: 0 | J42: 0 | L42: 0
H43: 0 | J43: 0 | L43: 0
H44: 0 | J44: 0 | L44: 0
H45: 0 | J45: 0 | L45: 0
H46: 0 | J46: 0 | L46: 0
H47: 0 | J47: 0 | L47: 0
H48: 0 | J48: 0 | L48: 0
A49: OBS:. | F49: TOTAIS | G49: =SUM(H17:H48) -> 2400 | I49: =SUM(J17:J48) -> 3300 | K49: =SUM(L17:L48) -> 3000
A51: DATA | G51: APROVADO
A52: 2019-01-14

Sheet 6.6
A1: =+'itens projetos'!B35 -> Remuneração para captação de recursos
A2: VERBA | B2: VR. NOTA | C2: N º CHEQUE | D2: DATA DA SAÍDA | E2: DESCRIÇÃO DA SAÍDA | F2: NF | G2: DATA DA NOTA | H2: QTDADE | I2: ='itens projetos'!C35 -> 11190
A3: =+'itens projetos'!I35 -> 60110.1 | B3: 60110.1 | C3: 850005 | D3: 2019-01-22 | E3: RIBEIRO DO VALLE CONS. E ASSESSORIA EM CAPTAÇÃO DE REC E G CULT. LTDA
A7: =SUM(A3:A6) -> 60110.1 | B7: =SUM(B3:B6) -> 60110.1
A8: SALDO | B8: =A7-B7 -> 0
A10: COTAÇÃO DE MATERIAIS E SERVIÇOS
G13: 1 - Fornecedor | I13: 2 - Fornecedor | K13: 3 - Fornecedor
A14: =+'itens projetos'!A2:M2 -> MARYSIA PORTINARI - UNIVERSO PRÉ-EXISTENTE - PRONAC: 182445
A16: QTDE | B16: UNI | C16: COD | D16: DESCRIÇÃO DO MATERIAL | G16: V. UNI | H16: V. TOTAL | I16: V. UNI | J16: V. TOTAL | K16: V. UNI | L16: V. TOTAL
C17: 4.3 | H17: =A17*G17 -> 0 | L17: =K17*A17 -> 0
H18: =A18*G18 -> 0 | J18: =I18*A18 -> 0 | L18: =K18*A18 -> 0
H19: 0 | J19: 0 | L19: 0
H20: 0 | J20: 0 | L20: 0
H21: 0 | J21: 0 | L21: 0
H22: 0 | J22: 0 | L22: 0
H23: 0 | J23: 0 | L23: 0
H24: 0 | J24: 0 | L24: 0
H25: 0 | J25: 0 | L25: 0
H26: 0 | J26: 0 | L26: 0
H27: 0 | J27: 0 | L27: 0
H28: 0 | J28: 0 | L28: 0
H29: 0 | J29: 0 | L29: 0
H30: 0 | J30: 0 | L30: 0
H31: 0 | J31: 0 | L31: 0
H32: 0 | J32: 0 | L32: 0
H33: 0 | J33: 0 | L33: 0
H34: 0 | J34: 0 | L34: 0
H35: 0 | J35: 0 | L35: 0
H36: 0 | J36: 0 | L36: 0
H37: 0 | J37: 0 | L37: 0
H38: 0 | J38: 0 | L38: 0
H39: 0 | J39: 0 | L39: 0
H40: 0 | J40: 0 | L40: 0
H41: 0 | J41: 0 | L41: 0
H42: 0 | J42: 0 | L42: 0
H43: 0 | J43: 0 | L43: 0
H44: 0 | J44: 0 | L44: 0
H45: 0 | J45: 0 | L45: 0
H46: 0 | J46: 0 | L46: 0
H47: 0 | J47: 0 | L47: 0
H48: 0 | J48: 0 | L48: 0
A49: OBS:. | F49: TOTAIS | G49: =SUM(H17:H48) -> 0 | I49: =SUM(J17:J48) -> 0 | K49: =SUM(L17:L48) -> 0
A51: DATA | G51: APROVADO
A52: 2013-05-28

Sheet 6.7
A1: =+'itens projetos'!B36 -> Custos de Administração
A2: VERBA | B2: VR. NOTA | C2: N º CHEQUE | D2: DATA DA SAÍDA | E2: DESCRIÇÃO DA SAÍDA | F2: NF | G2: DATA DA NOTA | H2: QTDADE | I2: ='itens projetos'!C36 -> 11191
A3: =+'itens projetos'!I36 -> 66789 | B3: 180 | C3: 850032 | D3: 2019-02-15 | E3: TELEFONICA BRASIL S.A | F3: ND 19/2019 | G3: 2019-02-15 | I3: JANEIRO | J3: TELEFONE
B4: 180 | C4: 850039 | D4: 2019-03-14 | E4: TELEFONICA BRASIL S.A | F4: ND 42/2019 | G4: 2019-03-12 | I4: FEVEREIRO | J4: TOTAL A UTILIZAR
B5: 180 | C5: 850062 | D5: 2019-04-16 | E5: TELEFONICA BRASIL S.A | F5: ND 61/2019 | G5: 2019-04-12 | I5: MARÇO | J5: 1620
B6: 180 | C6: 850082 | D6: 2019-05-15 | E6: TELEFONICA BRASIL S.A | F6: ND 73/2019 | G6: 2019-05-13 | I6: ABRIL | J6: 9 MESES / R$ 180,00
B7: 180 | C7: 850113 | D7: 2019-06-17 | E7: TELEFONICA BRASIL S.A | F7: ND 86/2019 | G7: 2019-06-12 | I7: MAIO
B8: 180 | C8: 850152 | D8: 2019-07-16 | E8: TELEFONICA BRASIL S.A | F8: ND 106/2019 | G8: 2019-07-12 | I8: JUNHO
B9: 180 | C9: 850129 | D9: 2019-08-15 | E9: TELEFONICA BRASIL S.A | F9: ND 123/2019 | G9: 2019-08-13 | I9: JULHO
B10: 180 | C10: 850163 | D10: 2019-09-17 | E10: TELEFONICA BRASIL S.A | F10: ND 136/2019 | G10: 2019-09-12 | I10: AGOSTO
B11: 178 | C11: 666998000040286 | D11: 2019-10-18 | E11: TELEFONICA BRASIL S.A | F11: ND 182/2019 | G11: 2019-10-11 | I11: SETEMBRO
H12: TOTAL | J12: =SUM(B3:B11) -> 1618
B14: 5001 | C14: 850023 | D14: 2019-02-08 | E14: JOSIANE NACAMUTA - ME | F14: NF 0792 | G14: 2019-02-07 | H14: 1 | I14: JANEIRO | J14: MATERIAL
J15: TOTAL A UTILIZAR
J16: 5000
J17: 1 MES R$ 5.000,00
H18: TOTAL | J18: =SUM(B14) -> 5001
B20: 1737 | C20: 850015 | D20: 2019-01-31 | E20: JOSIANE NACAMUTA - ME | F20: NF 0779 | G20: 2019-01-30 | H20: 3 | I20: JANEIRO | J20: CART. COLORIDO
B21: 1737 | C21: 850025 | D21: 2019-02-08 | E21: JOSIANE NACAMUTA - ME | F21: NF 0780 | G21: 2019-02-06 | H21: 3 | I21: FEVEREIRO | J21: TOTAL A UTILIZAR
B22: 1737 | C22: 850036 | D22: 2019-03-07 | E22: JOSIANE NACAMUTA - ME | F22: NF 0798 | G22: 2019-03-01 | H22: 3 | I22: MARÇO | J22: 15633
B23: 1737 | C23: 850056 | D23: 2019-04-09 | E23: JOSIANE NACAMUTA - ME | F23: NF 0815 | G23: 2019-04-04 | H23: 3 | I23: ABRIL | J23: 9 MESES/ R$ 1737,00
B24: 1737 | C24: 850075 | D24: 2019-05-07 | E24: JOSIANE NACAMUTA - ME | F24: NF 0824 | G24: 2019-05-02 | H24: 3 | I24: MAIO
B25: 1737 | C25: 850099 | D25: 2019-06-07 | E25: JOSIANE NACAMUTA - ME | F25: NF 0841 | G25: 2019-06-05 | H25: 3 | I25: JUNHO
B26: 1737 | C26: 850147 | D26: 2019-07-05 | E26: JOSIANE NACAMUTA - ME | F26: NF 0855 | G26: 2019-07-03 | H26: 3 | I26: JULHO
B27: 1737 | C27: 850128 | D27: 2019-08-08 | E27: JOSIANE NACAMUTA - ME | F27: NF 0870 | G27: 2019-08-02 | H27: 3 | I27: AGOSTO
B28: 1737 | C28: 850188 | D28: 2019-09-04 | E28: JOSIANE NACAMUTA - ME | F28: NF 0878 | G28: 2019-09-02 | H28: 3 | I28: SETEMBRO
H29: TOTAL | J29: =SUM(B20:B28) -> 15633
B31: 974.7 | C31: 850015 | D31: 2019-01-31 | E31: JOSIANE NACAMUTA - ME | F31: NF 0779 | G31: 2019-01-30 | H31: 3 | I31: JANEIRO | J31: CART. PRETO
B32: 974.7 | C32: 850025 | D32: 2019-02-08 | E32: JOSIANE NACAMUTA - ME | F32: NF 0780 | G32: 2019-02-06 | H32: 3 | I32: FEVEREIRO | J32: TOTAL A UTILIZAR
B33: 974.7 | C33: 850036 | D33: 2019-03-07 | E33: JOSIANE NACAMUTA - ME | F33: NF 0798 | G33: 2019-03-01 | H33: 3 | I33: MARÇO | J33: 8772.3
B34: 974.7 | C34: 850056 | D34: 2019-04-09 | E34: JOSIANE NACAMUTA - ME | F34: NF 0815 | G34: 2019-04-04 | H34: 3 | I34: ABRIL | J34: 9 MESES/ R$ 974,70
B35: 974.7 | C35: 850075 | D35: 2019-05-07 | E35: JOSIANE NACAMUTA - ME | F35: NF 0824 | G35: 2019-05-02 | H35: 3 | I35: MAIO
B36: 974.7 | C36: 850099 | D36: 2019-06-07 | E36: JOSIANE NACAMUTA - ME | F36: NF 0841 | G36: 2019-06-05 | H36: 3 | I36: JUNHO
B37: 974.7 | C37: 850147 | D37: 2019-07-05 | E37: JOSIANE NACAMUTA - ME | F37: NF 0855 | G37: 2019-07-03 | H37: 3 | I37: JULHO
B38: 974.7 | C38: 850128 | D38: 2019-08-08 | E38: JOSIANE NACAMUTA - ME | F38: NF 0870 | G38: 2019-08-02 | H38: 3 | I38: AGOSTO
B39: 974.7 | C39: 850188 | D39: 2019-09-04 | E39: JOSIANE NACAMUTA - ME | F39: NF 0878 | G39: 2019-09-02 | H39: 3 | I39: SETEMBRO
H40: TOTAL | J40: =SUM(B31:B39) -> 8772.3
B42: 202.5 | C42: 850015 | D42: 2019-01-31 | E42: JOSIANE NACAMUTA - ME | F42: NF 0779 | G42: 2019-01-30 | H42: 10 | I42: JANEIRO | J42: SULFITE
B43: 202.5 | C43: 850025 | D43: 2019-02-08 | E43: JOSIANE NACAMUTA - ME | F43: NF 0780 | G43: 2019-02-06 | H43: 10 | I43: FEVEREIRO | J43: TOTAL A UTILIZAR
B44: 202.5 | C44: 850036 | D44: 2019-03-07 | E44: JOSIANE NACAMUTA - ME | F44: NF 0798 | G44: 2019-03-01 | H44: 10 | I44: MARÇO | J44: 1822.5
B45: 202.5 | C45: 850056 | D45: 2019-04-09 | E45: JOSIANE NACAMUTA - ME | F45: NF 0815 | G45: 2019-04-04 | H45: 10 | I45: ABRIL | J45: 9 MESES/ R$ 202,50
B46: 202.5 | C46: 850075 | D46: 2019-05-07 | E46: JOSIANE NACAMUTA - ME | F46: NF 0824 | G46: 2019-05-02 | H46: 10 | I46: MAIO
B47: 202.5 | C47: 850099 | D47: 2019-06-07 | E47: JOSIANE NACAMUTA - ME | F47: NF 0841 | G47: 2019-06-05 | H47: 10 | I47: JUNHO
B48: 202.5 | C48: 850147 | D48: 2019-07-05 | E48: JOSIANE NACAMUTA - ME | F48: NF 0855 | G48: 2019-07-03 | H48: 10 | I48: JULHO
B49: 202.5 | C49: 850128 | D49: 2019-08-08 | E49: JOSIANE NACAMUTA - ME | F49: NF 0870 | G49: 2019-08-02 | H49: 10 | I49: AGOSTO
B50: 202.5 | C50: 850188 | D50: 2019-09-04 | E50: JOSIANE NACAMUTA - ME | F50: NF 0878 | G50: 2019-09-02 | H50: 10 | I50: SETEMBRO
H51: TOTAL | J51: =SUM(B42:B50) -> 1822.5
B53: 3572.2 | C53: 850027 | D53: 2019-02-12 | E53: COR E TAL OFICINAS DE ARTE E EVENTOS LTDA | F53: NF 1176 | G53: 2019-02-11 | H53: 1 | I53: JANEIRO | J53: ASSIS. ADMINISTRATIVO
B54: 3750 | C54: 850034 | D54: 2019-02-27 | E54: COR E TAL OFICINAS DE ARTE E EVENTOS LTDA | F54: NF 1179 | G54: 2019-02-27 | H54: 1 | I54: FEVEREIRO | J54: TOTAL A UTILIZAR
B55: 3750 | C55: 850049 | D55: 2019-03-19 | E55: COR E TAL OFICINAS DE ARTE E EVENTOS LTDA | F55: NF 1191 | G55: 2019-03-18 | H55: 1 | I55: MARÇO | J55: 33572.2
B56: 3750 | C56: 850058 | D56: 2019-04-11 | E56: COR E TAL OFICINAS DE ARTE E EVENTOS LTDA | F56: NF 1201 | G56: 2019-04-11 | H56: 1 | I56: ABRIL | J56: 8 MESES/ R$ 3.750,00
B57: 3750 | C57: 850077 | D57: 2019-05-13 | E57: COR E TAL OFICINAS DE ARTE E EVENTOS LTDA | F57: NF 1211 | G57: 2019-05-10 | H57: 1 | I57: MAIO | J57: 1 MÊS - 3.872,20
B58: 3750 | C58: 850117 | D58: 2019-06-18 | E58: COR E TAL OFICINAS DE ARTE E EVENTOS LTDA | F58: NF 1222 | G58: 2019-06-17 | H58: 1 | I58: JUNHO
B59: 3750 | C59: 850151 | D59: 2019-07-16 | E59: COR E TAL OFICINAS DE ARTE E EVENTOS LTDA | F59: NF 1233 | G59: 2019-07-12 | H59: 1 | I59: JULHO
B60: 3750 | C60: 850131 | D60: 2019-08-19 | E60: COR E TAL OFICINAS DE ARTE E EVENTOS LTDA | F60: NF 1247 | G60: 2019-08-15 | H60: 1 | I60: AGOSTO
B61: 3750 | C61: 850193 | D61: 2019-09-06 | E61: COR E TAL OFICINAS DE ARTE E EVENTOS LTDA | F61: NF 1263 | G61: 2019-09-05 | H61: 1 | I61: SETEMBRO
H62: TOTAL | J62: =SUM(B53:B61) -> 33572.2
I64: PRODUÇÃO DE TEXTO
I65: 3500
B67: 370 | C67: 850200 | D67: 2019-09-17 | E67: JOSIANE NACAMUTA - ME | F67: NF 0890 | G67: 2019-09-16 | H67: 25 | I67: PASTA DE ARQUIVO
A70: =SUM(A3:A69) -> 66789 | B70: =SUM(B3:B69) -> 66789
A71: SALDO | B71: =A70-B70 -> 0
A73: COTAÇÃO DE MATERIAIS E SERVIÇOS
G76: 1 - Fornecedor | I76: 2 - Fornecedor | K76: 3 - Fornecedor
A77: =+'itens projetos'!A2:M2 -> MARYSIA PORTINARI - UNIVERSO PRÉ-EXISTENTE - PRONAC: 182445 | G77: JOSIANE | I77: NET CENTRO | K77: ESPACIAL
G78: CNPJ: 18.775.988/0001-26 | I78: CNPJ: 74.002.346/0001-65 | K78: CNPJ:53.700.159/0001-85
A79: QTDE | B79: UNI | C79: COD | D79: DESCRIÇÃO DO MATERIAL | G79: V. UNI | H79: V. TOTAL | I79: V. UNI | J79: V. TOTAL | K79: V. UNI | L79: V. TOTAL
A80: 1 | B80: MESES | C80: 31 | D80: MATERIAL DE ESCRITORIO | G80: 5000 | H80: =A80*G80 -> 5000 | I80: 6100 | J80: =+I80 -> 6100 | K80: 500 | L80: =K80*A80 -> 500
A81: 9 | B81: MESES | C81: 31 | D81: CARTUCHO COLORIDO | G81: 1737 | H81: =A81*G81 -> 15633 | I81: 2000 | J81: =I81*A81 -> 18000 | K81: 1800 | L81: =K81*A81 -> 16200
A82: 9 | B82: MESES | C82: 31 | D82: CARTUCHO PRETO | G82: 974.7 | H82: 8772.3 | I82: 1001 | J82: 9009 | K82: 2150 | L82: 19350
A83: 9 | B83: MESES | C83: 31 | D83: SULFITE | G83: 202.5 | H83: 1822.5 | I83: 280 | J83: 2520 | K83: 260 | L83: 2340
H84: 0 | J84: 0 | L84: 0
H85: 0 | J85: 0 | L85: 0
H86: 0 | J86: 0 | L86: 0
H87: 0 | J87: 0 | L87: 0
H88: 0 | J88: 0 | L88: 0
H89: 0 | J89: 0 | L89: 0
H90: 0 | J90: 0 | L90: 0
H91: 0 | J91: 0 | L91: 0
H92: 0 | J92: 0 | L92: 0
H93: 0 | J93: 0 | L93: 0
H94: 0 | J94: 0 | L94: 0
H95: 0 | J95: 0 | L95: 0
H96: 0 | J96: 0 | L96: 0
H97: 0 | J97: 0 | L97: 0
H98: 0 | J98: 0 | L98: 0
H99: 0 | J99: 0 | L99: 0
H100: 0 | J100: 0 | L100: 0
H101: 0 | J101: 0 | L101: 0
H102: 0 | J102: 0 | L102: 0
H103: 0 | J103: 0 | L103: 0
H104: 0 | J104: 0 | L104: 0
H105: 0 | J105: 0 | L105: 0
H106: 0 | J106: 0 | L106: 0
H107: 0 | J107: 0 | L107: 0
H108: 0 | J108: 0 | L108: 0
H109: 0 | J109: 0 | L109: 0
H110: 0 | J110: 0 | L110: 0
H111: 0 | J111: 0 | L111: 0
A112: OBS:. | F112: TOTAIS | G112: =SUM(H80:H111) -> 31227.8 | I112: =SUM(J80:J111) -> 35629 | K112: =SUM(L80:L111) -> 38390
A114: DATA | G114: APROVADO
A115: 2019-01-14

Sheet 6.8
A1: =+'itens projetos'!B37 -> Custos de Divulgação
A2: VERBA | B2: VR. NOTA | C2: N º CHEQUE | D2: DATA DA SAÍDA | E2: DESCRIÇÃO DA SAÍDA | F2: NF | G2: DATA DA NOTA | H2: QTDADE | I2: ='itens projetos'!C37 -> 11192
A3: =+'itens projetos'!I37 -> 89052 | B3: 3500 | C3: 850016 | D3: 2019-02-01 | E3: AZUL CONSULTORIA EM PROPAGANDA LTDA | F3: NF 0450 | G3: 2019-01-31 | H3: 1 | I3: JANEIRO | J3: ASSESSORIA
B4: 3500 | C4: 850033 | D4: 2019-02-19 | E4: AZUL CONSULTORIA EM PROPAGANDA LTDA | F4: NF 0453 | G4: 2019-02-15 | H4: 1 | I4: FEVEREIRO | J4: TOTAL A UTILIZAR
B5: 3500 | C5: 850052 | D5: 2019-03-19 | E5: AZUL CONSULTORIA EM PROPAGANDA LTDA | F5: NF 0456 | G5: 2019-03-13 | H5: 1 | I5: MARÇO | J5: 31500
B6: 3500 | C6: 850061 | D6: 2019-04-12 | E6: AZUL CONSULTORIA EM PROPAGANDA LTDA | F6: NF 0462 | G6: 2019-04-09 | H6: 1 | I6: ABRIL | J6: 9 MESES / R$ 3.500,00
B7: 3500 | C7: 850094 | D7: 2019-05-21 | E7: AZUL CONSULTORIA EM PROPAGANDA LTDA | F7: NF 0469 | G7: 2019-05-20 | H7: 1 | I7: MAIO
B8: 3500 | C8: 850114 | D8: 2019-06-17 | E8: AZUL CONSULTORIA EM PROPAGANDA LTDA | F8: NF 0027 | G8: 2019-06-12 | H8: 1 | I8: JUNHO
B9: 3500 | C9: 850149 | D9: 2019-07-12 | E9: AZUL CONSULTORIA EM PROPAGANDA LTDA | F9: NF 0475 | G9: 2019-07-07 | H9: 1 | I9: JULHO
B10: 3500 | C10: 850126 | D10: 2019-08-08 | E10: AZUL CONSULTORIA EM PROPAGANDA LTDA | F10: NF 0003 | G10: 2019-08-05 | H10: 1 | I10: AGOSTO
B11: 3500 | C11: 850190 | D11: 2019-09-06 | E11: AZUL CONSULTORIA EM PROPAGANDA LTDA | F11: NF 0010 | G11: 2019-09-04 | H11: 1 | I11: SETEMBRO
I12: TOTAL | J12: =SUM(B3:B11) -> 31500
B16: 2000 | C16: 850014 | D16: 2019-01-31 | E16: GALEANO INFORMATICA LTDA- ME | F16: NF 1056 | G16: 2019-01-31 | H16: 1 | I16: JANEIRO | J16: SITIO DE INTERNET
B17: 2000 | C17: 850021 | D17: 2019-02-08 | E17: GALEANO INFORMATICA LTDA- ME | F17: NF 1062 | G17: 2019-02-06 | H17: 1 | I17: FEVEREIRO | J17: TOTAL A UTILIZAR
B18: 2000 | C18: 850035 | D18: 2019-03-07 | E18: GALEANO INFORMATICA LTDA- ME | F18: NF 1079 | G18: 2019-03-06 | H18: 1 | I18: MARÇO | J18: 18000
B19: 2000 | C19: 850055 | D19: 2019-04-09 | E19: GALEANO INFORMATICA LTDA- ME | F19: NF 1093 | G19: 2019-04-04 | H19: 1 | I19: ABRIL | J19: 9 MESES / R$ 2.000,00
B20: 2000 | C20: 850074 | D20: 2019-05-03 | E20: GALEANO INFORMATICA LTDA- ME | F20: NF 1108 | G20: 2019-05-03 | H20: 1 | I20: MAIO
B21: 2000 | C21: 850098 | D21: 2019-06-07 | E21: GALEANO INFORMATICA LTDA- ME | F21: NF 1123 | G21: 2019-06-05 | H21: 1 | I21: JUNHO
B22: 2000 | C22: 850146 | D22: 2019-07-04 | E22: GALEANO INFORMATICA LTDA- ME | F22: NF 1138 | G22: 2019-07-03 | H22: 1 | I22: JULHO
B23: 2000 | C23: 850125 | D23: 2019-08-05 | E23: GALEANO INFORMATICA LTDA- ME | F23: NF 1155 | G23: 2019-08-01 | H23: 1 | I23: AGOSTO
B24: 2000 | C24: 850187 | D24: 2019-09-04 | E24: GALEANO INFORMATICA LTDA- ME | F24: NF 1172 | G24: 2019-09-03 | H24: 1 | I24: SETEMBRO
I25: TOTAL | J25: =SUM(B16:B24) -> 18000
B27: 18000 | C27: 850165 | D27: 2019-09-17 | E27: AZUL CONSULTORIA EM PROPAGANDA LTDA | F27: NF 0011 | G27: 2019-09-13 | I27: MIDIA IMPRESA
I28: 18000
I29: 1 Mês
B30: 3500 | C30: 850173 | D30: 2019-09-19 | E30: W PRINT SOLUTION GRAFICA LTDA - ME | F30: NF 0625 | G30: 2019-09-17 | H30: 3000 | I30: CONFECÇÃO DE CONVITES
I31: 3500
I32: 1 mês
B33: 2100 | C33: 850017 | D33: 2019-02-01 | E33: W PRINT SOLUTION GRAFICA LTDA - ME | F33: NF 0435 | G33: 2019-01-31 | H33: 6 | I33: BANNERS
B34: 1400 | C34: 850170 | D34: 2019-09-19 | E34: W PRINT SOLUTION GRAFICA LTDA - ME | F34: NF 0626 | G34: 2019-09-17 | H34: 4 | I34: 3500
I35: 2 meses
B37: 6000 | C37: 850172 | D37: 2019-09-19 | E37: W PRINT SOLUTION GRAFICA LTDA - ME | F37: NF 0627 | G37: 2019-09-17 | H37: 2000 | I37: FOLDERS
I38: 6000
I39: 1 mês
B40: 3500 | C40: 850194 | D40: 2019-09-06 | E40: COR E TAL OFICINAS DE ARTE E EVENTOS LTDA | F40: NF 1270 | G40: 2019-09-05 | I40: PRODUÇÃO DE TEXTO
I41: 3500
I42: 1 mês
B43: 2500 | C43: 850171 | D43: 2019-09-19 | E43: W PRINT SOLUTION GRAFICA LTDA - ME | F43: NF 0042 | G43: 2019-09-18 | I43: PROJETO GRÁFICO
I44: 2500
I45: 1 mês
B46: 2552 | C46: 850198 | D46: 2019-09-06 | E46: COR E TAL OFICINAS DE ARTE E EVENTOS LTDA | F46: NF 1271 | G46: 2019-09-05 | I46: REVISÃO DE TEXTO
I47: 2552
I48: 1 mês
A50: =SUM(A3:A49) -> 89052 | B50: =SUM(B3:B49) -> 89052
A51: SALDO | B51: =A50-B50 -> 0
A53: COTAÇÃO DE MATERIAIS E SERVIÇOS
G56: 1 - Fornecedor | I56: 2 - Fornecedor | K56: 3 - Fornecedor
A57: =+'itens projetos'!A2:M2 -> MARYSIA PORTINARI - UNIVERSO PRÉ-EXISTENTE - PRONAC: 182445 | G57: W PRINT | I57: JD REPRODUÇÕES GRAFICAS | K57: COKTAIL
G58: CNPJ: 28.442.773/0001-47 | I58: CNPJ: 12.121.441/0001-20 | K58: CNPJ: 15.021.896/0001-62
A59: QTDE | B59: UNI | C59: COD | D59: DESCRIÇÃO DO MATERIAL | G59: V. UNI | H59: V. TOTAL | I59: V. UNI | J59: V. TOTAL | K59: V. UNI | L59: V. TOTAL
A60: 3000 | B60: UNID | C60: 32 | D60: CONFECÇÃO DE CONVITE | G60: 1.17 | H60: 3500 | I60: 2.8 | J60: =I60*A60 -> 8400 | K60: 3.5 | L60: 10500
A61: 10 | B61: UNID | C61: 32 | D61: BANNERS | G61: 350 | H61: =A61*G61 -> 3500 | I61: 460 | J61: =I61*A61 -> 4600 | K61: 420 | L61: =K61*A61 -> 4200
A62: 2000 | B62: UNID | C62: 32 | D62: FOLDERS | G62: 3 | H62: 6000 | I62: 3.2 | J62: 6400 | K62: 4.1 | L62: 8200
H63: 0 | J63: 0 | L63: 0
H64: 0 | J64: 0 | L64: 0
H65: 0 | J65: 0 | L65: 0
H66: 0 | J66: 0 | L66: 0
H67: 0 | J67: 0 | L67: 0
H68: 0 | J68: 0 | L68: 0
H69: 0 | J69: 0 | L69: 0
H70: 0 | J70: 0 | L70: 0
H71: 0 | J71: 0 | L71: 0
H72: 0 | J72: 0 | L72: 0
H73: 0 | J73: 0 | L73: 0
H74: 0 | J74: 0 | L74: 0
H75: 0 | J75: 0 | L75: 0
H76: 0 | J76: 0 | L76: 0
H77: 0 | J77: 0 | L77: 0
H78: 0 | J78: 0 | L78: 0
H79: 0 | J79: 0 | L79: 0
H80: 0 | J80: 0 | L80: 0
H81: 0 | J81: 0 | L81: 0
H82: 0 | J82: 0 | L82: 0
H83: 0 | J83: 0 | L83: 0
H84: 0 | J84: 0 | L84: 0
H85: 0 | J85: 0 | L85: 0
H86: 0 | J86: 0 | L86: 0
H87: 0 | J87: 0 | L87: 0
H88: 0 | J88: 0 | L88: 0
H89: 0 | J89: 0 | L89: 0
H90: 0 | J90: 0 | L90: 0
H91: 0 | J91: 0 | L91: 0
A92: OBS:. | F92: TOTAIS | G92: =SUM(H60:H91) -> 13000 | I92: =SUM(J60:J91) -> 19400 | K92: =SUM(L60:L91) -> 22900
A94: DATA | G94: APROVADO
A95: 2019-01-14
